{"text_format":"1","workbook":"xlsx","n_sheets":3,"sheets":["Schools & Students","Distribution of Labour","ValidationLists"],"not_rendered":{"charts":0,"images":1,"macros":1,"external_links":0,"defined_names":3,"comments":0,"pivot_tables":0},"unopened":[],"bounds":{"document_bytes":16777216,"sheet_cells":100000,"rows_first":2000,"rows_last":500,"rows_between":2000,"halvings":0,"cell_chars":16384,"cell_head_chars":4096},"cells_cut":0,"cells_raw":0,"read":"whole","date_system":"1900"}

{"sheet":"Schools & Students","index":0,"n_rows":504,"n_cols":18,"rows_kept":504,"cut":false,"hidden":false,"merged":[[2,1,2,17],[1,1,1,17],[0,0,0,17]]}
["Specialist Disability Support in Schools Program - Performance Measures\nSpecialised Equipment "]
["Organisation Name:"]
["Funding Year:"]
["SPECIALISED EQUIPMENT","UNIT COST\n(excl GST)","# OF ITEMS","TOTAL COST\n(excl GST)","NAME OF SCHOOL ACCESSING SERVICE\n(Please double click on each cell to enable the autocomplete function)","SCHOOL CODE","REGION","CENTRE TYPE","NUMBER OF UNIQUE STUDENTS USING THE ITEM","AUTISM SPECTRUM DISORDER","HEARING IMPAIRMENT","INTELLECTUAL DISABILITY","PHYSICAL IMPAIRMENT","SPEECH-LANGUAGE IMPAIRMENT","VISION IMPAIRMENT","SOCIAL EMOTIONAL DISORDER (SED)                      \nEligibility:         \n•\tNon-state schools - Students with a verification under the Education Adjustment Program for SED    \n•\tState schools - Students must be recorded as receiving substantial or extensive adjustments to address SED in the Nationally Consistent Collection of Data (NCCD) ","OTHER DISABILITY \n(please enter the type of disability below)","NUMBER OF STUDENTS RELEVANT TO THE 'OTHER DISABILITY' ENTERED IN ADJACENT COLUMN"]
["Item Name","$","#","Auto Calculation",null,{"$f":"VLOOKUP(E5,ValidationLists!$1:$1048576,2,)","v":{"$error":"#N/A"}},{"$f":"VLOOKUP(E5,ValidationLists!$1:$1048576,4,)","v":{"$error":"#N/A"}},{"$f":"VLOOKUP(E5,ValidationLists!$1:$1048576,3,)","v":{"$error":"#N/A"}}]
[null,null,null,{"$f":"SUM(B6*C6)","v":0},null,{"$f":"VLOOKUP(E6,ValidationLists!$1:$1048576,2,)","v":{"$error":"#N/A"}},{"$f":"VLOOKUP(E6,ValidationLists!$1:$1048576,4,)","v":{"$error":"#N/A"}},{"$f":"VLOOKUP(E6,ValidationLists!$1:$1048576,3,)","v":{"$error":"#N/A"}}]
[null,null,null,{"$f":"SUM(B7*C7)","v":0},null,{"$f":"VLOOKUP(E7,ValidationLists!$1:$1048576,2,)","v":{"$error":"#N/A"}},{"$f":"VLOOKUP(E7,ValidationLists!$1:$1048576,4,)","v":{"$error":"#N/A"}},{"$f":"VLOOKUP(E7,ValidationLists!$1:$1048576,3,)","v":{"$error":"#N/A"}}]
[null,null,null,{"$f":"SUM(B8*C8)","v":0},null,{"$f":"VLOOKUP(E8,ValidationLists!$1:$1048576,2,)","v":{"$error":"#N/A"}},{"$f":"VLOOKUP(E8,ValidationLists!$1:$1048576,4,)","v":{"$error":"#N/A"}},{"$f":"VLOOKUP(E8,ValidationLists!$1:$1048576,3,)","v":{"$error":"#N/A"}}]
[null,null,null,0,null,{"$f":"VLOOKUP(E9,ValidationLists!$1:$1048576,2,)","v":{"$error":"#N/A"}},{"$f":"VLOOKUP(E9,ValidationLists!$1:$1048576,4,)","v":{"$error":"#N/A"}},{"$f":"VLOOKUP(E9,ValidationLists!$1:$1048576,3,)","v":{"$error":"#N/A"}}]
[null,null,null,0,null,{"$f":"VLOOKUP(E10,ValidationLists!$1:$1048576,2,)","v":{"$error":"#N/A"}},{"$f":"VLOOKUP(E10,ValidationLists!$1:$1048576,4,)","v":{"$error":"#N/A"}},{"$f":"VLOOKUP(E10,ValidationLists!$1:$1048576,3,)","v":{"$error":"#N/A"}}]
[null,null,null,0,null,{"$f":"VLOOKUP(E11,ValidationLists!$1:$1048576,2,)","v":{"$error":"#N/A"}},{"$f":"VLOOKUP(E11,ValidationLists!$1:$1048576,4,)","v":{"$error":"#N/A"}},{"$f":"VLOOKUP(E11,ValidationLists!$1:$1048576,3,)","v":{"$error":"#N/A"}}]
[null,null,null,0,null,{"$f":"VLOOKUP(E12,ValidationLists!$1:$1048576,2,)","v":{"$error":"#N/A"}},{"$f":"VLOOKUP(E12,ValidationLists!$1:$1048576,4,)","v":{"$error":"#N/A"}},{"$f":"VLOOKUP(E12,ValidationLists!$1:$1048576,3,)","v":{"$error":"#N/A"}}]
[null,null,null,0,null,{"$f":"VLOOKUP(E13,ValidationLists!$1:$1048576,2,)","v":{"$error":"#N/A"}},{"$f":"VLOOKUP(E13,ValidationLists!$1:$1048576,4,)","v":{"$error":"#N/A"}},{"$f":"VLOOKUP(E13,ValidationLists!$1:$1048576,3,)","v":{"$error":"#N/A"}}]
[null,null,null,0,null,{"$f":"VLOOKUP(E14,ValidationLists!$1:$1048576,2,)","v":{"$error":"#N/A"}},{"$f":"VLOOKUP(E14,ValidationLists!$1:$1048576,4,)","v":{"$error":"#N/A"}},{"$f":"VLOOKUP(E14,ValidationLists!$1:$1048576,3,)","v":{"$error":"#N/A"}}]
[null,null,null,0,null,{"$f":"VLOOKUP(E15,ValidationLists!$1:$1048576,2,)","v":{"$error":"#N/A"}},{"$f":"VLOOKUP(E15,ValidationLists!$1:$1048576,4,)","v":{"$error":"#N/A"}},{"$f":"VLOOKUP(E15,ValidationLists!$1:$1048576,3,)","v":{"$error":"#N/A"}}]
[null,null,null,0,null,{"$f":"VLOOKUP(E16,ValidationLists!$1:$1048576,2,)","v":{"$error":"#N/A"}},{"$f":"VLOOKUP(E16,ValidationLists!$1:$1048576,4,)","v":{"$error":"#N/A"}},{"$f":"VLOOKUP(E16,ValidationLists!$1:$1048576,3,)","v":{"$error":"#N/A"}}]
[null,null,null,0,null,{"$f":"VLOOKUP(E17,ValidationLists!$1:$1048576,2,)","v":{"$error":"#N/A"}},{"$f":"VLOOKUP(E17,ValidationLists!$1:$1048576,4,)","v":{"$error":"#N/A"}},{"$f":"VLOOKUP(E17,ValidationLists!$1:$1048576,3,)","v":{"$error":"#N/A"}}]
[null,null,null,0,null,{"$f":"VLOOKUP(E18,ValidationLists!$1:$1048576,2,)","v":{"$error":"#N/A"}},{"$f":"VLOOKUP(E18,ValidationLists!$1:$1048576,4,)","v":{"$error":"#N/A"}},{"$f":"VLOOKUP(E18,ValidationLists!$1:$1048576,3,)","v":{"$error":"#N/A"}}]
[null,null,null,0,null,{"$f":"VLOOKUP(E19,ValidationLists!$1:$1048576,2,)","v":{"$error":"#N/A"}},{"$f":"VLOOKUP(E19,ValidationLists!$1:$1048576,4,)","v":{"$error":"#N/A"}},{"$f":"VLOOKUP(E19,ValidationLists!$1:$1048576,3,)","v":{"$error":"#N/A"}}]
[null,null,null,0,null,{"$f":"VLOOKUP(E20,ValidationLists!$1:$1048576,2,)","v":{"$error":"#N/A"}},{"$f":"VLOOKUP(E20,ValidationLists!$1:$1048576,4,)","v":{"$error":"#N/A"}},{"$f":"VLOOKUP(E20,ValidationLists!$1:$1048576,3,)","v":{"$error":"#N/A"}}]
[null,null,null,0,null,{"$f":"VLOOKUP(E21,ValidationLists!$1:$1048576,2,)","v":{"$error":"#N/A"}},{"$f":"VLOOKUP(E21,ValidationLists!$1:$1048576,4,)","v":{"$error":"#N/A"}},{"$f":"VLOOKUP(E21,ValidationLists!$1:$1048576,3,)","v":{"$error":"#N/A"}}]
[null,null,null,0,null,{"$f":"VLOOKUP(E22,ValidationLists!$1:$1048576,2,)","v":{"$error":"#N/A"}},{"$f":"VLOOKUP(E22,ValidationLists!$1:$1048576,4,)","v":{"$error":"#N/A"}},{"$f":"VLOOKUP(E22,ValidationLists!$1:$1048576,3,)","v":{"$error":"#N/A"}}]
[null,null,null,0,null,{"$f":"VLOOKUP(E23,ValidationLists!$1:$1048576,2,)","v":{"$error":"#N/A"}},{"$f":"VLOOKUP(E23,ValidationLists!$1:$1048576,4,)","v":{"$error":"#N/A"}},{"$f":"VLOOKUP(E23,ValidationLists!$1:$1048576,3,)","v":{"$error":"#N/A"}}]
[null,null,null,0,null,{"$f":"VLOOKUP(E24,ValidationLists!$1:$1048576,2,)","v":{"$error":"#N/A"}},{"$f":"VLOOKUP(E24,ValidationLists!$1:$1048576,4,)","v":{"$error":"#N/A"}},{"$f":"VLOOKUP(E24,ValidationLists!$1:$1048576,3,)","v":{"$error":"#N/A"}}]
[null,null,null,0,null,{"$f":"VLOOKUP(E25,ValidationLists!$1:$1048576,2,)","v":{"$error":"#N/A"}},{"$f":"VLOOKUP(E25,ValidationLists!$1:$1048576,4,)","v":{"$error":"#N/A"}},{"$f":"VLOOKUP(E25,ValidationLists!$1:$1048576,3,)","v":{"$error":"#N/A"}}]
[null,null,null,0,null,{"$f":"VLOOKUP(E26,ValidationLists!$1:$1048576,2,)","v":{"$error":"#N/A"}},{"$f":"VLOOKUP(E26,ValidationLists!$1:$1048576,4,)","v":{"$error":"#N/A"}},{"$f":"VLOOKUP(E26,ValidationLists!$1:$1048576,3,)","v":{"$error":"#N/A"}}]
[null,null,null,0,null,{"$f":"VLOOKUP(E27,ValidationLists!$1:$1048576,2,)","v":{"$error":"#N/A"}},{"$f":"VLOOKUP(E27,ValidationLists!$1:$1048576,4,)","v":{"$error":"#N/A"}},{"$f":"VLOOKUP(E27,ValidationLists!$1:$1048576,3,)","v":{"$error":"#N/A"}}]
[null,null,null,0,null,{"$f":"VLOOKUP(E28,ValidationLists!$1:$1048576,2,)","v":{"$error":"#N/A"}},{"$f":"VLOOKUP(E28,ValidationLists!$1:$1048576,4,)","v":{"$error":"#N/A"}},{"$f":"VLOOKUP(E28,ValidationLists!$1:$1048576,3,)","v":{"$error":"#N/A"}}]
[null,null,null,0,null,{"$f":"VLOOKUP(E29,ValidationLists!$1:$1048576,2,)","v":{"$error":"#N/A"}},{"$f":"VLOOKUP(E29,ValidationLists!$1:$1048576,4,)","v":{"$error":"#N/A"}},{"$f":"VLOOKUP(E29,ValidationLists!$1:$1048576,3,)","v":{"$error":"#N/A"}}]
[null,null,null,0,null,{"$f":"VLOOKUP(E30,ValidationLists!$1:$1048576,2,)","v":{"$error":"#N/A"}},{"$f":"VLOOKUP(E30,ValidationLists!$1:$1048576,4,)","v":{"$error":"#N/A"}},{"$f":"VLOOKUP(E30,ValidationLists!$1:$1048576,3,)","v":{"$error":"#N/A"}}]
[null,null,null,0,null,{"$f":"VLOOKUP(E31,ValidationLists!$1:$1048576,2,)","v":{"$error":"#N/A"}},{"$f":"VLOOKUP(E31,ValidationLists!$1:$1048576,4,)","v":{"$error":"#N/A"}},{"$f":"VLOOKUP(E31,ValidationLists!$1:$1048576,3,)","v":{"$error":"#N/A"}}]
[null,null,null,0,null,{"$f":"VLOOKUP(E32,ValidationLists!$1:$1048576,2,)","v":{"$error":"#N/A"}},{"$f":"VLOOKUP(E32,ValidationLists!$1:$1048576,4,)","v":{"$error":"#N/A"}},{"$f":"VLOOKUP(E32,ValidationLists!$1:$1048576,3,)","v":{"$error":"#N/A"}}]
[null,null,null,0,null,{"$f":"VLOOKUP(E33,ValidationLists!$1:$1048576,2,)","v":{"$error":"#N/A"}},{"$f":"VLOOKUP(E33,ValidationLists!$1:$1048576,4,)","v":{"$error":"#N/A"}},{"$f":"VLOOKUP(E33,ValidationLists!$1:$1048576,3,)","v":{"$error":"#N/A"}}]
[null,null,null,0,null,{"$f":"VLOOKUP(E34,ValidationLists!$1:$1048576,2,)","v":{"$error":"#N/A"}},{"$f":"VLOOKUP(E34,ValidationLists!$1:$1048576,4,)","v":{"$error":"#N/A"}},{"$f":"VLOOKUP(E34,ValidationLists!$1:$1048576,3,)","v":{"$error":"#N/A"}}]
[null,null,null,0,null,{"$f":"VLOOKUP(E35,ValidationLists!$1:$1048576,2,)","v":{"$error":"#N/A"}},{"$f":"VLOOKUP(E35,ValidationLists!$1:$1048576,4,)","v":{"$error":"#N/A"}},{"$f":"VLOOKUP(E35,ValidationLists!$1:$1048576,3,)","v":{"$error":"#N/A"}}]
[null,null,null,0,null,{"$f":"VLOOKUP(E36,ValidationLists!$1:$1048576,2,)","v":{"$error":"#N/A"}},{"$f":"VLOOKUP(E36,ValidationLists!$1:$1048576,4,)","v":{"$error":"#N/A"}},{"$f":"VLOOKUP(E36,ValidationLists!$1:$1048576,3,)","v":{"$error":"#N/A"}}]
[null,null,null,0,null,{"$f":"VLOOKUP(E37,ValidationLists!$1:$1048576,2,)","v":{"$error":"#N/A"}},{"$f":"VLOOKUP(E37,ValidationLists!$1:$1048576,4,)","v":{"$error":"#N/A"}},{"$f":"VLOOKUP(E37,ValidationLists!$1:$1048576,3,)","v":{"$error":"#N/A"}}]
[null,null,null,0,null,{"$f":"VLOOKUP(E38,ValidationLists!$1:$1048576,2,)","v":{"$error":"#N/A"}},{"$f":"VLOOKUP(E38,ValidationLists!$1:$1048576,4,)","v":{"$error":"#N/A"}},{"$f":"VLOOKUP(E38,ValidationLists!$1:$1048576,3,)","v":{"$error":"#N/A"}}]
[null,null,null,0,null,{"$f":"VLOOKUP(E39,ValidationLists!$1:$1048576,2,)","v":{"$error":"#N/A"}},{"$f":"VLOOKUP(E39,ValidationLists!$1:$1048576,4,)","v":{"$error":"#N/A"}},{"$f":"VLOOKUP(E39,ValidationLists!$1:$1048576,3,)","v":{"$error":"#N/A"}}]
[null,null,null,0,null,{"$f":"VLOOKUP(E40,ValidationLists!$1:$1048576,2,)","v":{"$error":"#N/A"}},{"$f":"VLOOKUP(E40,ValidationLists!$1:$1048576,4,)","v":{"$error":"#N/A"}},{"$f":"VLOOKUP(E40,ValidationLists!$1:$1048576,3,)","v":{"$error":"#N/A"}}]
[null,null,null,0,null,{"$f":"VLOOKUP(E41,ValidationLists!$1:$1048576,2,)","v":{"$error":"#N/A"}},{"$f":"VLOOKUP(E41,ValidationLists!$1:$1048576,4,)","v":{"$error":"#N/A"}},{"$f":"VLOOKUP(E41,ValidationLists!$1:$1048576,3,)","v":{"$error":"#N/A"}}]
[null,null,null,0,null,{"$f":"VLOOKUP(E42,ValidationLists!$1:$1048576,2,)","v":{"$error":"#N/A"}},{"$f":"VLOOKUP(E42,ValidationLists!$1:$1048576,4,)","v":{"$error":"#N/A"}},{"$f":"VLOOKUP(E42,ValidationLists!$1:$1048576,3,)","v":{"$error":"#N/A"}}]
[null,null,null,0,null,{"$f":"VLOOKUP(E43,ValidationLists!$1:$1048576,2,)","v":{"$error":"#N/A"}},{"$f":"VLOOKUP(E43,ValidationLists!$1:$1048576,4,)","v":{"$error":"#N/A"}},{"$f":"VLOOKUP(E43,ValidationLists!$1:$1048576,3,)","v":{"$error":"#N/A"}}]
[null,null,null,0,null,{"$f":"VLOOKUP(E44,ValidationLists!$1:$1048576,2,)","v":{"$error":"#N/A"}},{"$f":"VLOOKUP(E44,ValidationLists!$1:$1048576,4,)","v":{"$error":"#N/A"}},{"$f":"VLOOKUP(E44,ValidationLists!$1:$1048576,3,)","v":{"$error":"#N/A"}}]
[null,null,null,0,null,{"$f":"VLOOKUP(E45,ValidationLists!$1:$1048576,2,)","v":{"$error":"#N/A"}},{"$f":"VLOOKUP(E45,ValidationLists!$1:$1048576,4,)","v":{"$error":"#N/A"}},{"$f":"VLOOKUP(E45,ValidationLists!$1:$1048576,3,)","v":{"$error":"#N/A"}}]
[null,null,null,0,null,{"$f":"VLOOKUP(E46,ValidationLists!$1:$1048576,2,)","v":{"$error":"#N/A"}},{"$f":"VLOOKUP(E46,ValidationLists!$1:$1048576,4,)","v":{"$error":"#N/A"}},{"$f":"VLOOKUP(E46,ValidationLists!$1:$1048576,3,)","v":{"$error":"#N/A"}}]
[null,null,null,0,null,{"$f":"VLOOKUP(E47,ValidationLists!$1:$1048576,2,)","v":{"$error":"#N/A"}},{"$f":"VLOOKUP(E47,ValidationLists!$1:$1048576,4,)","v":{"$error":"#N/A"}},{"$f":"VLOOKUP(E47,ValidationLists!$1:$1048576,3,)","v":{"$error":"#N/A"}}]
[null,null,null,0,null,{"$f":"VLOOKUP(E48,ValidationLists!$1:$1048576,2,)","v":{"$error":"#N/A"}},{"$f":"VLOOKUP(E48,ValidationLists!$1:$1048576,4,)","v":{"$error":"#N/A"}},{"$f":"VLOOKUP(E48,ValidationLists!$1:$1048576,3,)","v":{"$error":"#N/A"}}]
[null,null,null,0,null,{"$f":"VLOOKUP(E49,ValidationLists!$1:$1048576,2,)","v":{"$error":"#N/A"}},{"$f":"VLOOKUP(E49,ValidationLists!$1:$1048576,4,)","v":{"$error":"#N/A"}},{"$f":"VLOOKUP(E49,ValidationLists!$1:$1048576,3,)","v":{"$error":"#N/A"}}]
[null,null,null,0,null,{"$f":"VLOOKUP(E50,ValidationLists!$1:$1048576,2,)","v":{"$error":"#N/A"}},{"$f":"VLOOKUP(E50,ValidationLists!$1:$1048576,4,)","v":{"$error":"#N/A"}},{"$f":"VLOOKUP(E50,ValidationLists!$1:$1048576,3,)","v":{"$error":"#N/A"}}]
[null,null,null,0,null,{"$f":"VLOOKUP(E51,ValidationLists!$1:$1048576,2,)","v":{"$error":"#N/A"}},{"$f":"VLOOKUP(E51,ValidationLists!$1:$1048576,4,)","v":{"$error":"#N/A"}},{"$f":"VLOOKUP(E51,ValidationLists!$1:$1048576,3,)","v":{"$error":"#N/A"}}]
[null,null,null,0,null,{"$f":"VLOOKUP(E52,ValidationLists!$1:$1048576,2,)","v":{"$error":"#N/A"}},{"$f":"VLOOKUP(E52,ValidationLists!$1:$1048576,4,)","v":{"$error":"#N/A"}},{"$f":"VLOOKUP(E52,ValidationLists!$1:$1048576,3,)","v":{"$error":"#N/A"}}]
[null,null,null,0,null,{"$f":"VLOOKUP(E53,ValidationLists!$1:$1048576,2,)","v":{"$error":"#N/A"}},{"$f":"VLOOKUP(E53,ValidationLists!$1:$1048576,4,)","v":{"$error":"#N/A"}},{"$f":"VLOOKUP(E53,ValidationLists!$1:$1048576,3,)","v":{"$error":"#N/A"}}]
[null,null,null,0,null,{"$f":"VLOOKUP(E54,ValidationLists!$1:$1048576,2,)","v":{"$error":"#N/A"}},{"$f":"VLOOKUP(E54,ValidationLists!$1:$1048576,4,)","v":{"$error":"#N/A"}},{"$f":"VLOOKUP(E54,ValidationLists!$1:$1048576,3,)","v":{"$error":"#N/A"}}]
[null,null,null,0,null,{"$f":"VLOOKUP(E55,ValidationLists!$1:$1048576,2,)","v":{"$error":"#N/A"}},{"$f":"VLOOKUP(E55,ValidationLists!$1:$1048576,4,)","v":{"$error":"#N/A"}},{"$f":"VLOOKUP(E55,ValidationLists!$1:$1048576,3,)","v":{"$error":"#N/A"}}]
[null,null,null,0,null,{"$f":"VLOOKUP(E56,ValidationLists!$1:$1048576,2,)","v":{"$error":"#N/A"}},{"$f":"VLOOKUP(E56,ValidationLists!$1:$1048576,4,)","v":{"$error":"#N/A"}},{"$f":"VLOOKUP(E56,ValidationLists!$1:$1048576,3,)","v":{"$error":"#N/A"}}]
[null,null,null,0,null,{"$f":"VLOOKUP(E57,ValidationLists!$1:$1048576,2,)","v":{"$error":"#N/A"}},{"$f":"VLOOKUP(E57,ValidationLists!$1:$1048576,4,)","v":{"$error":"#N/A"}},{"$f":"VLOOKUP(E57,ValidationLists!$1:$1048576,3,)","v":{"$error":"#N/A"}}]
[null,null,null,0,null,{"$f":"VLOOKUP(E58,ValidationLists!$1:$1048576,2,)","v":{"$error":"#N/A"}},{"$f":"VLOOKUP(E58,ValidationLists!$1:$1048576,4,)","v":{"$error":"#N/A"}},{"$f":"VLOOKUP(E58,ValidationLists!$1:$1048576,3,)","v":{"$error":"#N/A"}}]
[null,null,null,0,null,{"$f":"VLOOKUP(E59,ValidationLists!$1:$1048576,2,)","v":{"$error":"#N/A"}},{"$f":"VLOOKUP(E59,ValidationLists!$1:$1048576,4,)","v":{"$error":"#N/A"}},{"$f":"VLOOKUP(E59,ValidationLists!$1:$1048576,3,)","v":{"$error":"#N/A"}}]
[null,null,null,0,null,{"$f":"VLOOKUP(E60,ValidationLists!$1:$1048576,2,)","v":{"$error":"#N/A"}},{"$f":"VLOOKUP(E60,ValidationLists!$1:$1048576,4,)","v":{"$error":"#N/A"}},{"$f":"VLOOKUP(E60,ValidationLists!$1:$1048576,3,)","v":{"$error":"#N/A"}}]
[null,null,null,0,null,{"$f":"VLOOKUP(E61,ValidationLists!$1:$1048576,2,)","v":{"$error":"#N/A"}},{"$f":"VLOOKUP(E61,ValidationLists!$1:$1048576,4,)","v":{"$error":"#N/A"}},{"$f":"VLOOKUP(E61,ValidationLists!$1:$1048576,3,)","v":{"$error":"#N/A"}}]
[null,null,null,0,null,{"$f":"VLOOKUP(E62,ValidationLists!$1:$1048576,2,)","v":{"$error":"#N/A"}},{"$f":"VLOOKUP(E62,ValidationLists!$1:$1048576,4,)","v":{"$error":"#N/A"}},{"$f":"VLOOKUP(E62,ValidationLists!$1:$1048576,3,)","v":{"$error":"#N/A"}}]
[null,null,null,0,null,{"$f":"VLOOKUP(E63,ValidationLists!$1:$1048576,2,)","v":{"$error":"#N/A"}},{"$f":"VLOOKUP(E63,ValidationLists!$1:$1048576,4,)","v":{"$error":"#N/A"}},{"$f":"VLOOKUP(E63,ValidationLists!$1:$1048576,3,)","v":{"$error":"#N/A"}}]
[null,null,null,0,null,{"$f":"VLOOKUP(E64,ValidationLists!$1:$1048576,2,)","v":{"$error":"#N/A"}},{"$f":"VLOOKUP(E64,ValidationLists!$1:$1048576,4,)","v":{"$error":"#N/A"}},{"$f":"VLOOKUP(E64,ValidationLists!$1:$1048576,3,)","v":{"$error":"#N/A"}}]
[null,null,null,0,null,{"$f":"VLOOKUP(E65,ValidationLists!$1:$1048576,2,)","v":{"$error":"#N/A"}},{"$f":"VLOOKUP(E65,ValidationLists!$1:$1048576,4,)","v":{"$error":"#N/A"}},{"$f":"VLOOKUP(E65,ValidationLists!$1:$1048576,3,)","v":{"$error":"#N/A"}}]
[null,null,null,0,null,{"$f":"VLOOKUP(E66,ValidationLists!$1:$1048576,2,)","v":{"$error":"#N/A"}},{"$f":"VLOOKUP(E66,ValidationLists!$1:$1048576,4,)","v":{"$error":"#N/A"}},{"$f":"VLOOKUP(E66,ValidationLists!$1:$1048576,3,)","v":{"$error":"#N/A"}}]
[null,null,null,0,null,{"$f":"VLOOKUP(E67,ValidationLists!$1:$1048576,2,)","v":{"$error":"#N/A"}},{"$f":"VLOOKUP(E67,ValidationLists!$1:$1048576,4,)","v":{"$error":"#N/A"}},{"$f":"VLOOKUP(E67,ValidationLists!$1:$1048576,3,)","v":{"$error":"#N/A"}}]
[null,null,null,0,null,{"$f":"VLOOKUP(E68,ValidationLists!$1:$1048576,2,)","v":{"$error":"#N/A"}},{"$f":"VLOOKUP(E68,ValidationLists!$1:$1048576,4,)","v":{"$error":"#N/A"}},{"$f":"VLOOKUP(E68,ValidationLists!$1:$1048576,3,)","v":{"$error":"#N/A"}}]
[null,null,null,0,null,{"$f":"VLOOKUP(E69,ValidationLists!$1:$1048576,2,)","v":{"$error":"#N/A"}},{"$f":"VLOOKUP(E69,ValidationLists!$1:$1048576,4,)","v":{"$error":"#N/A"}},{"$f":"VLOOKUP(E69,ValidationLists!$1:$1048576,3,)","v":{"$error":"#N/A"}}]
[null,null,null,0,null,{"$f":"VLOOKUP(E70,ValidationLists!$1:$1048576,2,)","v":{"$error":"#N/A"}},{"$f":"VLOOKUP(E70,ValidationLists!$1:$1048576,4,)","v":{"$error":"#N/A"}},{"$f":"VLOOKUP(E70,ValidationLists!$1:$1048576,3,)","v":{"$error":"#N/A"}}]
[null,null,null,0,null,{"$f":"VLOOKUP(E71,ValidationLists!$1:$1048576,2,)","v":{"$error":"#N/A"}},{"$f":"VLOOKUP(E71,ValidationLists!$1:$1048576,4,)","v":{"$error":"#N/A"}},{"$f":"VLOOKUP(E71,ValidationLists!$1:$1048576,3,)","v":{"$error":"#N/A"}}]
[null,null,null,{"$f":"SUM(B72*C72)","v":0},null,{"$f":"VLOOKUP(E72,ValidationLists!$1:$1048576,2,)","v":{"$error":"#N/A"}},{"$f":"VLOOKUP(E72,ValidationLists!$1:$1048576,4,)","v":{"$error":"#N/A"}},{"$f":"VLOOKUP(E72,ValidationLists!$1:$1048576,3,)","v":{"$error":"#N/A"}}]
[null,null,null,0,null,{"$f":"VLOOKUP(E73,ValidationLists!$1:$1048576,2,)","v":{"$error":"#N/A"}},{"$f":"VLOOKUP(E73,ValidationLists!$1:$1048576,4,)","v":{"$error":"#N/A"}},{"$f":"VLOOKUP(E73,ValidationLists!$1:$1048576,3,)","v":{"$error":"#N/A"}}]
[null,null,null,0,null,{"$f":"VLOOKUP(E74,ValidationLists!$1:$1048576,2,)","v":{"$error":"#N/A"}},{"$f":"VLOOKUP(E74,ValidationLists!$1:$1048576,4,)","v":{"$error":"#N/A"}},{"$f":"VLOOKUP(E74,ValidationLists!$1:$1048576,3,)","v":{"$error":"#N/A"}}]
[null,null,null,0,null,{"$f":"VLOOKUP(E75,ValidationLists!$1:$1048576,2,)","v":{"$error":"#N/A"}},{"$f":"VLOOKUP(E75,ValidationLists!$1:$1048576,4,)","v":{"$error":"#N/A"}},{"$f":"VLOOKUP(E75,ValidationLists!$1:$1048576,3,)","v":{"$error":"#N/A"}}]
[null,null,null,0,null,{"$f":"VLOOKUP(E76,ValidationLists!$1:$1048576,2,)","v":{"$error":"#N/A"}},{"$f":"VLOOKUP(E76,ValidationLists!$1:$1048576,4,)","v":{"$error":"#N/A"}},{"$f":"VLOOKUP(E76,ValidationLists!$1:$1048576,3,)","v":{"$error":"#N/A"}}]
[null,null,null,0,null,{"$f":"VLOOKUP(E77,ValidationLists!$1:$1048576,2,)","v":{"$error":"#N/A"}},{"$f":"VLOOKUP(E77,ValidationLists!$1:$1048576,4,)","v":{"$error":"#N/A"}},{"$f":"VLOOKUP(E77,ValidationLists!$1:$1048576,3,)","v":{"$error":"#N/A"}}]
[null,null,null,0,null,{"$f":"VLOOKUP(E78,ValidationLists!$1:$1048576,2,)","v":{"$error":"#N/A"}},{"$f":"VLOOKUP(E78,ValidationLists!$1:$1048576,4,)","v":{"$error":"#N/A"}},{"$f":"VLOOKUP(E78,ValidationLists!$1:$1048576,3,)","v":{"$error":"#N/A"}}]
[null,null,null,0,null,{"$f":"VLOOKUP(E79,ValidationLists!$1:$1048576,2,)","v":{"$error":"#N/A"}},{"$f":"VLOOKUP(E79,ValidationLists!$1:$1048576,4,)","v":{"$error":"#N/A"}},{"$f":"VLOOKUP(E79,ValidationLists!$1:$1048576,3,)","v":{"$error":"#N/A"}}]
[null,null,null,0,null,{"$f":"VLOOKUP(E80,ValidationLists!$1:$1048576,2,)","v":{"$error":"#N/A"}},{"$f":"VLOOKUP(E80,ValidationLists!$1:$1048576,4,)","v":{"$error":"#N/A"}},{"$f":"VLOOKUP(E80,ValidationLists!$1:$1048576,3,)","v":{"$error":"#N/A"}}]
[null,null,null,0,null,{"$f":"VLOOKUP(E81,ValidationLists!$1:$1048576,2,)","v":{"$error":"#N/A"}},{"$f":"VLOOKUP(E81,ValidationLists!$1:$1048576,4,)","v":{"$error":"#N/A"}},{"$f":"VLOOKUP(E81,ValidationLists!$1:$1048576,3,)","v":{"$error":"#N/A"}}]
[null,null,null,0,null,{"$f":"VLOOKUP(E82,ValidationLists!$1:$1048576,2,)","v":{"$error":"#N/A"}},{"$f":"VLOOKUP(E82,ValidationLists!$1:$1048576,4,)","v":{"$error":"#N/A"}},{"$f":"VLOOKUP(E82,ValidationLists!$1:$1048576,3,)","v":{"$error":"#N/A"}}]
[null,null,null,0,null,{"$f":"VLOOKUP(E83,ValidationLists!$1:$1048576,2,)","v":{"$error":"#N/A"}},{"$f":"VLOOKUP(E83,ValidationLists!$1:$1048576,4,)","v":{"$error":"#N/A"}},{"$f":"VLOOKUP(E83,ValidationLists!$1:$1048576,3,)","v":{"$error":"#N/A"}}]
[null,null,null,0,null,{"$f":"VLOOKUP(E84,ValidationLists!$1:$1048576,2,)","v":{"$error":"#N/A"}},{"$f":"VLOOKUP(E84,ValidationLists!$1:$1048576,4,)","v":{"$error":"#N/A"}},{"$f":"VLOOKUP(E84,ValidationLists!$1:$1048576,3,)","v":{"$error":"#N/A"}}]
[null,null,null,0,null,{"$f":"VLOOKUP(E85,ValidationLists!$1:$1048576,2,)","v":{"$error":"#N/A"}},{"$f":"VLOOKUP(E85,ValidationLists!$1:$1048576,4,)","v":{"$error":"#N/A"}},{"$f":"VLOOKUP(E85,ValidationLists!$1:$1048576,3,)","v":{"$error":"#N/A"}}]
[null,null,null,0,null,{"$f":"VLOOKUP(E86,ValidationLists!$1:$1048576,2,)","v":{"$error":"#N/A"}},{"$f":"VLOOKUP(E86,ValidationLists!$1:$1048576,4,)","v":{"$error":"#N/A"}},{"$f":"VLOOKUP(E86,ValidationLists!$1:$1048576,3,)","v":{"$error":"#N/A"}}]
[null,null,null,0,null,{"$f":"VLOOKUP(E87,ValidationLists!$1:$1048576,2,)","v":{"$error":"#N/A"}},{"$f":"VLOOKUP(E87,ValidationLists!$1:$1048576,4,)","v":{"$error":"#N/A"}},{"$f":"VLOOKUP(E87,ValidationLists!$1:$1048576,3,)","v":{"$error":"#N/A"}}]
[null,null,null,0,null,{"$f":"VLOOKUP(E88,ValidationLists!$1:$1048576,2,)","v":{"$error":"#N/A"}},{"$f":"VLOOKUP(E88,ValidationLists!$1:$1048576,4,)","v":{"$error":"#N/A"}},{"$f":"VLOOKUP(E88,ValidationLists!$1:$1048576,3,)","v":{"$error":"#N/A"}}]
[null,null,null,0,null,{"$f":"VLOOKUP(E89,ValidationLists!$1:$1048576,2,)","v":{"$error":"#N/A"}},{"$f":"VLOOKUP(E89,ValidationLists!$1:$1048576,4,)","v":{"$error":"#N/A"}},{"$f":"VLOOKUP(E89,ValidationLists!$1:$1048576,3,)","v":{"$error":"#N/A"}}]
[null,null,null,0,null,{"$f":"VLOOKUP(E90,ValidationLists!$1:$1048576,2,)","v":{"$error":"#N/A"}},{"$f":"VLOOKUP(E90,ValidationLists!$1:$1048576,4,)","v":{"$error":"#N/A"}},{"$f":"VLOOKUP(E90,ValidationLists!$1:$1048576,3,)","v":{"$error":"#N/A"}}]
[null,null,null,0,null,{"$f":"VLOOKUP(E91,ValidationLists!$1:$1048576,2,)","v":{"$error":"#N/A"}},{"$f":"VLOOKUP(E91,ValidationLists!$1:$1048576,4,)","v":{"$error":"#N/A"}},{"$f":"VLOOKUP(E91,ValidationLists!$1:$1048576,3,)","v":{"$error":"#N/A"}}]
[null,null,null,0,null,{"$f":"VLOOKUP(E92,ValidationLists!$1:$1048576,2,)","v":{"$error":"#N/A"}},{"$f":"VLOOKUP(E92,ValidationLists!$1:$1048576,4,)","v":{"$error":"#N/A"}},{"$f":"VLOOKUP(E92,ValidationLists!$1:$1048576,3,)","v":{"$error":"#N/A"}}]
[null,null,null,0,null,{"$f":"VLOOKUP(E93,ValidationLists!$1:$1048576,2,)","v":{"$error":"#N/A"}},{"$f":"VLOOKUP(E93,ValidationLists!$1:$1048576,4,)","v":{"$error":"#N/A"}},{"$f":"VLOOKUP(E93,ValidationLists!$1:$1048576,3,)","v":{"$error":"#N/A"}}]
[null,null,null,0,null,{"$f":"VLOOKUP(E94,ValidationLists!$1:$1048576,2,)","v":{"$error":"#N/A"}},{"$f":"VLOOKUP(E94,ValidationLists!$1:$1048576,4,)","v":{"$error":"#N/A"}},{"$f":"VLOOKUP(E94,ValidationLists!$1:$1048576,3,)","v":{"$error":"#N/A"}}]
[null,null,null,0,null,{"$f":"VLOOKUP(E95,ValidationLists!$1:$1048576,2,)","v":{"$error":"#N/A"}},{"$f":"VLOOKUP(E95,ValidationLists!$1:$1048576,4,)","v":{"$error":"#N/A"}},{"$f":"VLOOKUP(E95,ValidationLists!$1:$1048576,3,)","v":{"$error":"#N/A"}}]
[null,null,null,0,null,{"$f":"VLOOKUP(E96,ValidationLists!$1:$1048576,2,)","v":{"$error":"#N/A"}},{"$f":"VLOOKUP(E96,ValidationLists!$1:$1048576,4,)","v":{"$error":"#N/A"}},{"$f":"VLOOKUP(E96,ValidationLists!$1:$1048576,3,)","v":{"$error":"#N/A"}}]
[null,null,null,0,null,{"$f":"VLOOKUP(E97,ValidationLists!$1:$1048576,2,)","v":{"$error":"#N/A"}},{"$f":"VLOOKUP(E97,ValidationLists!$1:$1048576,4,)","v":{"$error":"#N/A"}},{"$f":"VLOOKUP(E97,ValidationLists!$1:$1048576,3,)","v":{"$error":"#N/A"}}]
[null,null,null,0,null,{"$f":"VLOOKUP(E98,ValidationLists!$1:$1048576,2,)","v":{"$error":"#N/A"}},{"$f":"VLOOKUP(E98,ValidationLists!$1:$1048576,4,)","v":{"$error":"#N/A"}},{"$f":"VLOOKUP(E98,ValidationLists!$1:$1048576,3,)","v":{"$error":"#N/A"}}]
[null,null,null,0,null,{"$f":"VLOOKUP(E99,ValidationLists!$1:$1048576,2,)","v":{"$error":"#N/A"}},{"$f":"VLOOKUP(E99,ValidationLists!$1:$1048576,4,)","v":{"$error":"#N/A"}},{"$f":"VLOOKUP(E99,ValidationLists!$1:$1048576,3,)","v":{"$error":"#N/A"}}]
[null,null,null,0,null,{"$f":"VLOOKUP(E100,ValidationLists!$1:$1048576,2,)","v":{"$error":"#N/A"}},{"$f":"VLOOKUP(E100,ValidationLists!$1:$1048576,4,)","v":{"$error":"#N/A"}},{"$f":"VLOOKUP(E100,ValidationLists!$1:$1048576,3,)","v":{"$error":"#N/A"}}]
[null,null,null,0,null,{"$f":"VLOOKUP(E101,ValidationLists!$1:$1048576,2,)","v":{"$error":"#N/A"}},{"$f":"VLOOKUP(E101,ValidationLists!$1:$1048576,4,)","v":{"$error":"#N/A"}},{"$f":"VLOOKUP(E101,ValidationLists!$1:$1048576,3,)","v":{"$error":"#N/A"}}]
[null,null,null,0,null,{"$f":"VLOOKUP(E102,ValidationLists!$1:$1048576,2,)","v":{"$error":"#N/A"}},{"$f":"VLOOKUP(E102,ValidationLists!$1:$1048576,4,)","v":{"$error":"#N/A"}},{"$f":"VLOOKUP(E102,ValidationLists!$1:$1048576,3,)","v":{"$error":"#N/A"}}]
[null,null,null,0,null,{"$f":"VLOOKUP(E103,ValidationLists!$1:$1048576,2,)","v":{"$error":"#N/A"}},{"$f":"VLOOKUP(E103,ValidationLists!$1:$1048576,4,)","v":{"$error":"#N/A"}},{"$f":"VLOOKUP(E103,ValidationLists!$1:$1048576,3,)","v":{"$error":"#N/A"}}]
[null,null,null,0,null,{"$f":"VLOOKUP(E104,ValidationLists!$1:$1048576,2,)","v":{"$error":"#N/A"}},{"$f":"VLOOKUP(E104,ValidationLists!$1:$1048576,4,)","v":{"$error":"#N/A"}},{"$f":"VLOOKUP(E104,ValidationLists!$1:$1048576,3,)","v":{"$error":"#N/A"}}]
[null,null,null,0,null,{"$f":"VLOOKUP(E105,ValidationLists!$1:$1048576,2,)","v":{"$error":"#N/A"}},{"$f":"VLOOKUP(E105,ValidationLists!$1:$1048576,4,)","v":{"$error":"#N/A"}},{"$f":"VLOOKUP(E105,ValidationLists!$1:$1048576,3,)","v":{"$error":"#N/A"}}]
[null,null,null,0,null,{"$f":"VLOOKUP(E106,ValidationLists!$1:$1048576,2,)","v":{"$error":"#N/A"}},{"$f":"VLOOKUP(E106,ValidationLists!$1:$1048576,4,)","v":{"$error":"#N/A"}},{"$f":"VLOOKUP(E106,ValidationLists!$1:$1048576,3,)","v":{"$error":"#N/A"}}]
[null,null,null,0,null,{"$f":"VLOOKUP(E107,ValidationLists!$1:$1048576,2,)","v":{"$error":"#N/A"}},{"$f":"VLOOKUP(E107,ValidationLists!$1:$1048576,4,)","v":{"$error":"#N/A"}},{"$f":"VLOOKUP(E107,ValidationLists!$1:$1048576,3,)","v":{"$error":"#N/A"}}]
[null,null,null,0,null,{"$f":"VLOOKUP(E108,ValidationLists!$1:$1048576,2,)","v":{"$error":"#N/A"}},{"$f":"VLOOKUP(E108,ValidationLists!$1:$1048576,4,)","v":{"$error":"#N/A"}},{"$f":"VLOOKUP(E108,ValidationLists!$1:$1048576,3,)","v":{"$error":"#N/A"}}]
[null,null,null,0,null,{"$f":"VLOOKUP(E109,ValidationLists!$1:$1048576,2,)","v":{"$error":"#N/A"}},{"$f":"VLOOKUP(E109,ValidationLists!$1:$1048576,4,)","v":{"$error":"#N/A"}},{"$f":"VLOOKUP(E109,ValidationLists!$1:$1048576,3,)","v":{"$error":"#N/A"}}]
[null,null,null,0,null,{"$f":"VLOOKUP(E110,ValidationLists!$1:$1048576,2,)","v":{"$error":"#N/A"}},{"$f":"VLOOKUP(E110,ValidationLists!$1:$1048576,4,)","v":{"$error":"#N/A"}},{"$f":"VLOOKUP(E110,ValidationLists!$1:$1048576,3,)","v":{"$error":"#N/A"}}]
[null,null,null,0,null,{"$f":"VLOOKUP(E111,ValidationLists!$1:$1048576,2,)","v":{"$error":"#N/A"}},{"$f":"VLOOKUP(E111,ValidationLists!$1:$1048576,4,)","v":{"$error":"#N/A"}},{"$f":"VLOOKUP(E111,ValidationLists!$1:$1048576,3,)","v":{"$error":"#N/A"}}]
[null,null,null,0,null,{"$f":"VLOOKUP(E112,ValidationLists!$1:$1048576,2,)","v":{"$error":"#N/A"}},{"$f":"VLOOKUP(E112,ValidationLists!$1:$1048576,4,)","v":{"$error":"#N/A"}},{"$f":"VLOOKUP(E112,ValidationLists!$1:$1048576,3,)","v":{"$error":"#N/A"}}]
[null,null,null,0,null,{"$f":"VLOOKUP(E113,ValidationLists!$1:$1048576,2,)","v":{"$error":"#N/A"}},{"$f":"VLOOKUP(E113,ValidationLists!$1:$1048576,4,)","v":{"$error":"#N/A"}},{"$f":"VLOOKUP(E113,ValidationLists!$1:$1048576,3,)","v":{"$error":"#N/A"}}]
[null,null,null,0,null,{"$f":"VLOOKUP(E114,ValidationLists!$1:$1048576,2,)","v":{"$error":"#N/A"}},{"$f":"VLOOKUP(E114,ValidationLists!$1:$1048576,4,)","v":{"$error":"#N/A"}},{"$f":"VLOOKUP(E114,ValidationLists!$1:$1048576,3,)","v":{"$error":"#N/A"}}]
[null,null,null,0,null,{"$f":"VLOOKUP(E115,ValidationLists!$1:$1048576,2,)","v":{"$error":"#N/A"}},{"$f":"VLOOKUP(E115,ValidationLists!$1:$1048576,4,)","v":{"$error":"#N/A"}},{"$f":"VLOOKUP(E115,ValidationLists!$1:$1048576,3,)","v":{"$error":"#N/A"}}]
[null,null,null,0,null,{"$f":"VLOOKUP(E116,ValidationLists!$1:$1048576,2,)","v":{"$error":"#N/A"}},{"$f":"VLOOKUP(E116,ValidationLists!$1:$1048576,4,)","v":{"$error":"#N/A"}},{"$f":"VLOOKUP(E116,ValidationLists!$1:$1048576,3,)","v":{"$error":"#N/A"}}]
[null,null,null,0,null,{"$f":"VLOOKUP(E117,ValidationLists!$1:$1048576,2,)","v":{"$error":"#N/A"}},{"$f":"VLOOKUP(E117,ValidationLists!$1:$1048576,4,)","v":{"$error":"#N/A"}},{"$f":"VLOOKUP(E117,ValidationLists!$1:$1048576,3,)","v":{"$error":"#N/A"}}]
[null,null,null,0,null,{"$f":"VLOOKUP(E118,ValidationLists!$1:$1048576,2,)","v":{"$error":"#N/A"}},{"$f":"VLOOKUP(E118,ValidationLists!$1:$1048576,4,)","v":{"$error":"#N/A"}},{"$f":"VLOOKUP(E118,ValidationLists!$1:$1048576,3,)","v":{"$error":"#N/A"}}]
[null,null,null,0,null,{"$f":"VLOOKUP(E119,ValidationLists!$1:$1048576,2,)","v":{"$error":"#N/A"}},{"$f":"VLOOKUP(E119,ValidationLists!$1:$1048576,4,)","v":{"$error":"#N/A"}},{"$f":"VLOOKUP(E119,ValidationLists!$1:$1048576,3,)","v":{"$error":"#N/A"}}]
[null,null,null,0,null,{"$f":"VLOOKUP(E120,ValidationLists!$1:$1048576,2,)","v":{"$error":"#N/A"}},{"$f":"VLOOKUP(E120,ValidationLists!$1:$1048576,4,)","v":{"$error":"#N/A"}},{"$f":"VLOOKUP(E120,ValidationLists!$1:$1048576,3,)","v":{"$error":"#N/A"}}]
[null,null,null,0,null,{"$f":"VLOOKUP(E121,ValidationLists!$1:$1048576,2,)","v":{"$error":"#N/A"}},{"$f":"VLOOKUP(E121,ValidationLists!$1:$1048576,4,)","v":{"$error":"#N/A"}},{"$f":"VLOOKUP(E121,ValidationLists!$1:$1048576,3,)","v":{"$error":"#N/A"}}]
[null,null,null,0,null,{"$f":"VLOOKUP(E122,ValidationLists!$1:$1048576,2,)","v":{"$error":"#N/A"}},{"$f":"VLOOKUP(E122,ValidationLists!$1:$1048576,4,)","v":{"$error":"#N/A"}},{"$f":"VLOOKUP(E122,ValidationLists!$1:$1048576,3,)","v":{"$error":"#N/A"}}]
[null,null,null,0,null,{"$f":"VLOOKUP(E123,ValidationLists!$1:$1048576,2,)","v":{"$error":"#N/A"}},{"$f":"VLOOKUP(E123,ValidationLists!$1:$1048576,4,)","v":{"$error":"#N/A"}},{"$f":"VLOOKUP(E123,ValidationLists!$1:$1048576,3,)","v":{"$error":"#N/A"}}]
[null,null,null,0,null,{"$f":"VLOOKUP(E124,ValidationLists!$1:$1048576,2,)","v":{"$error":"#N/A"}},{"$f":"VLOOKUP(E124,ValidationLists!$1:$1048576,4,)","v":{"$error":"#N/A"}},{"$f":"VLOOKUP(E124,ValidationLists!$1:$1048576,3,)","v":{"$error":"#N/A"}}]
[null,null,null,0,null,{"$f":"VLOOKUP(E125,ValidationLists!$1:$1048576,2,)","v":{"$error":"#N/A"}},{"$f":"VLOOKUP(E125,ValidationLists!$1:$1048576,4,)","v":{"$error":"#N/A"}},{"$f":"VLOOKUP(E125,ValidationLists!$1:$1048576,3,)","v":{"$error":"#N/A"}}]
[null,null,null,0,null,{"$f":"VLOOKUP(E126,ValidationLists!$1:$1048576,2,)","v":{"$error":"#N/A"}},{"$f":"VLOOKUP(E126,ValidationLists!$1:$1048576,4,)","v":{"$error":"#N/A"}},{"$f":"VLOOKUP(E126,ValidationLists!$1:$1048576,3,)","v":{"$error":"#N/A"}}]
[null,null,null,0,null,{"$f":"VLOOKUP(E127,ValidationLists!$1:$1048576,2,)","v":{"$error":"#N/A"}},{"$f":"VLOOKUP(E127,ValidationLists!$1:$1048576,4,)","v":{"$error":"#N/A"}},{"$f":"VLOOKUP(E127,ValidationLists!$1:$1048576,3,)","v":{"$error":"#N/A"}}]
[null,null,null,0,null,{"$f":"VLOOKUP(E128,ValidationLists!$1:$1048576,2,)","v":{"$error":"#N/A"}},{"$f":"VLOOKUP(E128,ValidationLists!$1:$1048576,4,)","v":{"$error":"#N/A"}},{"$f":"VLOOKUP(E128,ValidationLists!$1:$1048576,3,)","v":{"$error":"#N/A"}}]
[null,null,null,0,null,{"$f":"VLOOKUP(E129,ValidationLists!$1:$1048576,2,)","v":{"$error":"#N/A"}},{"$f":"VLOOKUP(E129,ValidationLists!$1:$1048576,4,)","v":{"$error":"#N/A"}},{"$f":"VLOOKUP(E129,ValidationLists!$1:$1048576,3,)","v":{"$error":"#N/A"}}]
[null,null,null,0,null,{"$f":"VLOOKUP(E130,ValidationLists!$1:$1048576,2,)","v":{"$error":"#N/A"}},{"$f":"VLOOKUP(E130,ValidationLists!$1:$1048576,4,)","v":{"$error":"#N/A"}},{"$f":"VLOOKUP(E130,ValidationLists!$1:$1048576,3,)","v":{"$error":"#N/A"}}]
[null,null,null,0,null,{"$f":"VLOOKUP(E131,ValidationLists!$1:$1048576,2,)","v":{"$error":"#N/A"}},{"$f":"VLOOKUP(E131,ValidationLists!$1:$1048576,4,)","v":{"$error":"#N/A"}},{"$f":"VLOOKUP(E131,ValidationLists!$1:$1048576,3,)","v":{"$error":"#N/A"}}]
[null,null,null,0,null,{"$f":"VLOOKUP(E132,ValidationLists!$1:$1048576,2,)","v":{"$error":"#N/A"}},{"$f":"VLOOKUP(E132,ValidationLists!$1:$1048576,4,)","v":{"$error":"#N/A"}},{"$f":"VLOOKUP(E132,ValidationLists!$1:$1048576,3,)","v":{"$error":"#N/A"}}]
[null,null,null,0,null,{"$f":"VLOOKUP(E133,ValidationLists!$1:$1048576,2,)","v":{"$error":"#N/A"}},{"$f":"VLOOKUP(E133,ValidationLists!$1:$1048576,4,)","v":{"$error":"#N/A"}},{"$f":"VLOOKUP(E133,ValidationLists!$1:$1048576,3,)","v":{"$error":"#N/A"}}]
[null,null,null,0,null,{"$f":"VLOOKUP(E134,ValidationLists!$1:$1048576,2,)","v":{"$error":"#N/A"}},{"$f":"VLOOKUP(E134,ValidationLists!$1:$1048576,4,)","v":{"$error":"#N/A"}},{"$f":"VLOOKUP(E134,ValidationLists!$1:$1048576,3,)","v":{"$error":"#N/A"}}]
[null,null,null,0,null,{"$f":"VLOOKUP(E135,ValidationLists!$1:$1048576,2,)","v":{"$error":"#N/A"}},{"$f":"VLOOKUP(E135,ValidationLists!$1:$1048576,4,)","v":{"$error":"#N/A"}},{"$f":"VLOOKUP(E135,ValidationLists!$1:$1048576,3,)","v":{"$error":"#N/A"}}]
[null,null,null,{"$f":"SUM(B136*C136)","v":0},null,{"$f":"VLOOKUP(E136,ValidationLists!$1:$1048576,2,)","v":{"$error":"#N/A"}},{"$f":"VLOOKUP(E136,ValidationLists!$1:$1048576,4,)","v":{"$error":"#N/A"}},{"$f":"VLOOKUP(E136,ValidationLists!$1:$1048576,3,)","v":{"$error":"#N/A"}}]
[null,null,null,0,null,{"$f":"VLOOKUP(E137,ValidationLists!$1:$1048576,2,)","v":{"$error":"#N/A"}},{"$f":"VLOOKUP(E137,ValidationLists!$1:$1048576,4,)","v":{"$error":"#N/A"}},{"$f":"VLOOKUP(E137,ValidationLists!$1:$1048576,3,)","v":{"$error":"#N/A"}}]
[null,null,null,0,null,{"$f":"VLOOKUP(E138,ValidationLists!$1:$1048576,2,)","v":{"$error":"#N/A"}},{"$f":"VLOOKUP(E138,ValidationLists!$1:$1048576,4,)","v":{"$error":"#N/A"}},{"$f":"VLOOKUP(E138,ValidationLists!$1:$1048576,3,)","v":{"$error":"#N/A"}}]
[null,null,null,0,null,{"$f":"VLOOKUP(E139,ValidationLists!$1:$1048576,2,)","v":{"$error":"#N/A"}},{"$f":"VLOOKUP(E139,ValidationLists!$1:$1048576,4,)","v":{"$error":"#N/A"}},{"$f":"VLOOKUP(E139,ValidationLists!$1:$1048576,3,)","v":{"$error":"#N/A"}}]
[null,null,null,0,null,{"$f":"VLOOKUP(E140,ValidationLists!$1:$1048576,2,)","v":{"$error":"#N/A"}},{"$f":"VLOOKUP(E140,ValidationLists!$1:$1048576,4,)","v":{"$error":"#N/A"}},{"$f":"VLOOKUP(E140,ValidationLists!$1:$1048576,3,)","v":{"$error":"#N/A"}}]
[null,null,null,0,null,{"$f":"VLOOKUP(E141,ValidationLists!$1:$1048576,2,)","v":{"$error":"#N/A"}},{"$f":"VLOOKUP(E141,ValidationLists!$1:$1048576,4,)","v":{"$error":"#N/A"}},{"$f":"VLOOKUP(E141,ValidationLists!$1:$1048576,3,)","v":{"$error":"#N/A"}}]
[null,null,null,0,null,{"$f":"VLOOKUP(E142,ValidationLists!$1:$1048576,2,)","v":{"$error":"#N/A"}},{"$f":"VLOOKUP(E142,ValidationLists!$1:$1048576,4,)","v":{"$error":"#N/A"}},{"$f":"VLOOKUP(E142,ValidationLists!$1:$1048576,3,)","v":{"$error":"#N/A"}}]
[null,null,null,0,null,{"$f":"VLOOKUP(E143,ValidationLists!$1:$1048576,2,)","v":{"$error":"#N/A"}},{"$f":"VLOOKUP(E143,ValidationLists!$1:$1048576,4,)","v":{"$error":"#N/A"}},{"$f":"VLOOKUP(E143,ValidationLists!$1:$1048576,3,)","v":{"$error":"#N/A"}}]
[null,null,null,0,null,{"$f":"VLOOKUP(E144,ValidationLists!$1:$1048576,2,)","v":{"$error":"#N/A"}},{"$f":"VLOOKUP(E144,ValidationLists!$1:$1048576,4,)","v":{"$error":"#N/A"}},{"$f":"VLOOKUP(E144,ValidationLists!$1:$1048576,3,)","v":{"$error":"#N/A"}}]
[null,null,null,0,null,{"$f":"VLOOKUP(E145,ValidationLists!$1:$1048576,2,)","v":{"$error":"#N/A"}},{"$f":"VLOOKUP(E145,ValidationLists!$1:$1048576,4,)","v":{"$error":"#N/A"}},{"$f":"VLOOKUP(E145,ValidationLists!$1:$1048576,3,)","v":{"$error":"#N/A"}}]
[null,null,null,0,null,{"$f":"VLOOKUP(E146,ValidationLists!$1:$1048576,2,)","v":{"$error":"#N/A"}},{"$f":"VLOOKUP(E146,ValidationLists!$1:$1048576,4,)","v":{"$error":"#N/A"}},{"$f":"VLOOKUP(E146,ValidationLists!$1:$1048576,3,)","v":{"$error":"#N/A"}}]
[null,null,null,0,null,{"$f":"VLOOKUP(E147,ValidationLists!$1:$1048576,2,)","v":{"$error":"#N/A"}},{"$f":"VLOOKUP(E147,ValidationLists!$1:$1048576,4,)","v":{"$error":"#N/A"}},{"$f":"VLOOKUP(E147,ValidationLists!$1:$1048576,3,)","v":{"$error":"#N/A"}}]
[null,null,null,0,null,{"$f":"VLOOKUP(E148,ValidationLists!$1:$1048576,2,)","v":{"$error":"#N/A"}},{"$f":"VLOOKUP(E148,ValidationLists!$1:$1048576,4,)","v":{"$error":"#N/A"}},{"$f":"VLOOKUP(E148,ValidationLists!$1:$1048576,3,)","v":{"$error":"#N/A"}}]
[null,null,null,0,null,{"$f":"VLOOKUP(E149,ValidationLists!$1:$1048576,2,)","v":{"$error":"#N/A"}},{"$f":"VLOOKUP(E149,ValidationLists!$1:$1048576,4,)","v":{"$error":"#N/A"}},{"$f":"VLOOKUP(E149,ValidationLists!$1:$1048576,3,)","v":{"$error":"#N/A"}}]
[null,null,null,0,null,{"$f":"VLOOKUP(E150,ValidationLists!$1:$1048576,2,)","v":{"$error":"#N/A"}},{"$f":"VLOOKUP(E150,ValidationLists!$1:$1048576,4,)","v":{"$error":"#N/A"}},{"$f":"VLOOKUP(E150,ValidationLists!$1:$1048576,3,)","v":{"$error":"#N/A"}}]
[null,null,null,0,null,{"$f":"VLOOKUP(E151,ValidationLists!$1:$1048576,2,)","v":{"$error":"#N/A"}},{"$f":"VLOOKUP(E151,ValidationLists!$1:$1048576,4,)","v":{"$error":"#N/A"}},{"$f":"VLOOKUP(E151,ValidationLists!$1:$1048576,3,)","v":{"$error":"#N/A"}}]
[null,null,null,0,null,{"$f":"VLOOKUP(E152,ValidationLists!$1:$1048576,2,)","v":{"$error":"#N/A"}},{"$f":"VLOOKUP(E152,ValidationLists!$1:$1048576,4,)","v":{"$error":"#N/A"}},{"$f":"VLOOKUP(E152,ValidationLists!$1:$1048576,3,)","v":{"$error":"#N/A"}}]
[null,null,null,0,null,{"$f":"VLOOKUP(E153,ValidationLists!$1:$1048576,2,)","v":{"$error":"#N/A"}},{"$f":"VLOOKUP(E153,ValidationLists!$1:$1048576,4,)","v":{"$error":"#N/A"}},{"$f":"VLOOKUP(E153,ValidationLists!$1:$1048576,3,)","v":{"$error":"#N/A"}}]
[null,null,null,0,null,{"$f":"VLOOKUP(E154,ValidationLists!$1:$1048576,2,)","v":{"$error":"#N/A"}},{"$f":"VLOOKUP(E154,ValidationLists!$1:$1048576,4,)","v":{"$error":"#N/A"}},{"$f":"VLOOKUP(E154,ValidationLists!$1:$1048576,3,)","v":{"$error":"#N/A"}}]
[null,null,null,0,null,{"$f":"VLOOKUP(E155,ValidationLists!$1:$1048576,2,)","v":{"$error":"#N/A"}},{"$f":"VLOOKUP(E155,ValidationLists!$1:$1048576,4,)","v":{"$error":"#N/A"}},{"$f":"VLOOKUP(E155,ValidationLists!$1:$1048576,3,)","v":{"$error":"#N/A"}}]
[null,null,null,0,null,{"$f":"VLOOKUP(E156,ValidationLists!$1:$1048576,2,)","v":{"$error":"#N/A"}},{"$f":"VLOOKUP(E156,ValidationLists!$1:$1048576,4,)","v":{"$error":"#N/A"}},{"$f":"VLOOKUP(E156,ValidationLists!$1:$1048576,3,)","v":{"$error":"#N/A"}}]
[null,null,null,0,null,{"$f":"VLOOKUP(E157,ValidationLists!$1:$1048576,2,)","v":{"$error":"#N/A"}},{"$f":"VLOOKUP(E157,ValidationLists!$1:$1048576,4,)","v":{"$error":"#N/A"}},{"$f":"VLOOKUP(E157,ValidationLists!$1:$1048576,3,)","v":{"$error":"#N/A"}}]
[null,null,null,0,null,{"$f":"VLOOKUP(E158,ValidationLists!$1:$1048576,2,)","v":{"$error":"#N/A"}},{"$f":"VLOOKUP(E158,ValidationLists!$1:$1048576,4,)","v":{"$error":"#N/A"}},{"$f":"VLOOKUP(E158,ValidationLists!$1:$1048576,3,)","v":{"$error":"#N/A"}}]
[null,null,null,0,null,{"$f":"VLOOKUP(E159,ValidationLists!$1:$1048576,2,)","v":{"$error":"#N/A"}},{"$f":"VLOOKUP(E159,ValidationLists!$1:$1048576,4,)","v":{"$error":"#N/A"}},{"$f":"VLOOKUP(E159,ValidationLists!$1:$1048576,3,)","v":{"$error":"#N/A"}}]
[null,null,null,0,null,{"$f":"VLOOKUP(E160,ValidationLists!$1:$1048576,2,)","v":{"$error":"#N/A"}},{"$f":"VLOOKUP(E160,ValidationLists!$1:$1048576,4,)","v":{"$error":"#N/A"}},{"$f":"VLOOKUP(E160,ValidationLists!$1:$1048576,3,)","v":{"$error":"#N/A"}}]
[null,null,null,0,null,{"$f":"VLOOKUP(E161,ValidationLists!$1:$1048576,2,)","v":{"$error":"#N/A"}},{"$f":"VLOOKUP(E161,ValidationLists!$1:$1048576,4,)","v":{"$error":"#N/A"}},{"$f":"VLOOKUP(E161,ValidationLists!$1:$1048576,3,)","v":{"$error":"#N/A"}}]
[null,null,null,0,null,{"$f":"VLOOKUP(E162,ValidationLists!$1:$1048576,2,)","v":{"$error":"#N/A"}},{"$f":"VLOOKUP(E162,ValidationLists!$1:$1048576,4,)","v":{"$error":"#N/A"}},{"$f":"VLOOKUP(E162,ValidationLists!$1:$1048576,3,)","v":{"$error":"#N/A"}}]
[null,null,null,0,null,{"$f":"VLOOKUP(E163,ValidationLists!$1:$1048576,2,)","v":{"$error":"#N/A"}},{"$f":"VLOOKUP(E163,ValidationLists!$1:$1048576,4,)","v":{"$error":"#N/A"}},{"$f":"VLOOKUP(E163,ValidationLists!$1:$1048576,3,)","v":{"$error":"#N/A"}}]
[null,null,null,0,null,{"$f":"VLOOKUP(E164,ValidationLists!$1:$1048576,2,)","v":{"$error":"#N/A"}},{"$f":"VLOOKUP(E164,ValidationLists!$1:$1048576,4,)","v":{"$error":"#N/A"}},{"$f":"VLOOKUP(E164,ValidationLists!$1:$1048576,3,)","v":{"$error":"#N/A"}}]
[null,null,null,0,null,{"$f":"VLOOKUP(E165,ValidationLists!$1:$1048576,2,)","v":{"$error":"#N/A"}},{"$f":"VLOOKUP(E165,ValidationLists!$1:$1048576,4,)","v":{"$error":"#N/A"}},{"$f":"VLOOKUP(E165,ValidationLists!$1:$1048576,3,)","v":{"$error":"#N/A"}}]
[null,null,null,0,null,{"$f":"VLOOKUP(E166,ValidationLists!$1:$1048576,2,)","v":{"$error":"#N/A"}},{"$f":"VLOOKUP(E166,ValidationLists!$1:$1048576,4,)","v":{"$error":"#N/A"}},{"$f":"VLOOKUP(E166,ValidationLists!$1:$1048576,3,)","v":{"$error":"#N/A"}}]
[null,null,null,0,null,{"$f":"VLOOKUP(E167,ValidationLists!$1:$1048576,2,)","v":{"$error":"#N/A"}},{"$f":"VLOOKUP(E167,ValidationLists!$1:$1048576,4,)","v":{"$error":"#N/A"}},{"$f":"VLOOKUP(E167,ValidationLists!$1:$1048576,3,)","v":{"$error":"#N/A"}}]
[null,null,null,0,null,{"$f":"VLOOKUP(E168,ValidationLists!$1:$1048576,2,)","v":{"$error":"#N/A"}},{"$f":"VLOOKUP(E168,ValidationLists!$1:$1048576,4,)","v":{"$error":"#N/A"}},{"$f":"VLOOKUP(E168,ValidationLists!$1:$1048576,3,)","v":{"$error":"#N/A"}}]
[null,null,null,0,null,{"$f":"VLOOKUP(E169,ValidationLists!$1:$1048576,2,)","v":{"$error":"#N/A"}},{"$f":"VLOOKUP(E169,ValidationLists!$1:$1048576,4,)","v":{"$error":"#N/A"}},{"$f":"VLOOKUP(E169,ValidationLists!$1:$1048576,3,)","v":{"$error":"#N/A"}}]
[null,null,null,0,null,{"$f":"VLOOKUP(E170,ValidationLists!$1:$1048576,2,)","v":{"$error":"#N/A"}},{"$f":"VLOOKUP(E170,ValidationLists!$1:$1048576,4,)","v":{"$error":"#N/A"}},{"$f":"VLOOKUP(E170,ValidationLists!$1:$1048576,3,)","v":{"$error":"#N/A"}}]
[null,null,null,0,null,{"$f":"VLOOKUP(E171,ValidationLists!$1:$1048576,2,)","v":{"$error":"#N/A"}},{"$f":"VLOOKUP(E171,ValidationLists!$1:$1048576,4,)","v":{"$error":"#N/A"}},{"$f":"VLOOKUP(E171,ValidationLists!$1:$1048576,3,)","v":{"$error":"#N/A"}}]
[null,null,null,0,null,{"$f":"VLOOKUP(E172,ValidationLists!$1:$1048576,2,)","v":{"$error":"#N/A"}},{"$f":"VLOOKUP(E172,ValidationLists!$1:$1048576,4,)","v":{"$error":"#N/A"}},{"$f":"VLOOKUP(E172,ValidationLists!$1:$1048576,3,)","v":{"$error":"#N/A"}}]
[null,null,null,0,null,{"$f":"VLOOKUP(E173,ValidationLists!$1:$1048576,2,)","v":{"$error":"#N/A"}},{"$f":"VLOOKUP(E173,ValidationLists!$1:$1048576,4,)","v":{"$error":"#N/A"}},{"$f":"VLOOKUP(E173,ValidationLists!$1:$1048576,3,)","v":{"$error":"#N/A"}}]
[null,null,null,0,null,{"$f":"VLOOKUP(E174,ValidationLists!$1:$1048576,2,)","v":{"$error":"#N/A"}},{"$f":"VLOOKUP(E174,ValidationLists!$1:$1048576,4,)","v":{"$error":"#N/A"}},{"$f":"VLOOKUP(E174,ValidationLists!$1:$1048576,3,)","v":{"$error":"#N/A"}}]
[null,null,null,0,null,{"$f":"VLOOKUP(E175,ValidationLists!$1:$1048576,2,)","v":{"$error":"#N/A"}},{"$f":"VLOOKUP(E175,ValidationLists!$1:$1048576,4,)","v":{"$error":"#N/A"}},{"$f":"VLOOKUP(E175,ValidationLists!$1:$1048576,3,)","v":{"$error":"#N/A"}}]
[null,null,null,0,null,{"$f":"VLOOKUP(E176,ValidationLists!$1:$1048576,2,)","v":{"$error":"#N/A"}},{"$f":"VLOOKUP(E176,ValidationLists!$1:$1048576,4,)","v":{"$error":"#N/A"}},{"$f":"VLOOKUP(E176,ValidationLists!$1:$1048576,3,)","v":{"$error":"#N/A"}}]
[null,null,null,0,null,{"$f":"VLOOKUP(E177,ValidationLists!$1:$1048576,2,)","v":{"$error":"#N/A"}},{"$f":"VLOOKUP(E177,ValidationLists!$1:$1048576,4,)","v":{"$error":"#N/A"}},{"$f":"VLOOKUP(E177,ValidationLists!$1:$1048576,3,)","v":{"$error":"#N/A"}}]
[null,null,null,0,null,{"$f":"VLOOKUP(E178,ValidationLists!$1:$1048576,2,)","v":{"$error":"#N/A"}},{"$f":"VLOOKUP(E178,ValidationLists!$1:$1048576,4,)","v":{"$error":"#N/A"}},{"$f":"VLOOKUP(E178,ValidationLists!$1:$1048576,3,)","v":{"$error":"#N/A"}}]
[null,null,null,0,null,{"$f":"VLOOKUP(E179,ValidationLists!$1:$1048576,2,)","v":{"$error":"#N/A"}},{"$f":"VLOOKUP(E179,ValidationLists!$1:$1048576,4,)","v":{"$error":"#N/A"}},{"$f":"VLOOKUP(E179,ValidationLists!$1:$1048576,3,)","v":{"$error":"#N/A"}}]
[null,null,null,0,null,{"$f":"VLOOKUP(E180,ValidationLists!$1:$1048576,2,)","v":{"$error":"#N/A"}},{"$f":"VLOOKUP(E180,ValidationLists!$1:$1048576,4,)","v":{"$error":"#N/A"}},{"$f":"VLOOKUP(E180,ValidationLists!$1:$1048576,3,)","v":{"$error":"#N/A"}}]
[null,null,null,0,null,{"$f":"VLOOKUP(E181,ValidationLists!$1:$1048576,2,)","v":{"$error":"#N/A"}},{"$f":"VLOOKUP(E181,ValidationLists!$1:$1048576,4,)","v":{"$error":"#N/A"}},{"$f":"VLOOKUP(E181,ValidationLists!$1:$1048576,3,)","v":{"$error":"#N/A"}}]
[null,null,null,0,null,{"$f":"VLOOKUP(E182,ValidationLists!$1:$1048576,2,)","v":{"$error":"#N/A"}},{"$f":"VLOOKUP(E182,ValidationLists!$1:$1048576,4,)","v":{"$error":"#N/A"}},{"$f":"VLOOKUP(E182,ValidationLists!$1:$1048576,3,)","v":{"$error":"#N/A"}}]
[null,null,null,0,null,{"$f":"VLOOKUP(E183,ValidationLists!$1:$1048576,2,)","v":{"$error":"#N/A"}},{"$f":"VLOOKUP(E183,ValidationLists!$1:$1048576,4,)","v":{"$error":"#N/A"}},{"$f":"VLOOKUP(E183,ValidationLists!$1:$1048576,3,)","v":{"$error":"#N/A"}}]
[null,null,null,0,null,{"$f":"VLOOKUP(E184,ValidationLists!$1:$1048576,2,)","v":{"$error":"#N/A"}},{"$f":"VLOOKUP(E184,ValidationLists!$1:$1048576,4,)","v":{"$error":"#N/A"}},{"$f":"VLOOKUP(E184,ValidationLists!$1:$1048576,3,)","v":{"$error":"#N/A"}}]
[null,null,null,0,null,{"$f":"VLOOKUP(E185,ValidationLists!$1:$1048576,2,)","v":{"$error":"#N/A"}},{"$f":"VLOOKUP(E185,ValidationLists!$1:$1048576,4,)","v":{"$error":"#N/A"}},{"$f":"VLOOKUP(E185,ValidationLists!$1:$1048576,3,)","v":{"$error":"#N/A"}}]
[null,null,null,0,null,{"$f":"VLOOKUP(E186,ValidationLists!$1:$1048576,2,)","v":{"$error":"#N/A"}},{"$f":"VLOOKUP(E186,ValidationLists!$1:$1048576,4,)","v":{"$error":"#N/A"}},{"$f":"VLOOKUP(E186,ValidationLists!$1:$1048576,3,)","v":{"$error":"#N/A"}}]
[null,null,null,0,null,{"$f":"VLOOKUP(E187,ValidationLists!$1:$1048576,2,)","v":{"$error":"#N/A"}},{"$f":"VLOOKUP(E187,ValidationLists!$1:$1048576,4,)","v":{"$error":"#N/A"}},{"$f":"VLOOKUP(E187,ValidationLists!$1:$1048576,3,)","v":{"$error":"#N/A"}}]
[null,null,null,0,null,{"$f":"VLOOKUP(E188,ValidationLists!$1:$1048576,2,)","v":{"$error":"#N/A"}},{"$f":"VLOOKUP(E188,ValidationLists!$1:$1048576,4,)","v":{"$error":"#N/A"}},{"$f":"VLOOKUP(E188,ValidationLists!$1:$1048576,3,)","v":{"$error":"#N/A"}}]
[null,null,null,0,null,{"$f":"VLOOKUP(E189,ValidationLists!$1:$1048576,2,)","v":{"$error":"#N/A"}},{"$f":"VLOOKUP(E189,ValidationLists!$1:$1048576,4,)","v":{"$error":"#N/A"}},{"$f":"VLOOKUP(E189,ValidationLists!$1:$1048576,3,)","v":{"$error":"#N/A"}}]
[null,null,null,0,null,{"$f":"VLOOKUP(E190,ValidationLists!$1:$1048576,2,)","v":{"$error":"#N/A"}},{"$f":"VLOOKUP(E190,ValidationLists!$1:$1048576,4,)","v":{"$error":"#N/A"}},{"$f":"VLOOKUP(E190,ValidationLists!$1:$1048576,3,)","v":{"$error":"#N/A"}}]
[null,null,null,0,null,{"$f":"VLOOKUP(E191,ValidationLists!$1:$1048576,2,)","v":{"$error":"#N/A"}},{"$f":"VLOOKUP(E191,ValidationLists!$1:$1048576,4,)","v":{"$error":"#N/A"}},{"$f":"VLOOKUP(E191,ValidationLists!$1:$1048576,3,)","v":{"$error":"#N/A"}}]
[null,null,null,0,null,{"$f":"VLOOKUP(E192,ValidationLists!$1:$1048576,2,)","v":{"$error":"#N/A"}},{"$f":"VLOOKUP(E192,ValidationLists!$1:$1048576,4,)","v":{"$error":"#N/A"}},{"$f":"VLOOKUP(E192,ValidationLists!$1:$1048576,3,)","v":{"$error":"#N/A"}}]
[null,null,null,0,null,{"$f":"VLOOKUP(E193,ValidationLists!$1:$1048576,2,)","v":{"$error":"#N/A"}},{"$f":"VLOOKUP(E193,ValidationLists!$1:$1048576,4,)","v":{"$error":"#N/A"}},{"$f":"VLOOKUP(E193,ValidationLists!$1:$1048576,3,)","v":{"$error":"#N/A"}}]
[null,null,null,0,null,{"$f":"VLOOKUP(E194,ValidationLists!$1:$1048576,2,)","v":{"$error":"#N/A"}},{"$f":"VLOOKUP(E194,ValidationLists!$1:$1048576,4,)","v":{"$error":"#N/A"}},{"$f":"VLOOKUP(E194,ValidationLists!$1:$1048576,3,)","v":{"$error":"#N/A"}}]
[null,null,null,0,null,{"$f":"VLOOKUP(E195,ValidationLists!$1:$1048576,2,)","v":{"$error":"#N/A"}},{"$f":"VLOOKUP(E195,ValidationLists!$1:$1048576,4,)","v":{"$error":"#N/A"}},{"$f":"VLOOKUP(E195,ValidationLists!$1:$1048576,3,)","v":{"$error":"#N/A"}}]
[null,null,null,0,null,{"$f":"VLOOKUP(E196,ValidationLists!$1:$1048576,2,)","v":{"$error":"#N/A"}},{"$f":"VLOOKUP(E196,ValidationLists!$1:$1048576,4,)","v":{"$error":"#N/A"}},{"$f":"VLOOKUP(E196,ValidationLists!$1:$1048576,3,)","v":{"$error":"#N/A"}}]
[null,null,null,0,null,{"$f":"VLOOKUP(E197,ValidationLists!$1:$1048576,2,)","v":{"$error":"#N/A"}},{"$f":"VLOOKUP(E197,ValidationLists!$1:$1048576,4,)","v":{"$error":"#N/A"}},{"$f":"VLOOKUP(E197,ValidationLists!$1:$1048576,3,)","v":{"$error":"#N/A"}}]
[null,null,null,0,null,{"$f":"VLOOKUP(E198,ValidationLists!$1:$1048576,2,)","v":{"$error":"#N/A"}},{"$f":"VLOOKUP(E198,ValidationLists!$1:$1048576,4,)","v":{"$error":"#N/A"}},{"$f":"VLOOKUP(E198,ValidationLists!$1:$1048576,3,)","v":{"$error":"#N/A"}}]
[null,null,null,0,null,{"$f":"VLOOKUP(E199,ValidationLists!$1:$1048576,2,)","v":{"$error":"#N/A"}},{"$f":"VLOOKUP(E199,ValidationLists!$1:$1048576,4,)","v":{"$error":"#N/A"}},{"$f":"VLOOKUP(E199,ValidationLists!$1:$1048576,3,)","v":{"$error":"#N/A"}}]
[null,null,null,{"$f":"SUM(B200*C200)","v":0},null,{"$f":"VLOOKUP(E200,ValidationLists!$1:$1048576,2,)","v":{"$error":"#N/A"}},{"$f":"VLOOKUP(E200,ValidationLists!$1:$1048576,4,)","v":{"$error":"#N/A"}},{"$f":"VLOOKUP(E200,ValidationLists!$1:$1048576,3,)","v":{"$error":"#N/A"}}]
[null,null,null,0,null,{"$f":"VLOOKUP(E201,ValidationLists!$1:$1048576,2,)","v":{"$error":"#N/A"}},{"$f":"VLOOKUP(E201,ValidationLists!$1:$1048576,4,)","v":{"$error":"#N/A"}},{"$f":"VLOOKUP(E201,ValidationLists!$1:$1048576,3,)","v":{"$error":"#N/A"}}]
[null,null,null,0,null,{"$f":"VLOOKUP(E202,ValidationLists!$1:$1048576,2,)","v":{"$error":"#N/A"}},{"$f":"VLOOKUP(E202,ValidationLists!$1:$1048576,4,)","v":{"$error":"#N/A"}},{"$f":"VLOOKUP(E202,ValidationLists!$1:$1048576,3,)","v":{"$error":"#N/A"}}]
[null,null,null,0,null,{"$f":"VLOOKUP(E203,ValidationLists!$1:$1048576,2,)","v":{"$error":"#N/A"}},{"$f":"VLOOKUP(E203,ValidationLists!$1:$1048576,4,)","v":{"$error":"#N/A"}},{"$f":"VLOOKUP(E203,ValidationLists!$1:$1048576,3,)","v":{"$error":"#N/A"}}]
[null,null,null,0,null,{"$f":"VLOOKUP(E204,ValidationLists!$1:$1048576,2,)","v":{"$error":"#N/A"}},{"$f":"VLOOKUP(E204,ValidationLists!$1:$1048576,4,)","v":{"$error":"#N/A"}},{"$f":"VLOOKUP(E204,ValidationLists!$1:$1048576,3,)","v":{"$error":"#N/A"}}]
[null,null,null,0,null,{"$f":"VLOOKUP(E205,ValidationLists!$1:$1048576,2,)","v":{"$error":"#N/A"}},{"$f":"VLOOKUP(E205,ValidationLists!$1:$1048576,4,)","v":{"$error":"#N/A"}},{"$f":"VLOOKUP(E205,ValidationLists!$1:$1048576,3,)","v":{"$error":"#N/A"}}]
[null,null,null,0,null,{"$f":"VLOOKUP(E206,ValidationLists!$1:$1048576,2,)","v":{"$error":"#N/A"}},{"$f":"VLOOKUP(E206,ValidationLists!$1:$1048576,4,)","v":{"$error":"#N/A"}},{"$f":"VLOOKUP(E206,ValidationLists!$1:$1048576,3,)","v":{"$error":"#N/A"}}]
[null,null,null,0,null,{"$f":"VLOOKUP(E207,ValidationLists!$1:$1048576,2,)","v":{"$error":"#N/A"}},{"$f":"VLOOKUP(E207,ValidationLists!$1:$1048576,4,)","v":{"$error":"#N/A"}},{"$f":"VLOOKUP(E207,ValidationLists!$1:$1048576,3,)","v":{"$error":"#N/A"}}]
[null,null,null,0,null,{"$f":"VLOOKUP(E208,ValidationLists!$1:$1048576,2,)","v":{"$error":"#N/A"}},{"$f":"VLOOKUP(E208,ValidationLists!$1:$1048576,4,)","v":{"$error":"#N/A"}},{"$f":"VLOOKUP(E208,ValidationLists!$1:$1048576,3,)","v":{"$error":"#N/A"}}]
[null,null,null,0,null,{"$f":"VLOOKUP(E209,ValidationLists!$1:$1048576,2,)","v":{"$error":"#N/A"}},{"$f":"VLOOKUP(E209,ValidationLists!$1:$1048576,4,)","v":{"$error":"#N/A"}},{"$f":"VLOOKUP(E209,ValidationLists!$1:$1048576,3,)","v":{"$error":"#N/A"}}]
[null,null,null,0,null,{"$f":"VLOOKUP(E210,ValidationLists!$1:$1048576,2,)","v":{"$error":"#N/A"}},{"$f":"VLOOKUP(E210,ValidationLists!$1:$1048576,4,)","v":{"$error":"#N/A"}},{"$f":"VLOOKUP(E210,ValidationLists!$1:$1048576,3,)","v":{"$error":"#N/A"}}]
[null,null,null,0,null,{"$f":"VLOOKUP(E211,ValidationLists!$1:$1048576,2,)","v":{"$error":"#N/A"}},{"$f":"VLOOKUP(E211,ValidationLists!$1:$1048576,4,)","v":{"$error":"#N/A"}},{"$f":"VLOOKUP(E211,ValidationLists!$1:$1048576,3,)","v":{"$error":"#N/A"}}]
[null,null,null,0,null,{"$f":"VLOOKUP(E212,ValidationLists!$1:$1048576,2,)","v":{"$error":"#N/A"}},{"$f":"VLOOKUP(E212,ValidationLists!$1:$1048576,4,)","v":{"$error":"#N/A"}},{"$f":"VLOOKUP(E212,ValidationLists!$1:$1048576,3,)","v":{"$error":"#N/A"}}]
[null,null,null,0,null,{"$f":"VLOOKUP(E213,ValidationLists!$1:$1048576,2,)","v":{"$error":"#N/A"}},{"$f":"VLOOKUP(E213,ValidationLists!$1:$1048576,4,)","v":{"$error":"#N/A"}},{"$f":"VLOOKUP(E213,ValidationLists!$1:$1048576,3,)","v":{"$error":"#N/A"}}]
[null,null,null,0,null,{"$f":"VLOOKUP(E214,ValidationLists!$1:$1048576,2,)","v":{"$error":"#N/A"}},{"$f":"VLOOKUP(E214,ValidationLists!$1:$1048576,4,)","v":{"$error":"#N/A"}},{"$f":"VLOOKUP(E214,ValidationLists!$1:$1048576,3,)","v":{"$error":"#N/A"}}]
[null,null,null,0,null,{"$f":"VLOOKUP(E215,ValidationLists!$1:$1048576,2,)","v":{"$error":"#N/A"}},{"$f":"VLOOKUP(E215,ValidationLists!$1:$1048576,4,)","v":{"$error":"#N/A"}},{"$f":"VLOOKUP(E215,ValidationLists!$1:$1048576,3,)","v":{"$error":"#N/A"}}]
[null,null,null,0,null,{"$f":"VLOOKUP(E216,ValidationLists!$1:$1048576,2,)","v":{"$error":"#N/A"}},{"$f":"VLOOKUP(E216,ValidationLists!$1:$1048576,4,)","v":{"$error":"#N/A"}},{"$f":"VLOOKUP(E216,ValidationLists!$1:$1048576,3,)","v":{"$error":"#N/A"}}]
[null,null,null,0,null,{"$f":"VLOOKUP(E217,ValidationLists!$1:$1048576,2,)","v":{"$error":"#N/A"}},{"$f":"VLOOKUP(E217,ValidationLists!$1:$1048576,4,)","v":{"$error":"#N/A"}},{"$f":"VLOOKUP(E217,ValidationLists!$1:$1048576,3,)","v":{"$error":"#N/A"}}]
[null,null,null,0,null,{"$f":"VLOOKUP(E218,ValidationLists!$1:$1048576,2,)","v":{"$error":"#N/A"}},{"$f":"VLOOKUP(E218,ValidationLists!$1:$1048576,4,)","v":{"$error":"#N/A"}},{"$f":"VLOOKUP(E218,ValidationLists!$1:$1048576,3,)","v":{"$error":"#N/A"}}]
[null,null,null,0,null,{"$f":"VLOOKUP(E219,ValidationLists!$1:$1048576,2,)","v":{"$error":"#N/A"}},{"$f":"VLOOKUP(E219,ValidationLists!$1:$1048576,4,)","v":{"$error":"#N/A"}},{"$f":"VLOOKUP(E219,ValidationLists!$1:$1048576,3,)","v":{"$error":"#N/A"}}]
[null,null,null,0,null,{"$f":"VLOOKUP(E220,ValidationLists!$1:$1048576,2,)","v":{"$error":"#N/A"}},{"$f":"VLOOKUP(E220,ValidationLists!$1:$1048576,4,)","v":{"$error":"#N/A"}},{"$f":"VLOOKUP(E220,ValidationLists!$1:$1048576,3,)","v":{"$error":"#N/A"}}]
[null,null,null,0,null,{"$f":"VLOOKUP(E221,ValidationLists!$1:$1048576,2,)","v":{"$error":"#N/A"}},{"$f":"VLOOKUP(E221,ValidationLists!$1:$1048576,4,)","v":{"$error":"#N/A"}},{"$f":"VLOOKUP(E221,ValidationLists!$1:$1048576,3,)","v":{"$error":"#N/A"}}]
[null,null,null,0,null,{"$f":"VLOOKUP(E222,ValidationLists!$1:$1048576,2,)","v":{"$error":"#N/A"}},{"$f":"VLOOKUP(E222,ValidationLists!$1:$1048576,4,)","v":{"$error":"#N/A"}},{"$f":"VLOOKUP(E222,ValidationLists!$1:$1048576,3,)","v":{"$error":"#N/A"}}]
[null,null,null,0,null,{"$f":"VLOOKUP(E223,ValidationLists!$1:$1048576,2,)","v":{"$error":"#N/A"}},{"$f":"VLOOKUP(E223,ValidationLists!$1:$1048576,4,)","v":{"$error":"#N/A"}},{"$f":"VLOOKUP(E223,ValidationLists!$1:$1048576,3,)","v":{"$error":"#N/A"}}]
[null,null,null,0,null,{"$f":"VLOOKUP(E224,ValidationLists!$1:$1048576,2,)","v":{"$error":"#N/A"}},{"$f":"VLOOKUP(E224,ValidationLists!$1:$1048576,4,)","v":{"$error":"#N/A"}},{"$f":"VLOOKUP(E224,ValidationLists!$1:$1048576,3,)","v":{"$error":"#N/A"}}]
[null,null,null,0,null,{"$f":"VLOOKUP(E225,ValidationLists!$1:$1048576,2,)","v":{"$error":"#N/A"}},{"$f":"VLOOKUP(E225,ValidationLists!$1:$1048576,4,)","v":{"$error":"#N/A"}},{"$f":"VLOOKUP(E225,ValidationLists!$1:$1048576,3,)","v":{"$error":"#N/A"}}]
[null,null,null,0,null,{"$f":"VLOOKUP(E226,ValidationLists!$1:$1048576,2,)","v":{"$error":"#N/A"}},{"$f":"VLOOKUP(E226,ValidationLists!$1:$1048576,4,)","v":{"$error":"#N/A"}},{"$f":"VLOOKUP(E226,ValidationLists!$1:$1048576,3,)","v":{"$error":"#N/A"}}]
[null,null,null,0,null,{"$f":"VLOOKUP(E227,ValidationLists!$1:$1048576,2,)","v":{"$error":"#N/A"}},{"$f":"VLOOKUP(E227,ValidationLists!$1:$1048576,4,)","v":{"$error":"#N/A"}},{"$f":"VLOOKUP(E227,ValidationLists!$1:$1048576,3,)","v":{"$error":"#N/A"}}]
[null,null,null,0,null,{"$f":"VLOOKUP(E228,ValidationLists!$1:$1048576,2,)","v":{"$error":"#N/A"}},{"$f":"VLOOKUP(E228,ValidationLists!$1:$1048576,4,)","v":{"$error":"#N/A"}},{"$f":"VLOOKUP(E228,ValidationLists!$1:$1048576,3,)","v":{"$error":"#N/A"}}]
[null,null,null,0,null,{"$f":"VLOOKUP(E229,ValidationLists!$1:$1048576,2,)","v":{"$error":"#N/A"}},{"$f":"VLOOKUP(E229,ValidationLists!$1:$1048576,4,)","v":{"$error":"#N/A"}},{"$f":"VLOOKUP(E229,ValidationLists!$1:$1048576,3,)","v":{"$error":"#N/A"}}]
[null,null,null,0,null,{"$f":"VLOOKUP(E230,ValidationLists!$1:$1048576,2,)","v":{"$error":"#N/A"}},{"$f":"VLOOKUP(E230,ValidationLists!$1:$1048576,4,)","v":{"$error":"#N/A"}},{"$f":"VLOOKUP(E230,ValidationLists!$1:$1048576,3,)","v":{"$error":"#N/A"}}]
[null,null,null,0,null,{"$f":"VLOOKUP(E231,ValidationLists!$1:$1048576,2,)","v":{"$error":"#N/A"}},{"$f":"VLOOKUP(E231,ValidationLists!$1:$1048576,4,)","v":{"$error":"#N/A"}},{"$f":"VLOOKUP(E231,ValidationLists!$1:$1048576,3,)","v":{"$error":"#N/A"}}]
[null,null,null,0,null,{"$f":"VLOOKUP(E232,ValidationLists!$1:$1048576,2,)","v":{"$error":"#N/A"}},{"$f":"VLOOKUP(E232,ValidationLists!$1:$1048576,4,)","v":{"$error":"#N/A"}},{"$f":"VLOOKUP(E232,ValidationLists!$1:$1048576,3,)","v":{"$error":"#N/A"}}]
[null,null,null,0,null,{"$f":"VLOOKUP(E233,ValidationLists!$1:$1048576,2,)","v":{"$error":"#N/A"}},{"$f":"VLOOKUP(E233,ValidationLists!$1:$1048576,4,)","v":{"$error":"#N/A"}},{"$f":"VLOOKUP(E233,ValidationLists!$1:$1048576,3,)","v":{"$error":"#N/A"}}]
[null,null,null,0,null,{"$f":"VLOOKUP(E234,ValidationLists!$1:$1048576,2,)","v":{"$error":"#N/A"}},{"$f":"VLOOKUP(E234,ValidationLists!$1:$1048576,4,)","v":{"$error":"#N/A"}},{"$f":"VLOOKUP(E234,ValidationLists!$1:$1048576,3,)","v":{"$error":"#N/A"}}]
[null,null,null,0,null,{"$f":"VLOOKUP(E235,ValidationLists!$1:$1048576,2,)","v":{"$error":"#N/A"}},{"$f":"VLOOKUP(E235,ValidationLists!$1:$1048576,4,)","v":{"$error":"#N/A"}},{"$f":"VLOOKUP(E235,ValidationLists!$1:$1048576,3,)","v":{"$error":"#N/A"}}]
[null,null,null,0,null,{"$f":"VLOOKUP(E236,ValidationLists!$1:$1048576,2,)","v":{"$error":"#N/A"}},{"$f":"VLOOKUP(E236,ValidationLists!$1:$1048576,4,)","v":{"$error":"#N/A"}},{"$f":"VLOOKUP(E236,ValidationLists!$1:$1048576,3,)","v":{"$error":"#N/A"}}]
[null,null,null,0,null,{"$f":"VLOOKUP(E237,ValidationLists!$1:$1048576,2,)","v":{"$error":"#N/A"}},{"$f":"VLOOKUP(E237,ValidationLists!$1:$1048576,4,)","v":{"$error":"#N/A"}},{"$f":"VLOOKUP(E237,ValidationLists!$1:$1048576,3,)","v":{"$error":"#N/A"}}]
[null,null,null,0,null,{"$f":"VLOOKUP(E238,ValidationLists!$1:$1048576,2,)","v":{"$error":"#N/A"}},{"$f":"VLOOKUP(E238,ValidationLists!$1:$1048576,4,)","v":{"$error":"#N/A"}},{"$f":"VLOOKUP(E238,ValidationLists!$1:$1048576,3,)","v":{"$error":"#N/A"}}]
[null,null,null,0,null,{"$f":"VLOOKUP(E239,ValidationLists!$1:$1048576,2,)","v":{"$error":"#N/A"}},{"$f":"VLOOKUP(E239,ValidationLists!$1:$1048576,4,)","v":{"$error":"#N/A"}},{"$f":"VLOOKUP(E239,ValidationLists!$1:$1048576,3,)","v":{"$error":"#N/A"}}]
[null,null,null,0,null,{"$f":"VLOOKUP(E240,ValidationLists!$1:$1048576,2,)","v":{"$error":"#N/A"}},{"$f":"VLOOKUP(E240,ValidationLists!$1:$1048576,4,)","v":{"$error":"#N/A"}},{"$f":"VLOOKUP(E240,ValidationLists!$1:$1048576,3,)","v":{"$error":"#N/A"}}]
[null,null,null,0,null,{"$f":"VLOOKUP(E241,ValidationLists!$1:$1048576,2,)","v":{"$error":"#N/A"}},{"$f":"VLOOKUP(E241,ValidationLists!$1:$1048576,4,)","v":{"$error":"#N/A"}},{"$f":"VLOOKUP(E241,ValidationLists!$1:$1048576,3,)","v":{"$error":"#N/A"}}]
[null,null,null,0,null,{"$f":"VLOOKUP(E242,ValidationLists!$1:$1048576,2,)","v":{"$error":"#N/A"}},{"$f":"VLOOKUP(E242,ValidationLists!$1:$1048576,4,)","v":{"$error":"#N/A"}},{"$f":"VLOOKUP(E242,ValidationLists!$1:$1048576,3,)","v":{"$error":"#N/A"}}]
[null,null,null,0,null,{"$f":"VLOOKUP(E243,ValidationLists!$1:$1048576,2,)","v":{"$error":"#N/A"}},{"$f":"VLOOKUP(E243,ValidationLists!$1:$1048576,4,)","v":{"$error":"#N/A"}},{"$f":"VLOOKUP(E243,ValidationLists!$1:$1048576,3,)","v":{"$error":"#N/A"}}]
[null,null,null,0,null,{"$f":"VLOOKUP(E244,ValidationLists!$1:$1048576,2,)","v":{"$error":"#N/A"}},{"$f":"VLOOKUP(E244,ValidationLists!$1:$1048576,4,)","v":{"$error":"#N/A"}},{"$f":"VLOOKUP(E244,ValidationLists!$1:$1048576,3,)","v":{"$error":"#N/A"}}]
[null,null,null,0,null,{"$f":"VLOOKUP(E245,ValidationLists!$1:$1048576,2,)","v":{"$error":"#N/A"}},{"$f":"VLOOKUP(E245,ValidationLists!$1:$1048576,4,)","v":{"$error":"#N/A"}},{"$f":"VLOOKUP(E245,ValidationLists!$1:$1048576,3,)","v":{"$error":"#N/A"}}]
[null,null,null,0,null,{"$f":"VLOOKUP(E246,ValidationLists!$1:$1048576,2,)","v":{"$error":"#N/A"}},{"$f":"VLOOKUP(E246,ValidationLists!$1:$1048576,4,)","v":{"$error":"#N/A"}},{"$f":"VLOOKUP(E246,ValidationLists!$1:$1048576,3,)","v":{"$error":"#N/A"}}]
[null,null,null,0,null,{"$f":"VLOOKUP(E247,ValidationLists!$1:$1048576,2,)","v":{"$error":"#N/A"}},{"$f":"VLOOKUP(E247,ValidationLists!$1:$1048576,4,)","v":{"$error":"#N/A"}},{"$f":"VLOOKUP(E247,ValidationLists!$1:$1048576,3,)","v":{"$error":"#N/A"}}]
[null,null,null,0,null,{"$f":"VLOOKUP(E248,ValidationLists!$1:$1048576,2,)","v":{"$error":"#N/A"}},{"$f":"VLOOKUP(E248,ValidationLists!$1:$1048576,4,)","v":{"$error":"#N/A"}},{"$f":"VLOOKUP(E248,ValidationLists!$1:$1048576,3,)","v":{"$error":"#N/A"}}]
[null,null,null,0,null,{"$f":"VLOOKUP(E249,ValidationLists!$1:$1048576,2,)","v":{"$error":"#N/A"}},{"$f":"VLOOKUP(E249,ValidationLists!$1:$1048576,4,)","v":{"$error":"#N/A"}},{"$f":"VLOOKUP(E249,ValidationLists!$1:$1048576,3,)","v":{"$error":"#N/A"}}]
[null,null,null,0,null,{"$f":"VLOOKUP(E250,ValidationLists!$1:$1048576,2,)","v":{"$error":"#N/A"}},{"$f":"VLOOKUP(E250,ValidationLists!$1:$1048576,4,)","v":{"$error":"#N/A"}},{"$f":"VLOOKUP(E250,ValidationLists!$1:$1048576,3,)","v":{"$error":"#N/A"}}]
[null,null,null,0,null,{"$f":"VLOOKUP(E251,ValidationLists!$1:$1048576,2,)","v":{"$error":"#N/A"}},{"$f":"VLOOKUP(E251,ValidationLists!$1:$1048576,4,)","v":{"$error":"#N/A"}},{"$f":"VLOOKUP(E251,ValidationLists!$1:$1048576,3,)","v":{"$error":"#N/A"}}]
[null,null,null,0,null,{"$f":"VLOOKUP(E252,ValidationLists!$1:$1048576,2,)","v":{"$error":"#N/A"}},{"$f":"VLOOKUP(E252,ValidationLists!$1:$1048576,4,)","v":{"$error":"#N/A"}},{"$f":"VLOOKUP(E252,ValidationLists!$1:$1048576,3,)","v":{"$error":"#N/A"}}]
[null,null,null,0,null,{"$f":"VLOOKUP(E253,ValidationLists!$1:$1048576,2,)","v":{"$error":"#N/A"}},{"$f":"VLOOKUP(E253,ValidationLists!$1:$1048576,4,)","v":{"$error":"#N/A"}},{"$f":"VLOOKUP(E253,ValidationLists!$1:$1048576,3,)","v":{"$error":"#N/A"}}]
[null,null,null,0,null,{"$f":"VLOOKUP(E254,ValidationLists!$1:$1048576,2,)","v":{"$error":"#N/A"}},{"$f":"VLOOKUP(E254,ValidationLists!$1:$1048576,4,)","v":{"$error":"#N/A"}},{"$f":"VLOOKUP(E254,ValidationLists!$1:$1048576,3,)","v":{"$error":"#N/A"}}]
[null,null,null,0,null,{"$f":"VLOOKUP(E255,ValidationLists!$1:$1048576,2,)","v":{"$error":"#N/A"}},{"$f":"VLOOKUP(E255,ValidationLists!$1:$1048576,4,)","v":{"$error":"#N/A"}},{"$f":"VLOOKUP(E255,ValidationLists!$1:$1048576,3,)","v":{"$error":"#N/A"}}]
[null,null,null,0,null,{"$f":"VLOOKUP(E256,ValidationLists!$1:$1048576,2,)","v":{"$error":"#N/A"}},{"$f":"VLOOKUP(E256,ValidationLists!$1:$1048576,4,)","v":{"$error":"#N/A"}},{"$f":"VLOOKUP(E256,ValidationLists!$1:$1048576,3,)","v":{"$error":"#N/A"}}]
[null,null,null,0,null,{"$f":"VLOOKUP(E257,ValidationLists!$1:$1048576,2,)","v":{"$error":"#N/A"}},{"$f":"VLOOKUP(E257,ValidationLists!$1:$1048576,4,)","v":{"$error":"#N/A"}},{"$f":"VLOOKUP(E257,ValidationLists!$1:$1048576,3,)","v":{"$error":"#N/A"}}]
[null,null,null,0,null,{"$f":"VLOOKUP(E258,ValidationLists!$1:$1048576,2,)","v":{"$error":"#N/A"}},{"$f":"VLOOKUP(E258,ValidationLists!$1:$1048576,4,)","v":{"$error":"#N/A"}},{"$f":"VLOOKUP(E258,ValidationLists!$1:$1048576,3,)","v":{"$error":"#N/A"}}]
[null,null,null,0,null,{"$f":"VLOOKUP(E259,ValidationLists!$1:$1048576,2,)","v":{"$error":"#N/A"}},{"$f":"VLOOKUP(E259,ValidationLists!$1:$1048576,4,)","v":{"$error":"#N/A"}},{"$f":"VLOOKUP(E259,ValidationLists!$1:$1048576,3,)","v":{"$error":"#N/A"}}]
[null,null,null,0,null,{"$f":"VLOOKUP(E260,ValidationLists!$1:$1048576,2,)","v":{"$error":"#N/A"}},{"$f":"VLOOKUP(E260,ValidationLists!$1:$1048576,4,)","v":{"$error":"#N/A"}},{"$f":"VLOOKUP(E260,ValidationLists!$1:$1048576,3,)","v":{"$error":"#N/A"}}]
[null,null,null,0,null,{"$f":"VLOOKUP(E261,ValidationLists!$1:$1048576,2,)","v":{"$error":"#N/A"}},{"$f":"VLOOKUP(E261,ValidationLists!$1:$1048576,4,)","v":{"$error":"#N/A"}},{"$f":"VLOOKUP(E261,ValidationLists!$1:$1048576,3,)","v":{"$error":"#N/A"}}]
[null,null,null,0,null,{"$f":"VLOOKUP(E262,ValidationLists!$1:$1048576,2,)","v":{"$error":"#N/A"}},{"$f":"VLOOKUP(E262,ValidationLists!$1:$1048576,4,)","v":{"$error":"#N/A"}},{"$f":"VLOOKUP(E262,ValidationLists!$1:$1048576,3,)","v":{"$error":"#N/A"}}]
[null,null,null,0,null,{"$f":"VLOOKUP(E263,ValidationLists!$1:$1048576,2,)","v":{"$error":"#N/A"}},{"$f":"VLOOKUP(E263,ValidationLists!$1:$1048576,4,)","v":{"$error":"#N/A"}},{"$f":"VLOOKUP(E263,ValidationLists!$1:$1048576,3,)","v":{"$error":"#N/A"}}]
[null,null,null,{"$f":"SUM(B264*C264)","v":0},null,{"$f":"VLOOKUP(E264,ValidationLists!$1:$1048576,2,)","v":{"$error":"#N/A"}},{"$f":"VLOOKUP(E264,ValidationLists!$1:$1048576,4,)","v":{"$error":"#N/A"}},{"$f":"VLOOKUP(E264,ValidationLists!$1:$1048576,3,)","v":{"$error":"#N/A"}}]
[null,null,null,0,null,{"$f":"VLOOKUP(E265,ValidationLists!$1:$1048576,2,)","v":{"$error":"#N/A"}},{"$f":"VLOOKUP(E265,ValidationLists!$1:$1048576,4,)","v":{"$error":"#N/A"}},{"$f":"VLOOKUP(E265,ValidationLists!$1:$1048576,3,)","v":{"$error":"#N/A"}}]
[null,null,null,0,null,{"$f":"VLOOKUP(E266,ValidationLists!$1:$1048576,2,)","v":{"$error":"#N/A"}},{"$f":"VLOOKUP(E266,ValidationLists!$1:$1048576,4,)","v":{"$error":"#N/A"}},{"$f":"VLOOKUP(E266,ValidationLists!$1:$1048576,3,)","v":{"$error":"#N/A"}}]
[null,null,null,0,null,{"$f":"VLOOKUP(E267,ValidationLists!$1:$1048576,2,)","v":{"$error":"#N/A"}},{"$f":"VLOOKUP(E267,ValidationLists!$1:$1048576,4,)","v":{"$error":"#N/A"}},{"$f":"VLOOKUP(E267,ValidationLists!$1:$1048576,3,)","v":{"$error":"#N/A"}}]
[null,null,null,0,null,{"$f":"VLOOKUP(E268,ValidationLists!$1:$1048576,2,)","v":{"$error":"#N/A"}},{"$f":"VLOOKUP(E268,ValidationLists!$1:$1048576,4,)","v":{"$error":"#N/A"}},{"$f":"VLOOKUP(E268,ValidationLists!$1:$1048576,3,)","v":{"$error":"#N/A"}}]
[null,null,null,0,null,{"$f":"VLOOKUP(E269,ValidationLists!$1:$1048576,2,)","v":{"$error":"#N/A"}},{"$f":"VLOOKUP(E269,ValidationLists!$1:$1048576,4,)","v":{"$error":"#N/A"}},{"$f":"VLOOKUP(E269,ValidationLists!$1:$1048576,3,)","v":{"$error":"#N/A"}}]
[null,null,null,0,null,{"$f":"VLOOKUP(E270,ValidationLists!$1:$1048576,2,)","v":{"$error":"#N/A"}},{"$f":"VLOOKUP(E270,ValidationLists!$1:$1048576,4,)","v":{"$error":"#N/A"}},{"$f":"VLOOKUP(E270,ValidationLists!$1:$1048576,3,)","v":{"$error":"#N/A"}}]
[null,null,null,0,null,{"$f":"VLOOKUP(E271,ValidationLists!$1:$1048576,2,)","v":{"$error":"#N/A"}},{"$f":"VLOOKUP(E271,ValidationLists!$1:$1048576,4,)","v":{"$error":"#N/A"}},{"$f":"VLOOKUP(E271,ValidationLists!$1:$1048576,3,)","v":{"$error":"#N/A"}}]
[null,null,null,0,null,{"$f":"VLOOKUP(E272,ValidationLists!$1:$1048576,2,)","v":{"$error":"#N/A"}},{"$f":"VLOOKUP(E272,ValidationLists!$1:$1048576,4,)","v":{"$error":"#N/A"}},{"$f":"VLOOKUP(E272,ValidationLists!$1:$1048576,3,)","v":{"$error":"#N/A"}}]
[null,null,null,0,null,{"$f":"VLOOKUP(E273,ValidationLists!$1:$1048576,2,)","v":{"$error":"#N/A"}},{"$f":"VLOOKUP(E273,ValidationLists!$1:$1048576,4,)","v":{"$error":"#N/A"}},{"$f":"VLOOKUP(E273,ValidationLists!$1:$1048576,3,)","v":{"$error":"#N/A"}}]
[null,null,null,0,null,{"$f":"VLOOKUP(E274,ValidationLists!$1:$1048576,2,)","v":{"$error":"#N/A"}},{"$f":"VLOOKUP(E274,ValidationLists!$1:$1048576,4,)","v":{"$error":"#N/A"}},{"$f":"VLOOKUP(E274,ValidationLists!$1:$1048576,3,)","v":{"$error":"#N/A"}}]
[null,null,null,0,null,{"$f":"VLOOKUP(E275,ValidationLists!$1:$1048576,2,)","v":{"$error":"#N/A"}},{"$f":"VLOOKUP(E275,ValidationLists!$1:$1048576,4,)","v":{"$error":"#N/A"}},{"$f":"VLOOKUP(E275,ValidationLists!$1:$1048576,3,)","v":{"$error":"#N/A"}}]
[null,null,null,0,null,{"$f":"VLOOKUP(E276,ValidationLists!$1:$1048576,2,)","v":{"$error":"#N/A"}},{"$f":"VLOOKUP(E276,ValidationLists!$1:$1048576,4,)","v":{"$error":"#N/A"}},{"$f":"VLOOKUP(E276,ValidationLists!$1:$1048576,3,)","v":{"$error":"#N/A"}}]
[null,null,null,0,null,{"$f":"VLOOKUP(E277,ValidationLists!$1:$1048576,2,)","v":{"$error":"#N/A"}},{"$f":"VLOOKUP(E277,ValidationLists!$1:$1048576,4,)","v":{"$error":"#N/A"}},{"$f":"VLOOKUP(E277,ValidationLists!$1:$1048576,3,)","v":{"$error":"#N/A"}}]
[null,null,null,0,null,{"$f":"VLOOKUP(E278,ValidationLists!$1:$1048576,2,)","v":{"$error":"#N/A"}},{"$f":"VLOOKUP(E278,ValidationLists!$1:$1048576,4,)","v":{"$error":"#N/A"}},{"$f":"VLOOKUP(E278,ValidationLists!$1:$1048576,3,)","v":{"$error":"#N/A"}}]
[null,null,null,0,null,{"$f":"VLOOKUP(E279,ValidationLists!$1:$1048576,2,)","v":{"$error":"#N/A"}},{"$f":"VLOOKUP(E279,ValidationLists!$1:$1048576,4,)","v":{"$error":"#N/A"}},{"$f":"VLOOKUP(E279,ValidationLists!$1:$1048576,3,)","v":{"$error":"#N/A"}}]
[null,null,null,0,null,{"$f":"VLOOKUP(E280,ValidationLists!$1:$1048576,2,)","v":{"$error":"#N/A"}},{"$f":"VLOOKUP(E280,ValidationLists!$1:$1048576,4,)","v":{"$error":"#N/A"}},{"$f":"VLOOKUP(E280,ValidationLists!$1:$1048576,3,)","v":{"$error":"#N/A"}}]
[null,null,null,0,null,{"$f":"VLOOKUP(E281,ValidationLists!$1:$1048576,2,)","v":{"$error":"#N/A"}},{"$f":"VLOOKUP(E281,ValidationLists!$1:$1048576,4,)","v":{"$error":"#N/A"}},{"$f":"VLOOKUP(E281,ValidationLists!$1:$1048576,3,)","v":{"$error":"#N/A"}}]
[null,null,null,0,null,{"$f":"VLOOKUP(E282,ValidationLists!$1:$1048576,2,)","v":{"$error":"#N/A"}},{"$f":"VLOOKUP(E282,ValidationLists!$1:$1048576,4,)","v":{"$error":"#N/A"}},{"$f":"VLOOKUP(E282,ValidationLists!$1:$1048576,3,)","v":{"$error":"#N/A"}}]
[null,null,null,0,null,{"$f":"VLOOKUP(E283,ValidationLists!$1:$1048576,2,)","v":{"$error":"#N/A"}},{"$f":"VLOOKUP(E283,ValidationLists!$1:$1048576,4,)","v":{"$error":"#N/A"}},{"$f":"VLOOKUP(E283,ValidationLists!$1:$1048576,3,)","v":{"$error":"#N/A"}}]
[null,null,null,0,null,{"$f":"VLOOKUP(E284,ValidationLists!$1:$1048576,2,)","v":{"$error":"#N/A"}},{"$f":"VLOOKUP(E284,ValidationLists!$1:$1048576,4,)","v":{"$error":"#N/A"}},{"$f":"VLOOKUP(E284,ValidationLists!$1:$1048576,3,)","v":{"$error":"#N/A"}}]
[null,null,null,0,null,{"$f":"VLOOKUP(E285,ValidationLists!$1:$1048576,2,)","v":{"$error":"#N/A"}},{"$f":"VLOOKUP(E285,ValidationLists!$1:$1048576,4,)","v":{"$error":"#N/A"}},{"$f":"VLOOKUP(E285,ValidationLists!$1:$1048576,3,)","v":{"$error":"#N/A"}}]
[null,null,null,0,null,{"$f":"VLOOKUP(E286,ValidationLists!$1:$1048576,2,)","v":{"$error":"#N/A"}},{"$f":"VLOOKUP(E286,ValidationLists!$1:$1048576,4,)","v":{"$error":"#N/A"}},{"$f":"VLOOKUP(E286,ValidationLists!$1:$1048576,3,)","v":{"$error":"#N/A"}}]
[null,null,null,0,null,{"$f":"VLOOKUP(E287,ValidationLists!$1:$1048576,2,)","v":{"$error":"#N/A"}},{"$f":"VLOOKUP(E287,ValidationLists!$1:$1048576,4,)","v":{"$error":"#N/A"}},{"$f":"VLOOKUP(E287,ValidationLists!$1:$1048576,3,)","v":{"$error":"#N/A"}}]
[null,null,null,0,null,{"$f":"VLOOKUP(E288,ValidationLists!$1:$1048576,2,)","v":{"$error":"#N/A"}},{"$f":"VLOOKUP(E288,ValidationLists!$1:$1048576,4,)","v":{"$error":"#N/A"}},{"$f":"VLOOKUP(E288,ValidationLists!$1:$1048576,3,)","v":{"$error":"#N/A"}}]
[null,null,null,0,null,{"$f":"VLOOKUP(E289,ValidationLists!$1:$1048576,2,)","v":{"$error":"#N/A"}},{"$f":"VLOOKUP(E289,ValidationLists!$1:$1048576,4,)","v":{"$error":"#N/A"}},{"$f":"VLOOKUP(E289,ValidationLists!$1:$1048576,3,)","v":{"$error":"#N/A"}}]
[null,null,null,0,null,{"$f":"VLOOKUP(E290,ValidationLists!$1:$1048576,2,)","v":{"$error":"#N/A"}},{"$f":"VLOOKUP(E290,ValidationLists!$1:$1048576,4,)","v":{"$error":"#N/A"}},{"$f":"VLOOKUP(E290,ValidationLists!$1:$1048576,3,)","v":{"$error":"#N/A"}}]
[null,null,null,0,null,{"$f":"VLOOKUP(E291,ValidationLists!$1:$1048576,2,)","v":{"$error":"#N/A"}},{"$f":"VLOOKUP(E291,ValidationLists!$1:$1048576,4,)","v":{"$error":"#N/A"}},{"$f":"VLOOKUP(E291,ValidationLists!$1:$1048576,3,)","v":{"$error":"#N/A"}}]
[null,null,null,0,null,{"$f":"VLOOKUP(E292,ValidationLists!$1:$1048576,2,)","v":{"$error":"#N/A"}},{"$f":"VLOOKUP(E292,ValidationLists!$1:$1048576,4,)","v":{"$error":"#N/A"}},{"$f":"VLOOKUP(E292,ValidationLists!$1:$1048576,3,)","v":{"$error":"#N/A"}}]
[null,null,null,0,null,{"$f":"VLOOKUP(E293,ValidationLists!$1:$1048576,2,)","v":{"$error":"#N/A"}},{"$f":"VLOOKUP(E293,ValidationLists!$1:$1048576,4,)","v":{"$error":"#N/A"}},{"$f":"VLOOKUP(E293,ValidationLists!$1:$1048576,3,)","v":{"$error":"#N/A"}}]
[null,null,null,0,null,{"$f":"VLOOKUP(E294,ValidationLists!$1:$1048576,2,)","v":{"$error":"#N/A"}},{"$f":"VLOOKUP(E294,ValidationLists!$1:$1048576,4,)","v":{"$error":"#N/A"}},{"$f":"VLOOKUP(E294,ValidationLists!$1:$1048576,3,)","v":{"$error":"#N/A"}}]
[null,null,null,0,null,{"$f":"VLOOKUP(E295,ValidationLists!$1:$1048576,2,)","v":{"$error":"#N/A"}},{"$f":"VLOOKUP(E295,ValidationLists!$1:$1048576,4,)","v":{"$error":"#N/A"}},{"$f":"VLOOKUP(E295,ValidationLists!$1:$1048576,3,)","v":{"$error":"#N/A"}}]
[null,null,null,0,null,{"$f":"VLOOKUP(E296,ValidationLists!$1:$1048576,2,)","v":{"$error":"#N/A"}},{"$f":"VLOOKUP(E296,ValidationLists!$1:$1048576,4,)","v":{"$error":"#N/A"}},{"$f":"VLOOKUP(E296,ValidationLists!$1:$1048576,3,)","v":{"$error":"#N/A"}}]
[null,null,null,0,null,{"$f":"VLOOKUP(E297,ValidationLists!$1:$1048576,2,)","v":{"$error":"#N/A"}},{"$f":"VLOOKUP(E297,ValidationLists!$1:$1048576,4,)","v":{"$error":"#N/A"}},{"$f":"VLOOKUP(E297,ValidationLists!$1:$1048576,3,)","v":{"$error":"#N/A"}}]
[null,null,null,0,null,{"$f":"VLOOKUP(E298,ValidationLists!$1:$1048576,2,)","v":{"$error":"#N/A"}},{"$f":"VLOOKUP(E298,ValidationLists!$1:$1048576,4,)","v":{"$error":"#N/A"}},{"$f":"VLOOKUP(E298,ValidationLists!$1:$1048576,3,)","v":{"$error":"#N/A"}}]
[null,null,null,0,null,{"$f":"VLOOKUP(E299,ValidationLists!$1:$1048576,2,)","v":{"$error":"#N/A"}},{"$f":"VLOOKUP(E299,ValidationLists!$1:$1048576,4,)","v":{"$error":"#N/A"}},{"$f":"VLOOKUP(E299,ValidationLists!$1:$1048576,3,)","v":{"$error":"#N/A"}}]
[null,null,null,0,null,{"$f":"VLOOKUP(E300,ValidationLists!$1:$1048576,2,)","v":{"$error":"#N/A"}},{"$f":"VLOOKUP(E300,ValidationLists!$1:$1048576,4,)","v":{"$error":"#N/A"}},{"$f":"VLOOKUP(E300,ValidationLists!$1:$1048576,3,)","v":{"$error":"#N/A"}}]
[null,null,null,0,null,{"$f":"VLOOKUP(E301,ValidationLists!$1:$1048576,2,)","v":{"$error":"#N/A"}},{"$f":"VLOOKUP(E301,ValidationLists!$1:$1048576,4,)","v":{"$error":"#N/A"}},{"$f":"VLOOKUP(E301,ValidationLists!$1:$1048576,3,)","v":{"$error":"#N/A"}}]
[null,null,null,0,null,{"$f":"VLOOKUP(E302,ValidationLists!$1:$1048576,2,)","v":{"$error":"#N/A"}},{"$f":"VLOOKUP(E302,ValidationLists!$1:$1048576,4,)","v":{"$error":"#N/A"}},{"$f":"VLOOKUP(E302,ValidationLists!$1:$1048576,3,)","v":{"$error":"#N/A"}}]
[null,null,null,0,null,{"$f":"VLOOKUP(E303,ValidationLists!$1:$1048576,2,)","v":{"$error":"#N/A"}},{"$f":"VLOOKUP(E303,ValidationLists!$1:$1048576,4,)","v":{"$error":"#N/A"}},{"$f":"VLOOKUP(E303,ValidationLists!$1:$1048576,3,)","v":{"$error":"#N/A"}}]
[null,null,null,0,null,{"$f":"VLOOKUP(E304,ValidationLists!$1:$1048576,2,)","v":{"$error":"#N/A"}},{"$f":"VLOOKUP(E304,ValidationLists!$1:$1048576,4,)","v":{"$error":"#N/A"}},{"$f":"VLOOKUP(E304,ValidationLists!$1:$1048576,3,)","v":{"$error":"#N/A"}}]
[null,null,null,0,null,{"$f":"VLOOKUP(E305,ValidationLists!$1:$1048576,2,)","v":{"$error":"#N/A"}},{"$f":"VLOOKUP(E305,ValidationLists!$1:$1048576,4,)","v":{"$error":"#N/A"}},{"$f":"VLOOKUP(E305,ValidationLists!$1:$1048576,3,)","v":{"$error":"#N/A"}}]
[null,null,null,0,null,{"$f":"VLOOKUP(E306,ValidationLists!$1:$1048576,2,)","v":{"$error":"#N/A"}},{"$f":"VLOOKUP(E306,ValidationLists!$1:$1048576,4,)","v":{"$error":"#N/A"}},{"$f":"VLOOKUP(E306,ValidationLists!$1:$1048576,3,)","v":{"$error":"#N/A"}}]
[null,null,null,0,null,{"$f":"VLOOKUP(E307,ValidationLists!$1:$1048576,2,)","v":{"$error":"#N/A"}},{"$f":"VLOOKUP(E307,ValidationLists!$1:$1048576,4,)","v":{"$error":"#N/A"}},{"$f":"VLOOKUP(E307,ValidationLists!$1:$1048576,3,)","v":{"$error":"#N/A"}}]
[null,null,null,0,null,{"$f":"VLOOKUP(E308,ValidationLists!$1:$1048576,2,)","v":{"$error":"#N/A"}},{"$f":"VLOOKUP(E308,ValidationLists!$1:$1048576,4,)","v":{"$error":"#N/A"}},{"$f":"VLOOKUP(E308,ValidationLists!$1:$1048576,3,)","v":{"$error":"#N/A"}}]
[null,null,null,0,null,{"$f":"VLOOKUP(E309,ValidationLists!$1:$1048576,2,)","v":{"$error":"#N/A"}},{"$f":"VLOOKUP(E309,ValidationLists!$1:$1048576,4,)","v":{"$error":"#N/A"}},{"$f":"VLOOKUP(E309,ValidationLists!$1:$1048576,3,)","v":{"$error":"#N/A"}}]
[null,null,null,0,null,{"$f":"VLOOKUP(E310,ValidationLists!$1:$1048576,2,)","v":{"$error":"#N/A"}},{"$f":"VLOOKUP(E310,ValidationLists!$1:$1048576,4,)","v":{"$error":"#N/A"}},{"$f":"VLOOKUP(E310,ValidationLists!$1:$1048576,3,)","v":{"$error":"#N/A"}}]
[null,null,null,0,null,{"$f":"VLOOKUP(E311,ValidationLists!$1:$1048576,2,)","v":{"$error":"#N/A"}},{"$f":"VLOOKUP(E311,ValidationLists!$1:$1048576,4,)","v":{"$error":"#N/A"}},{"$f":"VLOOKUP(E311,ValidationLists!$1:$1048576,3,)","v":{"$error":"#N/A"}}]
[null,null,null,0,null,{"$f":"VLOOKUP(E312,ValidationLists!$1:$1048576,2,)","v":{"$error":"#N/A"}},{"$f":"VLOOKUP(E312,ValidationLists!$1:$1048576,4,)","v":{"$error":"#N/A"}},{"$f":"VLOOKUP(E312,ValidationLists!$1:$1048576,3,)","v":{"$error":"#N/A"}}]
[null,null,null,0,null,{"$f":"VLOOKUP(E313,ValidationLists!$1:$1048576,2,)","v":{"$error":"#N/A"}},{"$f":"VLOOKUP(E313,ValidationLists!$1:$1048576,4,)","v":{"$error":"#N/A"}},{"$f":"VLOOKUP(E313,ValidationLists!$1:$1048576,3,)","v":{"$error":"#N/A"}}]
[null,null,null,0,null,{"$f":"VLOOKUP(E314,ValidationLists!$1:$1048576,2,)","v":{"$error":"#N/A"}},{"$f":"VLOOKUP(E314,ValidationLists!$1:$1048576,4,)","v":{"$error":"#N/A"}},{"$f":"VLOOKUP(E314,ValidationLists!$1:$1048576,3,)","v":{"$error":"#N/A"}}]
[null,null,null,0,null,{"$f":"VLOOKUP(E315,ValidationLists!$1:$1048576,2,)","v":{"$error":"#N/A"}},{"$f":"VLOOKUP(E315,ValidationLists!$1:$1048576,4,)","v":{"$error":"#N/A"}},{"$f":"VLOOKUP(E315,ValidationLists!$1:$1048576,3,)","v":{"$error":"#N/A"}}]
[null,null,null,0,null,{"$f":"VLOOKUP(E316,ValidationLists!$1:$1048576,2,)","v":{"$error":"#N/A"}},{"$f":"VLOOKUP(E316,ValidationLists!$1:$1048576,4,)","v":{"$error":"#N/A"}},{"$f":"VLOOKUP(E316,ValidationLists!$1:$1048576,3,)","v":{"$error":"#N/A"}}]
[null,null,null,0,null,{"$f":"VLOOKUP(E317,ValidationLists!$1:$1048576,2,)","v":{"$error":"#N/A"}},{"$f":"VLOOKUP(E317,ValidationLists!$1:$1048576,4,)","v":{"$error":"#N/A"}},{"$f":"VLOOKUP(E317,ValidationLists!$1:$1048576,3,)","v":{"$error":"#N/A"}}]
[null,null,null,0,null,{"$f":"VLOOKUP(E318,ValidationLists!$1:$1048576,2,)","v":{"$error":"#N/A"}},{"$f":"VLOOKUP(E318,ValidationLists!$1:$1048576,4,)","v":{"$error":"#N/A"}},{"$f":"VLOOKUP(E318,ValidationLists!$1:$1048576,3,)","v":{"$error":"#N/A"}}]
[null,null,null,0,null,{"$f":"VLOOKUP(E319,ValidationLists!$1:$1048576,2,)","v":{"$error":"#N/A"}},{"$f":"VLOOKUP(E319,ValidationLists!$1:$1048576,4,)","v":{"$error":"#N/A"}},{"$f":"VLOOKUP(E319,ValidationLists!$1:$1048576,3,)","v":{"$error":"#N/A"}}]
[null,null,null,0,null,{"$f":"VLOOKUP(E320,ValidationLists!$1:$1048576,2,)","v":{"$error":"#N/A"}},{"$f":"VLOOKUP(E320,ValidationLists!$1:$1048576,4,)","v":{"$error":"#N/A"}},{"$f":"VLOOKUP(E320,ValidationLists!$1:$1048576,3,)","v":{"$error":"#N/A"}}]
[null,null,null,0,null,{"$f":"VLOOKUP(E321,ValidationLists!$1:$1048576,2,)","v":{"$error":"#N/A"}},{"$f":"VLOOKUP(E321,ValidationLists!$1:$1048576,4,)","v":{"$error":"#N/A"}},{"$f":"VLOOKUP(E321,ValidationLists!$1:$1048576,3,)","v":{"$error":"#N/A"}}]
[null,null,null,0,null,{"$f":"VLOOKUP(E322,ValidationLists!$1:$1048576,2,)","v":{"$error":"#N/A"}},{"$f":"VLOOKUP(E322,ValidationLists!$1:$1048576,4,)","v":{"$error":"#N/A"}},{"$f":"VLOOKUP(E322,ValidationLists!$1:$1048576,3,)","v":{"$error":"#N/A"}}]
[null,null,null,0,null,{"$f":"VLOOKUP(E323,ValidationLists!$1:$1048576,2,)","v":{"$error":"#N/A"}},{"$f":"VLOOKUP(E323,ValidationLists!$1:$1048576,4,)","v":{"$error":"#N/A"}},{"$f":"VLOOKUP(E323,ValidationLists!$1:$1048576,3,)","v":{"$error":"#N/A"}}]
[null,null,null,0,null,{"$f":"VLOOKUP(E324,ValidationLists!$1:$1048576,2,)","v":{"$error":"#N/A"}},{"$f":"VLOOKUP(E324,ValidationLists!$1:$1048576,4,)","v":{"$error":"#N/A"}},{"$f":"VLOOKUP(E324,ValidationLists!$1:$1048576,3,)","v":{"$error":"#N/A"}}]
[null,null,null,0,null,{"$f":"VLOOKUP(E325,ValidationLists!$1:$1048576,2,)","v":{"$error":"#N/A"}},{"$f":"VLOOKUP(E325,ValidationLists!$1:$1048576,4,)","v":{"$error":"#N/A"}},{"$f":"VLOOKUP(E325,ValidationLists!$1:$1048576,3,)","v":{"$error":"#N/A"}}]
[null,null,null,0,null,{"$f":"VLOOKUP(E326,ValidationLists!$1:$1048576,2,)","v":{"$error":"#N/A"}},{"$f":"VLOOKUP(E326,ValidationLists!$1:$1048576,4,)","v":{"$error":"#N/A"}},{"$f":"VLOOKUP(E326,ValidationLists!$1:$1048576,3,)","v":{"$error":"#N/A"}}]
[null,null,null,0,null,{"$f":"VLOOKUP(E327,ValidationLists!$1:$1048576,2,)","v":{"$error":"#N/A"}},{"$f":"VLOOKUP(E327,ValidationLists!$1:$1048576,4,)","v":{"$error":"#N/A"}},{"$f":"VLOOKUP(E327,ValidationLists!$1:$1048576,3,)","v":{"$error":"#N/A"}}]
[null,null,null,{"$f":"SUM(B328*C328)","v":0},null,{"$f":"VLOOKUP(E328,ValidationLists!$1:$1048576,2,)","v":{"$error":"#N/A"}},{"$f":"VLOOKUP(E328,ValidationLists!$1:$1048576,4,)","v":{"$error":"#N/A"}},{"$f":"VLOOKUP(E328,ValidationLists!$1:$1048576,3,)","v":{"$error":"#N/A"}}]
[null,null,null,0,null,{"$f":"VLOOKUP(E329,ValidationLists!$1:$1048576,2,)","v":{"$error":"#N/A"}},{"$f":"VLOOKUP(E329,ValidationLists!$1:$1048576,4,)","v":{"$error":"#N/A"}},{"$f":"VLOOKUP(E329,ValidationLists!$1:$1048576,3,)","v":{"$error":"#N/A"}}]
[null,null,null,0,null,{"$f":"VLOOKUP(E330,ValidationLists!$1:$1048576,2,)","v":{"$error":"#N/A"}},{"$f":"VLOOKUP(E330,ValidationLists!$1:$1048576,4,)","v":{"$error":"#N/A"}},{"$f":"VLOOKUP(E330,ValidationLists!$1:$1048576,3,)","v":{"$error":"#N/A"}}]
[null,null,null,0,null,{"$f":"VLOOKUP(E331,ValidationLists!$1:$1048576,2,)","v":{"$error":"#N/A"}},{"$f":"VLOOKUP(E331,ValidationLists!$1:$1048576,4,)","v":{"$error":"#N/A"}},{"$f":"VLOOKUP(E331,ValidationLists!$1:$1048576,3,)","v":{"$error":"#N/A"}}]
[null,null,null,0,null,{"$f":"VLOOKUP(E332,ValidationLists!$1:$1048576,2,)","v":{"$error":"#N/A"}},{"$f":"VLOOKUP(E332,ValidationLists!$1:$1048576,4,)","v":{"$error":"#N/A"}},{"$f":"VLOOKUP(E332,ValidationLists!$1:$1048576,3,)","v":{"$error":"#N/A"}}]
[null,null,null,0,null,{"$f":"VLOOKUP(E333,ValidationLists!$1:$1048576,2,)","v":{"$error":"#N/A"}},{"$f":"VLOOKUP(E333,ValidationLists!$1:$1048576,4,)","v":{"$error":"#N/A"}},{"$f":"VLOOKUP(E333,ValidationLists!$1:$1048576,3,)","v":{"$error":"#N/A"}}]
[null,null,null,0,null,{"$f":"VLOOKUP(E334,ValidationLists!$1:$1048576,2,)","v":{"$error":"#N/A"}},{"$f":"VLOOKUP(E334,ValidationLists!$1:$1048576,4,)","v":{"$error":"#N/A"}},{"$f":"VLOOKUP(E334,ValidationLists!$1:$1048576,3,)","v":{"$error":"#N/A"}}]
[null,null,null,0,null,{"$f":"VLOOKUP(E335,ValidationLists!$1:$1048576,2,)","v":{"$error":"#N/A"}},{"$f":"VLOOKUP(E335,ValidationLists!$1:$1048576,4,)","v":{"$error":"#N/A"}},{"$f":"VLOOKUP(E335,ValidationLists!$1:$1048576,3,)","v":{"$error":"#N/A"}}]
[null,null,null,0,null,{"$f":"VLOOKUP(E336,ValidationLists!$1:$1048576,2,)","v":{"$error":"#N/A"}},{"$f":"VLOOKUP(E336,ValidationLists!$1:$1048576,4,)","v":{"$error":"#N/A"}},{"$f":"VLOOKUP(E336,ValidationLists!$1:$1048576,3,)","v":{"$error":"#N/A"}}]
[null,null,null,0,null,{"$f":"VLOOKUP(E337,ValidationLists!$1:$1048576,2,)","v":{"$error":"#N/A"}},{"$f":"VLOOKUP(E337,ValidationLists!$1:$1048576,4,)","v":{"$error":"#N/A"}},{"$f":"VLOOKUP(E337,ValidationLists!$1:$1048576,3,)","v":{"$error":"#N/A"}}]
[null,null,null,0,null,{"$f":"VLOOKUP(E338,ValidationLists!$1:$1048576,2,)","v":{"$error":"#N/A"}},{"$f":"VLOOKUP(E338,ValidationLists!$1:$1048576,4,)","v":{"$error":"#N/A"}},{"$f":"VLOOKUP(E338,ValidationLists!$1:$1048576,3,)","v":{"$error":"#N/A"}}]
[null,null,null,0,null,{"$f":"VLOOKUP(E339,ValidationLists!$1:$1048576,2,)","v":{"$error":"#N/A"}},{"$f":"VLOOKUP(E339,ValidationLists!$1:$1048576,4,)","v":{"$error":"#N/A"}},{"$f":"VLOOKUP(E339,ValidationLists!$1:$1048576,3,)","v":{"$error":"#N/A"}}]
[null,null,null,0,null,{"$f":"VLOOKUP(E340,ValidationLists!$1:$1048576,2,)","v":{"$error":"#N/A"}},{"$f":"VLOOKUP(E340,ValidationLists!$1:$1048576,4,)","v":{"$error":"#N/A"}},{"$f":"VLOOKUP(E340,ValidationLists!$1:$1048576,3,)","v":{"$error":"#N/A"}}]
[null,null,null,0,null,{"$f":"VLOOKUP(E341,ValidationLists!$1:$1048576,2,)","v":{"$error":"#N/A"}},{"$f":"VLOOKUP(E341,ValidationLists!$1:$1048576,4,)","v":{"$error":"#N/A"}},{"$f":"VLOOKUP(E341,ValidationLists!$1:$1048576,3,)","v":{"$error":"#N/A"}}]
[null,null,null,0,null,{"$f":"VLOOKUP(E342,ValidationLists!$1:$1048576,2,)","v":{"$error":"#N/A"}},{"$f":"VLOOKUP(E342,ValidationLists!$1:$1048576,4,)","v":{"$error":"#N/A"}},{"$f":"VLOOKUP(E342,ValidationLists!$1:$1048576,3,)","v":{"$error":"#N/A"}}]
[null,null,null,0,null,{"$f":"VLOOKUP(E343,ValidationLists!$1:$1048576,2,)","v":{"$error":"#N/A"}},{"$f":"VLOOKUP(E343,ValidationLists!$1:$1048576,4,)","v":{"$error":"#N/A"}},{"$f":"VLOOKUP(E343,ValidationLists!$1:$1048576,3,)","v":{"$error":"#N/A"}}]
[null,null,null,0,null,{"$f":"VLOOKUP(E344,ValidationLists!$1:$1048576,2,)","v":{"$error":"#N/A"}},{"$f":"VLOOKUP(E344,ValidationLists!$1:$1048576,4,)","v":{"$error":"#N/A"}},{"$f":"VLOOKUP(E344,ValidationLists!$1:$1048576,3,)","v":{"$error":"#N/A"}}]
[null,null,null,0,null,{"$f":"VLOOKUP(E345,ValidationLists!$1:$1048576,2,)","v":{"$error":"#N/A"}},{"$f":"VLOOKUP(E345,ValidationLists!$1:$1048576,4,)","v":{"$error":"#N/A"}},{"$f":"VLOOKUP(E345,ValidationLists!$1:$1048576,3,)","v":{"$error":"#N/A"}}]
[null,null,null,0,null,{"$f":"VLOOKUP(E346,ValidationLists!$1:$1048576,2,)","v":{"$error":"#N/A"}},{"$f":"VLOOKUP(E346,ValidationLists!$1:$1048576,4,)","v":{"$error":"#N/A"}},{"$f":"VLOOKUP(E346,ValidationLists!$1:$1048576,3,)","v":{"$error":"#N/A"}}]
[null,null,null,0,null,{"$f":"VLOOKUP(E347,ValidationLists!$1:$1048576,2,)","v":{"$error":"#N/A"}},{"$f":"VLOOKUP(E347,ValidationLists!$1:$1048576,4,)","v":{"$error":"#N/A"}},{"$f":"VLOOKUP(E347,ValidationLists!$1:$1048576,3,)","v":{"$error":"#N/A"}}]
[null,null,null,0,null,{"$f":"VLOOKUP(E348,ValidationLists!$1:$1048576,2,)","v":{"$error":"#N/A"}},{"$f":"VLOOKUP(E348,ValidationLists!$1:$1048576,4,)","v":{"$error":"#N/A"}},{"$f":"VLOOKUP(E348,ValidationLists!$1:$1048576,3,)","v":{"$error":"#N/A"}}]
[null,null,null,0,null,{"$f":"VLOOKUP(E349,ValidationLists!$1:$1048576,2,)","v":{"$error":"#N/A"}},{"$f":"VLOOKUP(E349,ValidationLists!$1:$1048576,4,)","v":{"$error":"#N/A"}},{"$f":"VLOOKUP(E349,ValidationLists!$1:$1048576,3,)","v":{"$error":"#N/A"}}]
[null,null,null,0,null,{"$f":"VLOOKUP(E350,ValidationLists!$1:$1048576,2,)","v":{"$error":"#N/A"}},{"$f":"VLOOKUP(E350,ValidationLists!$1:$1048576,4,)","v":{"$error":"#N/A"}},{"$f":"VLOOKUP(E350,ValidationLists!$1:$1048576,3,)","v":{"$error":"#N/A"}}]
[null,null,null,0,null,{"$f":"VLOOKUP(E351,ValidationLists!$1:$1048576,2,)","v":{"$error":"#N/A"}},{"$f":"VLOOKUP(E351,ValidationLists!$1:$1048576,4,)","v":{"$error":"#N/A"}},{"$f":"VLOOKUP(E351,ValidationLists!$1:$1048576,3,)","v":{"$error":"#N/A"}}]
[null,null,null,0,null,{"$f":"VLOOKUP(E352,ValidationLists!$1:$1048576,2,)","v":{"$error":"#N/A"}},{"$f":"VLOOKUP(E352,ValidationLists!$1:$1048576,4,)","v":{"$error":"#N/A"}},{"$f":"VLOOKUP(E352,ValidationLists!$1:$1048576,3,)","v":{"$error":"#N/A"}}]
[null,null,null,0,null,{"$f":"VLOOKUP(E353,ValidationLists!$1:$1048576,2,)","v":{"$error":"#N/A"}},{"$f":"VLOOKUP(E353,ValidationLists!$1:$1048576,4,)","v":{"$error":"#N/A"}},{"$f":"VLOOKUP(E353,ValidationLists!$1:$1048576,3,)","v":{"$error":"#N/A"}}]
[null,null,null,0,null,{"$f":"VLOOKUP(E354,ValidationLists!$1:$1048576,2,)","v":{"$error":"#N/A"}},{"$f":"VLOOKUP(E354,ValidationLists!$1:$1048576,4,)","v":{"$error":"#N/A"}},{"$f":"VLOOKUP(E354,ValidationLists!$1:$1048576,3,)","v":{"$error":"#N/A"}}]
[null,null,null,0,null,{"$f":"VLOOKUP(E355,ValidationLists!$1:$1048576,2,)","v":{"$error":"#N/A"}},{"$f":"VLOOKUP(E355,ValidationLists!$1:$1048576,4,)","v":{"$error":"#N/A"}},{"$f":"VLOOKUP(E355,ValidationLists!$1:$1048576,3,)","v":{"$error":"#N/A"}}]
[null,null,null,0,null,{"$f":"VLOOKUP(E356,ValidationLists!$1:$1048576,2,)","v":{"$error":"#N/A"}},{"$f":"VLOOKUP(E356,ValidationLists!$1:$1048576,4,)","v":{"$error":"#N/A"}},{"$f":"VLOOKUP(E356,ValidationLists!$1:$1048576,3,)","v":{"$error":"#N/A"}}]
[null,null,null,0,null,{"$f":"VLOOKUP(E357,ValidationLists!$1:$1048576,2,)","v":{"$error":"#N/A"}},{"$f":"VLOOKUP(E357,ValidationLists!$1:$1048576,4,)","v":{"$error":"#N/A"}},{"$f":"VLOOKUP(E357,ValidationLists!$1:$1048576,3,)","v":{"$error":"#N/A"}}]
[null,null,null,0,null,{"$f":"VLOOKUP(E358,ValidationLists!$1:$1048576,2,)","v":{"$error":"#N/A"}},{"$f":"VLOOKUP(E358,ValidationLists!$1:$1048576,4,)","v":{"$error":"#N/A"}},{"$f":"VLOOKUP(E358,ValidationLists!$1:$1048576,3,)","v":{"$error":"#N/A"}}]
[null,null,null,0,null,{"$f":"VLOOKUP(E359,ValidationLists!$1:$1048576,2,)","v":{"$error":"#N/A"}},{"$f":"VLOOKUP(E359,ValidationLists!$1:$1048576,4,)","v":{"$error":"#N/A"}},{"$f":"VLOOKUP(E359,ValidationLists!$1:$1048576,3,)","v":{"$error":"#N/A"}}]
[null,null,null,0,null,{"$f":"VLOOKUP(E360,ValidationLists!$1:$1048576,2,)","v":{"$error":"#N/A"}},{"$f":"VLOOKUP(E360,ValidationLists!$1:$1048576,4,)","v":{"$error":"#N/A"}},{"$f":"VLOOKUP(E360,ValidationLists!$1:$1048576,3,)","v":{"$error":"#N/A"}}]
[null,null,null,0,null,{"$f":"VLOOKUP(E361,ValidationLists!$1:$1048576,2,)","v":{"$error":"#N/A"}},{"$f":"VLOOKUP(E361,ValidationLists!$1:$1048576,4,)","v":{"$error":"#N/A"}},{"$f":"VLOOKUP(E361,ValidationLists!$1:$1048576,3,)","v":{"$error":"#N/A"}}]
[null,null,null,0,null,{"$f":"VLOOKUP(E362,ValidationLists!$1:$1048576,2,)","v":{"$error":"#N/A"}},{"$f":"VLOOKUP(E362,ValidationLists!$1:$1048576,4,)","v":{"$error":"#N/A"}},{"$f":"VLOOKUP(E362,ValidationLists!$1:$1048576,3,)","v":{"$error":"#N/A"}}]
[null,null,null,0,null,{"$f":"VLOOKUP(E363,ValidationLists!$1:$1048576,2,)","v":{"$error":"#N/A"}},{"$f":"VLOOKUP(E363,ValidationLists!$1:$1048576,4,)","v":{"$error":"#N/A"}},{"$f":"VLOOKUP(E363,ValidationLists!$1:$1048576,3,)","v":{"$error":"#N/A"}}]
[null,null,null,0,null,{"$f":"VLOOKUP(E364,ValidationLists!$1:$1048576,2,)","v":{"$error":"#N/A"}},{"$f":"VLOOKUP(E364,ValidationLists!$1:$1048576,4,)","v":{"$error":"#N/A"}},{"$f":"VLOOKUP(E364,ValidationLists!$1:$1048576,3,)","v":{"$error":"#N/A"}}]
[null,null,null,0,null,{"$f":"VLOOKUP(E365,ValidationLists!$1:$1048576,2,)","v":{"$error":"#N/A"}},{"$f":"VLOOKUP(E365,ValidationLists!$1:$1048576,4,)","v":{"$error":"#N/A"}},{"$f":"VLOOKUP(E365,ValidationLists!$1:$1048576,3,)","v":{"$error":"#N/A"}}]
[null,null,null,0,null,{"$f":"VLOOKUP(E366,ValidationLists!$1:$1048576,2,)","v":{"$error":"#N/A"}},{"$f":"VLOOKUP(E366,ValidationLists!$1:$1048576,4,)","v":{"$error":"#N/A"}},{"$f":"VLOOKUP(E366,ValidationLists!$1:$1048576,3,)","v":{"$error":"#N/A"}}]
[null,null,null,0,null,{"$f":"VLOOKUP(E367,ValidationLists!$1:$1048576,2,)","v":{"$error":"#N/A"}},{"$f":"VLOOKUP(E367,ValidationLists!$1:$1048576,4,)","v":{"$error":"#N/A"}},{"$f":"VLOOKUP(E367,ValidationLists!$1:$1048576,3,)","v":{"$error":"#N/A"}}]
[null,null,null,0,null,{"$f":"VLOOKUP(E368,ValidationLists!$1:$1048576,2,)","v":{"$error":"#N/A"}},{"$f":"VLOOKUP(E368,ValidationLists!$1:$1048576,4,)","v":{"$error":"#N/A"}},{"$f":"VLOOKUP(E368,ValidationLists!$1:$1048576,3,)","v":{"$error":"#N/A"}}]
[null,null,null,0,null,{"$f":"VLOOKUP(E369,ValidationLists!$1:$1048576,2,)","v":{"$error":"#N/A"}},{"$f":"VLOOKUP(E369,ValidationLists!$1:$1048576,4,)","v":{"$error":"#N/A"}},{"$f":"VLOOKUP(E369,ValidationLists!$1:$1048576,3,)","v":{"$error":"#N/A"}}]
[null,null,null,0,null,{"$f":"VLOOKUP(E370,ValidationLists!$1:$1048576,2,)","v":{"$error":"#N/A"}},{"$f":"VLOOKUP(E370,ValidationLists!$1:$1048576,4,)","v":{"$error":"#N/A"}},{"$f":"VLOOKUP(E370,ValidationLists!$1:$1048576,3,)","v":{"$error":"#N/A"}}]
[null,null,null,0,null,{"$f":"VLOOKUP(E371,ValidationLists!$1:$1048576,2,)","v":{"$error":"#N/A"}},{"$f":"VLOOKUP(E371,ValidationLists!$1:$1048576,4,)","v":{"$error":"#N/A"}},{"$f":"VLOOKUP(E371,ValidationLists!$1:$1048576,3,)","v":{"$error":"#N/A"}}]
[null,null,null,0,null,{"$f":"VLOOKUP(E372,ValidationLists!$1:$1048576,2,)","v":{"$error":"#N/A"}},{"$f":"VLOOKUP(E372,ValidationLists!$1:$1048576,4,)","v":{"$error":"#N/A"}},{"$f":"VLOOKUP(E372,ValidationLists!$1:$1048576,3,)","v":{"$error":"#N/A"}}]
[null,null,null,0,null,{"$f":"VLOOKUP(E373,ValidationLists!$1:$1048576,2,)","v":{"$error":"#N/A"}},{"$f":"VLOOKUP(E373,ValidationLists!$1:$1048576,4,)","v":{"$error":"#N/A"}},{"$f":"VLOOKUP(E373,ValidationLists!$1:$1048576,3,)","v":{"$error":"#N/A"}}]
[null,null,null,0,null,{"$f":"VLOOKUP(E374,ValidationLists!$1:$1048576,2,)","v":{"$error":"#N/A"}},{"$f":"VLOOKUP(E374,ValidationLists!$1:$1048576,4,)","v":{"$error":"#N/A"}},{"$f":"VLOOKUP(E374,ValidationLists!$1:$1048576,3,)","v":{"$error":"#N/A"}}]
[null,null,null,0,null,{"$f":"VLOOKUP(E375,ValidationLists!$1:$1048576,2,)","v":{"$error":"#N/A"}},{"$f":"VLOOKUP(E375,ValidationLists!$1:$1048576,4,)","v":{"$error":"#N/A"}},{"$f":"VLOOKUP(E375,ValidationLists!$1:$1048576,3,)","v":{"$error":"#N/A"}}]
[null,null,null,0,null,{"$f":"VLOOKUP(E376,ValidationLists!$1:$1048576,2,)","v":{"$error":"#N/A"}},{"$f":"VLOOKUP(E376,ValidationLists!$1:$1048576,4,)","v":{"$error":"#N/A"}},{"$f":"VLOOKUP(E376,ValidationLists!$1:$1048576,3,)","v":{"$error":"#N/A"}}]
[null,null,null,0,null,{"$f":"VLOOKUP(E377,ValidationLists!$1:$1048576,2,)","v":{"$error":"#N/A"}},{"$f":"VLOOKUP(E377,ValidationLists!$1:$1048576,4,)","v":{"$error":"#N/A"}},{"$f":"VLOOKUP(E377,ValidationLists!$1:$1048576,3,)","v":{"$error":"#N/A"}}]
[null,null,null,0,null,{"$f":"VLOOKUP(E378,ValidationLists!$1:$1048576,2,)","v":{"$error":"#N/A"}},{"$f":"VLOOKUP(E378,ValidationLists!$1:$1048576,4,)","v":{"$error":"#N/A"}},{"$f":"VLOOKUP(E378,ValidationLists!$1:$1048576,3,)","v":{"$error":"#N/A"}}]
[null,null,null,0,null,{"$f":"VLOOKUP(E379,ValidationLists!$1:$1048576,2,)","v":{"$error":"#N/A"}},{"$f":"VLOOKUP(E379,ValidationLists!$1:$1048576,4,)","v":{"$error":"#N/A"}},{"$f":"VLOOKUP(E379,ValidationLists!$1:$1048576,3,)","v":{"$error":"#N/A"}}]
[null,null,null,0,null,{"$f":"VLOOKUP(E380,ValidationLists!$1:$1048576,2,)","v":{"$error":"#N/A"}},{"$f":"VLOOKUP(E380,ValidationLists!$1:$1048576,4,)","v":{"$error":"#N/A"}},{"$f":"VLOOKUP(E380,ValidationLists!$1:$1048576,3,)","v":{"$error":"#N/A"}}]
[null,null,null,0,null,{"$f":"VLOOKUP(E381,ValidationLists!$1:$1048576,2,)","v":{"$error":"#N/A"}},{"$f":"VLOOKUP(E381,ValidationLists!$1:$1048576,4,)","v":{"$error":"#N/A"}},{"$f":"VLOOKUP(E381,ValidationLists!$1:$1048576,3,)","v":{"$error":"#N/A"}}]
[null,null,null,0,null,{"$f":"VLOOKUP(E382,ValidationLists!$1:$1048576,2,)","v":{"$error":"#N/A"}},{"$f":"VLOOKUP(E382,ValidationLists!$1:$1048576,4,)","v":{"$error":"#N/A"}},{"$f":"VLOOKUP(E382,ValidationLists!$1:$1048576,3,)","v":{"$error":"#N/A"}}]
[null,null,null,0,null,{"$f":"VLOOKUP(E383,ValidationLists!$1:$1048576,2,)","v":{"$error":"#N/A"}},{"$f":"VLOOKUP(E383,ValidationLists!$1:$1048576,4,)","v":{"$error":"#N/A"}},{"$f":"VLOOKUP(E383,ValidationLists!$1:$1048576,3,)","v":{"$error":"#N/A"}}]
[null,null,null,0,null,{"$f":"VLOOKUP(E384,ValidationLists!$1:$1048576,2,)","v":{"$error":"#N/A"}},{"$f":"VLOOKUP(E384,ValidationLists!$1:$1048576,4,)","v":{"$error":"#N/A"}},{"$f":"VLOOKUP(E384,ValidationLists!$1:$1048576,3,)","v":{"$error":"#N/A"}}]
[null,null,null,0,null,{"$f":"VLOOKUP(E385,ValidationLists!$1:$1048576,2,)","v":{"$error":"#N/A"}},{"$f":"VLOOKUP(E385,ValidationLists!$1:$1048576,4,)","v":{"$error":"#N/A"}},{"$f":"VLOOKUP(E385,ValidationLists!$1:$1048576,3,)","v":{"$error":"#N/A"}}]
[null,null,null,0,null,{"$f":"VLOOKUP(E386,ValidationLists!$1:$1048576,2,)","v":{"$error":"#N/A"}},{"$f":"VLOOKUP(E386,ValidationLists!$1:$1048576,4,)","v":{"$error":"#N/A"}},{"$f":"VLOOKUP(E386,ValidationLists!$1:$1048576,3,)","v":{"$error":"#N/A"}}]
[null,null,null,0,null,{"$f":"VLOOKUP(E387,ValidationLists!$1:$1048576,2,)","v":{"$error":"#N/A"}},{"$f":"VLOOKUP(E387,ValidationLists!$1:$1048576,4,)","v":{"$error":"#N/A"}},{"$f":"VLOOKUP(E387,ValidationLists!$1:$1048576,3,)","v":{"$error":"#N/A"}}]
[null,null,null,0,null,{"$f":"VLOOKUP(E388,ValidationLists!$1:$1048576,2,)","v":{"$error":"#N/A"}},{"$f":"VLOOKUP(E388,ValidationLists!$1:$1048576,4,)","v":{"$error":"#N/A"}},{"$f":"VLOOKUP(E388,ValidationLists!$1:$1048576,3,)","v":{"$error":"#N/A"}}]
[null,null,null,0,null,{"$f":"VLOOKUP(E389,ValidationLists!$1:$1048576,2,)","v":{"$error":"#N/A"}},{"$f":"VLOOKUP(E389,ValidationLists!$1:$1048576,4,)","v":{"$error":"#N/A"}},{"$f":"VLOOKUP(E389,ValidationLists!$1:$1048576,3,)","v":{"$error":"#N/A"}}]
[null,null,null,0,null,{"$f":"VLOOKUP(E390,ValidationLists!$1:$1048576,2,)","v":{"$error":"#N/A"}},{"$f":"VLOOKUP(E390,ValidationLists!$1:$1048576,4,)","v":{"$error":"#N/A"}},{"$f":"VLOOKUP(E390,ValidationLists!$1:$1048576,3,)","v":{"$error":"#N/A"}}]
[null,null,null,0,null,{"$f":"VLOOKUP(E391,ValidationLists!$1:$1048576,2,)","v":{"$error":"#N/A"}},{"$f":"VLOOKUP(E391,ValidationLists!$1:$1048576,4,)","v":{"$error":"#N/A"}},{"$f":"VLOOKUP(E391,ValidationLists!$1:$1048576,3,)","v":{"$error":"#N/A"}}]
[null,null,null,{"$f":"SUM(B392*C392)","v":0},null,{"$f":"VLOOKUP(E392,ValidationLists!$1:$1048576,2,)","v":{"$error":"#N/A"}},{"$f":"VLOOKUP(E392,ValidationLists!$1:$1048576,4,)","v":{"$error":"#N/A"}},{"$f":"VLOOKUP(E392,ValidationLists!$1:$1048576,3,)","v":{"$error":"#N/A"}}]
[null,null,null,0,null,{"$f":"VLOOKUP(E393,ValidationLists!$1:$1048576,2,)","v":{"$error":"#N/A"}},{"$f":"VLOOKUP(E393,ValidationLists!$1:$1048576,4,)","v":{"$error":"#N/A"}},{"$f":"VLOOKUP(E393,ValidationLists!$1:$1048576,3,)","v":{"$error":"#N/A"}}]
[null,null,null,0,null,{"$f":"VLOOKUP(E394,ValidationLists!$1:$1048576,2,)","v":{"$error":"#N/A"}},{"$f":"VLOOKUP(E394,ValidationLists!$1:$1048576,4,)","v":{"$error":"#N/A"}},{"$f":"VLOOKUP(E394,ValidationLists!$1:$1048576,3,)","v":{"$error":"#N/A"}}]
[null,null,null,0,null,{"$f":"VLOOKUP(E395,ValidationLists!$1:$1048576,2,)","v":{"$error":"#N/A"}},{"$f":"VLOOKUP(E395,ValidationLists!$1:$1048576,4,)","v":{"$error":"#N/A"}},{"$f":"VLOOKUP(E395,ValidationLists!$1:$1048576,3,)","v":{"$error":"#N/A"}}]
[null,null,null,0,null,{"$f":"VLOOKUP(E396,ValidationLists!$1:$1048576,2,)","v":{"$error":"#N/A"}},{"$f":"VLOOKUP(E396,ValidationLists!$1:$1048576,4,)","v":{"$error":"#N/A"}},{"$f":"VLOOKUP(E396,ValidationLists!$1:$1048576,3,)","v":{"$error":"#N/A"}}]
[null,null,null,0,null,{"$f":"VLOOKUP(E397,ValidationLists!$1:$1048576,2,)","v":{"$error":"#N/A"}},{"$f":"VLOOKUP(E397,ValidationLists!$1:$1048576,4,)","v":{"$error":"#N/A"}},{"$f":"VLOOKUP(E397,ValidationLists!$1:$1048576,3,)","v":{"$error":"#N/A"}}]
[null,null,null,0,null,{"$f":"VLOOKUP(E398,ValidationLists!$1:$1048576,2,)","v":{"$error":"#N/A"}},{"$f":"VLOOKUP(E398,ValidationLists!$1:$1048576,4,)","v":{"$error":"#N/A"}},{"$f":"VLOOKUP(E398,ValidationLists!$1:$1048576,3,)","v":{"$error":"#N/A"}}]
[null,null,null,0,null,{"$f":"VLOOKUP(E399,ValidationLists!$1:$1048576,2,)","v":{"$error":"#N/A"}},{"$f":"VLOOKUP(E399,ValidationLists!$1:$1048576,4,)","v":{"$error":"#N/A"}},{"$f":"VLOOKUP(E399,ValidationLists!$1:$1048576,3,)","v":{"$error":"#N/A"}}]
[null,null,null,0,null,{"$f":"VLOOKUP(E400,ValidationLists!$1:$1048576,2,)","v":{"$error":"#N/A"}},{"$f":"VLOOKUP(E400,ValidationLists!$1:$1048576,4,)","v":{"$error":"#N/A"}},{"$f":"VLOOKUP(E400,ValidationLists!$1:$1048576,3,)","v":{"$error":"#N/A"}}]
[null,null,null,0,null,{"$f":"VLOOKUP(E401,ValidationLists!$1:$1048576,2,)","v":{"$error":"#N/A"}},{"$f":"VLOOKUP(E401,ValidationLists!$1:$1048576,4,)","v":{"$error":"#N/A"}},{"$f":"VLOOKUP(E401,ValidationLists!$1:$1048576,3,)","v":{"$error":"#N/A"}}]
[null,null,null,0,null,{"$f":"VLOOKUP(E402,ValidationLists!$1:$1048576,2,)","v":{"$error":"#N/A"}},{"$f":"VLOOKUP(E402,ValidationLists!$1:$1048576,4,)","v":{"$error":"#N/A"}},{"$f":"VLOOKUP(E402,ValidationLists!$1:$1048576,3,)","v":{"$error":"#N/A"}}]
[null,null,null,0,null,{"$f":"VLOOKUP(E403,ValidationLists!$1:$1048576,2,)","v":{"$error":"#N/A"}},{"$f":"VLOOKUP(E403,ValidationLists!$1:$1048576,4,)","v":{"$error":"#N/A"}},{"$f":"VLOOKUP(E403,ValidationLists!$1:$1048576,3,)","v":{"$error":"#N/A"}}]
[null,null,null,0,null,{"$f":"VLOOKUP(E404,ValidationLists!$1:$1048576,2,)","v":{"$error":"#N/A"}},{"$f":"VLOOKUP(E404,ValidationLists!$1:$1048576,4,)","v":{"$error":"#N/A"}},{"$f":"VLOOKUP(E404,ValidationLists!$1:$1048576,3,)","v":{"$error":"#N/A"}}]
[null,null,null,0,null,{"$f":"VLOOKUP(E405,ValidationLists!$1:$1048576,2,)","v":{"$error":"#N/A"}},{"$f":"VLOOKUP(E405,ValidationLists!$1:$1048576,4,)","v":{"$error":"#N/A"}},{"$f":"VLOOKUP(E405,ValidationLists!$1:$1048576,3,)","v":{"$error":"#N/A"}}]
[null,null,null,0,null,{"$f":"VLOOKUP(E406,ValidationLists!$1:$1048576,2,)","v":{"$error":"#N/A"}},{"$f":"VLOOKUP(E406,ValidationLists!$1:$1048576,4,)","v":{"$error":"#N/A"}},{"$f":"VLOOKUP(E406,ValidationLists!$1:$1048576,3,)","v":{"$error":"#N/A"}}]
[null,null,null,0,null,{"$f":"VLOOKUP(E407,ValidationLists!$1:$1048576,2,)","v":{"$error":"#N/A"}},{"$f":"VLOOKUP(E407,ValidationLists!$1:$1048576,4,)","v":{"$error":"#N/A"}},{"$f":"VLOOKUP(E407,ValidationLists!$1:$1048576,3,)","v":{"$error":"#N/A"}}]
[null,null,null,0,null,{"$f":"VLOOKUP(E408,ValidationLists!$1:$1048576,2,)","v":{"$error":"#N/A"}},{"$f":"VLOOKUP(E408,ValidationLists!$1:$1048576,4,)","v":{"$error":"#N/A"}},{"$f":"VLOOKUP(E408,ValidationLists!$1:$1048576,3,)","v":{"$error":"#N/A"}}]
[null,null,null,0,null,{"$f":"VLOOKUP(E409,ValidationLists!$1:$1048576,2,)","v":{"$error":"#N/A"}},{"$f":"VLOOKUP(E409,ValidationLists!$1:$1048576,4,)","v":{"$error":"#N/A"}},{"$f":"VLOOKUP(E409,ValidationLists!$1:$1048576,3,)","v":{"$error":"#N/A"}}]
[null,null,null,0,null,{"$f":"VLOOKUP(E410,ValidationLists!$1:$1048576,2,)","v":{"$error":"#N/A"}},{"$f":"VLOOKUP(E410,ValidationLists!$1:$1048576,4,)","v":{"$error":"#N/A"}},{"$f":"VLOOKUP(E410,ValidationLists!$1:$1048576,3,)","v":{"$error":"#N/A"}}]
[null,null,null,0,null,{"$f":"VLOOKUP(E411,ValidationLists!$1:$1048576,2,)","v":{"$error":"#N/A"}},{"$f":"VLOOKUP(E411,ValidationLists!$1:$1048576,4,)","v":{"$error":"#N/A"}},{"$f":"VLOOKUP(E411,ValidationLists!$1:$1048576,3,)","v":{"$error":"#N/A"}}]
[null,null,null,0,null,{"$f":"VLOOKUP(E412,ValidationLists!$1:$1048576,2,)","v":{"$error":"#N/A"}},{"$f":"VLOOKUP(E412,ValidationLists!$1:$1048576,4,)","v":{"$error":"#N/A"}},{"$f":"VLOOKUP(E412,ValidationLists!$1:$1048576,3,)","v":{"$error":"#N/A"}}]
[null,null,null,0,null,{"$f":"VLOOKUP(E413,ValidationLists!$1:$1048576,2,)","v":{"$error":"#N/A"}},{"$f":"VLOOKUP(E413,ValidationLists!$1:$1048576,4,)","v":{"$error":"#N/A"}},{"$f":"VLOOKUP(E413,ValidationLists!$1:$1048576,3,)","v":{"$error":"#N/A"}}]
[null,null,null,0,null,{"$f":"VLOOKUP(E414,ValidationLists!$1:$1048576,2,)","v":{"$error":"#N/A"}},{"$f":"VLOOKUP(E414,ValidationLists!$1:$1048576,4,)","v":{"$error":"#N/A"}},{"$f":"VLOOKUP(E414,ValidationLists!$1:$1048576,3,)","v":{"$error":"#N/A"}}]
[null,null,null,0,null,{"$f":"VLOOKUP(E415,ValidationLists!$1:$1048576,2,)","v":{"$error":"#N/A"}},{"$f":"VLOOKUP(E415,ValidationLists!$1:$1048576,4,)","v":{"$error":"#N/A"}},{"$f":"VLOOKUP(E415,ValidationLists!$1:$1048576,3,)","v":{"$error":"#N/A"}}]
[null,null,null,0,null,{"$f":"VLOOKUP(E416,ValidationLists!$1:$1048576,2,)","v":{"$error":"#N/A"}},{"$f":"VLOOKUP(E416,ValidationLists!$1:$1048576,4,)","v":{"$error":"#N/A"}},{"$f":"VLOOKUP(E416,ValidationLists!$1:$1048576,3,)","v":{"$error":"#N/A"}}]
[null,null,null,0,null,{"$f":"VLOOKUP(E417,ValidationLists!$1:$1048576,2,)","v":{"$error":"#N/A"}},{"$f":"VLOOKUP(E417,ValidationLists!$1:$1048576,4,)","v":{"$error":"#N/A"}},{"$f":"VLOOKUP(E417,ValidationLists!$1:$1048576,3,)","v":{"$error":"#N/A"}}]
[null,null,null,0,null,{"$f":"VLOOKUP(E418,ValidationLists!$1:$1048576,2,)","v":{"$error":"#N/A"}},{"$f":"VLOOKUP(E418,ValidationLists!$1:$1048576,4,)","v":{"$error":"#N/A"}},{"$f":"VLOOKUP(E418,ValidationLists!$1:$1048576,3,)","v":{"$error":"#N/A"}}]
[null,null,null,0,null,{"$f":"VLOOKUP(E419,ValidationLists!$1:$1048576,2,)","v":{"$error":"#N/A"}},{"$f":"VLOOKUP(E419,ValidationLists!$1:$1048576,4,)","v":{"$error":"#N/A"}},{"$f":"VLOOKUP(E419,ValidationLists!$1:$1048576,3,)","v":{"$error":"#N/A"}}]
[null,null,null,0,null,{"$f":"VLOOKUP(E420,ValidationLists!$1:$1048576,2,)","v":{"$error":"#N/A"}},{"$f":"VLOOKUP(E420,ValidationLists!$1:$1048576,4,)","v":{"$error":"#N/A"}},{"$f":"VLOOKUP(E420,ValidationLists!$1:$1048576,3,)","v":{"$error":"#N/A"}}]
[null,null,null,0,null,{"$f":"VLOOKUP(E421,ValidationLists!$1:$1048576,2,)","v":{"$error":"#N/A"}},{"$f":"VLOOKUP(E421,ValidationLists!$1:$1048576,4,)","v":{"$error":"#N/A"}},{"$f":"VLOOKUP(E421,ValidationLists!$1:$1048576,3,)","v":{"$error":"#N/A"}}]
[null,null,null,0,null,{"$f":"VLOOKUP(E422,ValidationLists!$1:$1048576,2,)","v":{"$error":"#N/A"}},{"$f":"VLOOKUP(E422,ValidationLists!$1:$1048576,4,)","v":{"$error":"#N/A"}},{"$f":"VLOOKUP(E422,ValidationLists!$1:$1048576,3,)","v":{"$error":"#N/A"}}]
[null,null,null,0,null,{"$f":"VLOOKUP(E423,ValidationLists!$1:$1048576,2,)","v":{"$error":"#N/A"}},{"$f":"VLOOKUP(E423,ValidationLists!$1:$1048576,4,)","v":{"$error":"#N/A"}},{"$f":"VLOOKUP(E423,ValidationLists!$1:$1048576,3,)","v":{"$error":"#N/A"}}]
[null,null,null,0,null,{"$f":"VLOOKUP(E424,ValidationLists!$1:$1048576,2,)","v":{"$error":"#N/A"}},{"$f":"VLOOKUP(E424,ValidationLists!$1:$1048576,4,)","v":{"$error":"#N/A"}},{"$f":"VLOOKUP(E424,ValidationLists!$1:$1048576,3,)","v":{"$error":"#N/A"}}]
[null,null,null,0,null,{"$f":"VLOOKUP(E425,ValidationLists!$1:$1048576,2,)","v":{"$error":"#N/A"}},{"$f":"VLOOKUP(E425,ValidationLists!$1:$1048576,4,)","v":{"$error":"#N/A"}},{"$f":"VLOOKUP(E425,ValidationLists!$1:$1048576,3,)","v":{"$error":"#N/A"}}]
[null,null,null,0,null,{"$f":"VLOOKUP(E426,ValidationLists!$1:$1048576,2,)","v":{"$error":"#N/A"}},{"$f":"VLOOKUP(E426,ValidationLists!$1:$1048576,4,)","v":{"$error":"#N/A"}},{"$f":"VLOOKUP(E426,ValidationLists!$1:$1048576,3,)","v":{"$error":"#N/A"}}]
[null,null,null,0,null,{"$f":"VLOOKUP(E427,ValidationLists!$1:$1048576,2,)","v":{"$error":"#N/A"}},{"$f":"VLOOKUP(E427,ValidationLists!$1:$1048576,4,)","v":{"$error":"#N/A"}},{"$f":"VLOOKUP(E427,ValidationLists!$1:$1048576,3,)","v":{"$error":"#N/A"}}]
[null,null,null,0,null,{"$f":"VLOOKUP(E428,ValidationLists!$1:$1048576,2,)","v":{"$error":"#N/A"}},{"$f":"VLOOKUP(E428,ValidationLists!$1:$1048576,4,)","v":{"$error":"#N/A"}},{"$f":"VLOOKUP(E428,ValidationLists!$1:$1048576,3,)","v":{"$error":"#N/A"}}]
[null,null,null,0,null,{"$f":"VLOOKUP(E429,ValidationLists!$1:$1048576,2,)","v":{"$error":"#N/A"}},{"$f":"VLOOKUP(E429,ValidationLists!$1:$1048576,4,)","v":{"$error":"#N/A"}},{"$f":"VLOOKUP(E429,ValidationLists!$1:$1048576,3,)","v":{"$error":"#N/A"}}]
[null,null,null,0,null,{"$f":"VLOOKUP(E430,ValidationLists!$1:$1048576,2,)","v":{"$error":"#N/A"}},{"$f":"VLOOKUP(E430,ValidationLists!$1:$1048576,4,)","v":{"$error":"#N/A"}},{"$f":"VLOOKUP(E430,ValidationLists!$1:$1048576,3,)","v":{"$error":"#N/A"}}]
[null,null,null,0,null,{"$f":"VLOOKUP(E431,ValidationLists!$1:$1048576,2,)","v":{"$error":"#N/A"}},{"$f":"VLOOKUP(E431,ValidationLists!$1:$1048576,4,)","v":{"$error":"#N/A"}},{"$f":"VLOOKUP(E431,ValidationLists!$1:$1048576,3,)","v":{"$error":"#N/A"}}]
[null,null,null,0,null,{"$f":"VLOOKUP(E432,ValidationLists!$1:$1048576,2,)","v":{"$error":"#N/A"}},{"$f":"VLOOKUP(E432,ValidationLists!$1:$1048576,4,)","v":{"$error":"#N/A"}},{"$f":"VLOOKUP(E432,ValidationLists!$1:$1048576,3,)","v":{"$error":"#N/A"}}]
[null,null,null,0,null,{"$f":"VLOOKUP(E433,ValidationLists!$1:$1048576,2,)","v":{"$error":"#N/A"}},{"$f":"VLOOKUP(E433,ValidationLists!$1:$1048576,4,)","v":{"$error":"#N/A"}},{"$f":"VLOOKUP(E433,ValidationLists!$1:$1048576,3,)","v":{"$error":"#N/A"}}]
[null,null,null,0,null,{"$f":"VLOOKUP(E434,ValidationLists!$1:$1048576,2,)","v":{"$error":"#N/A"}},{"$f":"VLOOKUP(E434,ValidationLists!$1:$1048576,4,)","v":{"$error":"#N/A"}},{"$f":"VLOOKUP(E434,ValidationLists!$1:$1048576,3,)","v":{"$error":"#N/A"}}]
[null,null,null,0,null,{"$f":"VLOOKUP(E435,ValidationLists!$1:$1048576,2,)","v":{"$error":"#N/A"}},{"$f":"VLOOKUP(E435,ValidationLists!$1:$1048576,4,)","v":{"$error":"#N/A"}},{"$f":"VLOOKUP(E435,ValidationLists!$1:$1048576,3,)","v":{"$error":"#N/A"}}]
[null,null,null,0,null,{"$f":"VLOOKUP(E436,ValidationLists!$1:$1048576,2,)","v":{"$error":"#N/A"}},{"$f":"VLOOKUP(E436,ValidationLists!$1:$1048576,4,)","v":{"$error":"#N/A"}},{"$f":"VLOOKUP(E436,ValidationLists!$1:$1048576,3,)","v":{"$error":"#N/A"}}]
[null,null,null,0,null,{"$f":"VLOOKUP(E437,ValidationLists!$1:$1048576,2,)","v":{"$error":"#N/A"}},{"$f":"VLOOKUP(E437,ValidationLists!$1:$1048576,4,)","v":{"$error":"#N/A"}},{"$f":"VLOOKUP(E437,ValidationLists!$1:$1048576,3,)","v":{"$error":"#N/A"}}]
[null,null,null,0,null,{"$f":"VLOOKUP(E438,ValidationLists!$1:$1048576,2,)","v":{"$error":"#N/A"}},{"$f":"VLOOKUP(E438,ValidationLists!$1:$1048576,4,)","v":{"$error":"#N/A"}},{"$f":"VLOOKUP(E438,ValidationLists!$1:$1048576,3,)","v":{"$error":"#N/A"}}]
[null,null,null,0,null,{"$f":"VLOOKUP(E439,ValidationLists!$1:$1048576,2,)","v":{"$error":"#N/A"}},{"$f":"VLOOKUP(E439,ValidationLists!$1:$1048576,4,)","v":{"$error":"#N/A"}},{"$f":"VLOOKUP(E439,ValidationLists!$1:$1048576,3,)","v":{"$error":"#N/A"}}]
[null,null,null,0,null,{"$f":"VLOOKUP(E440,ValidationLists!$1:$1048576,2,)","v":{"$error":"#N/A"}},{"$f":"VLOOKUP(E440,ValidationLists!$1:$1048576,4,)","v":{"$error":"#N/A"}},{"$f":"VLOOKUP(E440,ValidationLists!$1:$1048576,3,)","v":{"$error":"#N/A"}}]
[null,null,null,0,null,{"$f":"VLOOKUP(E441,ValidationLists!$1:$1048576,2,)","v":{"$error":"#N/A"}},{"$f":"VLOOKUP(E441,ValidationLists!$1:$1048576,4,)","v":{"$error":"#N/A"}},{"$f":"VLOOKUP(E441,ValidationLists!$1:$1048576,3,)","v":{"$error":"#N/A"}}]
[null,null,null,0,null,{"$f":"VLOOKUP(E442,ValidationLists!$1:$1048576,2,)","v":{"$error":"#N/A"}},{"$f":"VLOOKUP(E442,ValidationLists!$1:$1048576,4,)","v":{"$error":"#N/A"}},{"$f":"VLOOKUP(E442,ValidationLists!$1:$1048576,3,)","v":{"$error":"#N/A"}}]
[null,null,null,0,null,{"$f":"VLOOKUP(E443,ValidationLists!$1:$1048576,2,)","v":{"$error":"#N/A"}},{"$f":"VLOOKUP(E443,ValidationLists!$1:$1048576,4,)","v":{"$error":"#N/A"}},{"$f":"VLOOKUP(E443,ValidationLists!$1:$1048576,3,)","v":{"$error":"#N/A"}}]
[null,null,null,0,null,{"$f":"VLOOKUP(E444,ValidationLists!$1:$1048576,2,)","v":{"$error":"#N/A"}},{"$f":"VLOOKUP(E444,ValidationLists!$1:$1048576,4,)","v":{"$error":"#N/A"}},{"$f":"VLOOKUP(E444,ValidationLists!$1:$1048576,3,)","v":{"$error":"#N/A"}}]
[null,null,null,0,null,{"$f":"VLOOKUP(E445,ValidationLists!$1:$1048576,2,)","v":{"$error":"#N/A"}},{"$f":"VLOOKUP(E445,ValidationLists!$1:$1048576,4,)","v":{"$error":"#N/A"}},{"$f":"VLOOKUP(E445,ValidationLists!$1:$1048576,3,)","v":{"$error":"#N/A"}}]
[null,null,null,0,null,{"$f":"VLOOKUP(E446,ValidationLists!$1:$1048576,2,)","v":{"$error":"#N/A"}},{"$f":"VLOOKUP(E446,ValidationLists!$1:$1048576,4,)","v":{"$error":"#N/A"}},{"$f":"VLOOKUP(E446,ValidationLists!$1:$1048576,3,)","v":{"$error":"#N/A"}}]
[null,null,null,0,null,{"$f":"VLOOKUP(E447,ValidationLists!$1:$1048576,2,)","v":{"$error":"#N/A"}},{"$f":"VLOOKUP(E447,ValidationLists!$1:$1048576,4,)","v":{"$error":"#N/A"}},{"$f":"VLOOKUP(E447,ValidationLists!$1:$1048576,3,)","v":{"$error":"#N/A"}}]
[null,null,null,0,null,{"$f":"VLOOKUP(E448,ValidationLists!$1:$1048576,2,)","v":{"$error":"#N/A"}},{"$f":"VLOOKUP(E448,ValidationLists!$1:$1048576,4,)","v":{"$error":"#N/A"}},{"$f":"VLOOKUP(E448,ValidationLists!$1:$1048576,3,)","v":{"$error":"#N/A"}}]
[null,null,null,0,null,{"$f":"VLOOKUP(E449,ValidationLists!$1:$1048576,2,)","v":{"$error":"#N/A"}},{"$f":"VLOOKUP(E449,ValidationLists!$1:$1048576,4,)","v":{"$error":"#N/A"}},{"$f":"VLOOKUP(E449,ValidationLists!$1:$1048576,3,)","v":{"$error":"#N/A"}}]
[null,null,null,0,null,{"$f":"VLOOKUP(E450,ValidationLists!$1:$1048576,2,)","v":{"$error":"#N/A"}},{"$f":"VLOOKUP(E450,ValidationLists!$1:$1048576,4,)","v":{"$error":"#N/A"}},{"$f":"VLOOKUP(E450,ValidationLists!$1:$1048576,3,)","v":{"$error":"#N/A"}}]
[null,null,null,0,null,{"$f":"VLOOKUP(E451,ValidationLists!$1:$1048576,2,)","v":{"$error":"#N/A"}},{"$f":"VLOOKUP(E451,ValidationLists!$1:$1048576,4,)","v":{"$error":"#N/A"}},{"$f":"VLOOKUP(E451,ValidationLists!$1:$1048576,3,)","v":{"$error":"#N/A"}}]
[null,null,null,0,null,{"$f":"VLOOKUP(E452,ValidationLists!$1:$1048576,2,)","v":{"$error":"#N/A"}},{"$f":"VLOOKUP(E452,ValidationLists!$1:$1048576,4,)","v":{"$error":"#N/A"}},{"$f":"VLOOKUP(E452,ValidationLists!$1:$1048576,3,)","v":{"$error":"#N/A"}}]
[null,null,null,0,null,{"$f":"VLOOKUP(E453,ValidationLists!$1:$1048576,2,)","v":{"$error":"#N/A"}},{"$f":"VLOOKUP(E453,ValidationLists!$1:$1048576,4,)","v":{"$error":"#N/A"}},{"$f":"VLOOKUP(E453,ValidationLists!$1:$1048576,3,)","v":{"$error":"#N/A"}}]
[null,null,null,0,null,{"$f":"VLOOKUP(E454,ValidationLists!$1:$1048576,2,)","v":{"$error":"#N/A"}},{"$f":"VLOOKUP(E454,ValidationLists!$1:$1048576,4,)","v":{"$error":"#N/A"}},{"$f":"VLOOKUP(E454,ValidationLists!$1:$1048576,3,)","v":{"$error":"#N/A"}}]
[null,null,null,0,null,{"$f":"VLOOKUP(E455,ValidationLists!$1:$1048576,2,)","v":{"$error":"#N/A"}},{"$f":"VLOOKUP(E455,ValidationLists!$1:$1048576,4,)","v":{"$error":"#N/A"}},{"$f":"VLOOKUP(E455,ValidationLists!$1:$1048576,3,)","v":{"$error":"#N/A"}}]
[null,null,null,{"$f":"SUM(B456*C456)","v":0},null,{"$f":"VLOOKUP(E456,ValidationLists!$1:$1048576,2,)","v":{"$error":"#N/A"}},{"$f":"VLOOKUP(E456,ValidationLists!$1:$1048576,4,)","v":{"$error":"#N/A"}},{"$f":"VLOOKUP(E456,ValidationLists!$1:$1048576,3,)","v":{"$error":"#N/A"}}]
[null,null,null,0,null,{"$f":"VLOOKUP(E457,ValidationLists!$1:$1048576,2,)","v":{"$error":"#N/A"}},{"$f":"VLOOKUP(E457,ValidationLists!$1:$1048576,4,)","v":{"$error":"#N/A"}},{"$f":"VLOOKUP(E457,ValidationLists!$1:$1048576,3,)","v":{"$error":"#N/A"}}]
[null,null,null,0,null,{"$f":"VLOOKUP(E458,ValidationLists!$1:$1048576,2,)","v":{"$error":"#N/A"}},{"$f":"VLOOKUP(E458,ValidationLists!$1:$1048576,4,)","v":{"$error":"#N/A"}},{"$f":"VLOOKUP(E458,ValidationLists!$1:$1048576,3,)","v":{"$error":"#N/A"}}]
[null,null,null,0,null,{"$f":"VLOOKUP(E459,ValidationLists!$1:$1048576,2,)","v":{"$error":"#N/A"}},{"$f":"VLOOKUP(E459,ValidationLists!$1:$1048576,4,)","v":{"$error":"#N/A"}},{"$f":"VLOOKUP(E459,ValidationLists!$1:$1048576,3,)","v":{"$error":"#N/A"}}]
[null,null,null,0,null,{"$f":"VLOOKUP(E460,ValidationLists!$1:$1048576,2,)","v":{"$error":"#N/A"}},{"$f":"VLOOKUP(E460,ValidationLists!$1:$1048576,4,)","v":{"$error":"#N/A"}},{"$f":"VLOOKUP(E460,ValidationLists!$1:$1048576,3,)","v":{"$error":"#N/A"}}]
[null,null,null,0,null,{"$f":"VLOOKUP(E461,ValidationLists!$1:$1048576,2,)","v":{"$error":"#N/A"}},{"$f":"VLOOKUP(E461,ValidationLists!$1:$1048576,4,)","v":{"$error":"#N/A"}},{"$f":"VLOOKUP(E461,ValidationLists!$1:$1048576,3,)","v":{"$error":"#N/A"}}]
[null,null,null,0,null,{"$f":"VLOOKUP(E462,ValidationLists!$1:$1048576,2,)","v":{"$error":"#N/A"}},{"$f":"VLOOKUP(E462,ValidationLists!$1:$1048576,4,)","v":{"$error":"#N/A"}},{"$f":"VLOOKUP(E462,ValidationLists!$1:$1048576,3,)","v":{"$error":"#N/A"}}]
[null,null,null,0,null,{"$f":"VLOOKUP(E463,ValidationLists!$1:$1048576,2,)","v":{"$error":"#N/A"}},{"$f":"VLOOKUP(E463,ValidationLists!$1:$1048576,4,)","v":{"$error":"#N/A"}},{"$f":"VLOOKUP(E463,ValidationLists!$1:$1048576,3,)","v":{"$error":"#N/A"}}]
[null,null,null,0,null,{"$f":"VLOOKUP(E464,ValidationLists!$1:$1048576,2,)","v":{"$error":"#N/A"}},{"$f":"VLOOKUP(E464,ValidationLists!$1:$1048576,4,)","v":{"$error":"#N/A"}},{"$f":"VLOOKUP(E464,ValidationLists!$1:$1048576,3,)","v":{"$error":"#N/A"}}]
[null,null,null,0,null,{"$f":"VLOOKUP(E465,ValidationLists!$1:$1048576,2,)","v":{"$error":"#N/A"}},{"$f":"VLOOKUP(E465,ValidationLists!$1:$1048576,4,)","v":{"$error":"#N/A"}},{"$f":"VLOOKUP(E465,ValidationLists!$1:$1048576,3,)","v":{"$error":"#N/A"}}]
[null,null,null,0,null,{"$f":"VLOOKUP(E466,ValidationLists!$1:$1048576,2,)","v":{"$error":"#N/A"}},{"$f":"VLOOKUP(E466,ValidationLists!$1:$1048576,4,)","v":{"$error":"#N/A"}},{"$f":"VLOOKUP(E466,ValidationLists!$1:$1048576,3,)","v":{"$error":"#N/A"}}]
[null,null,null,0,null,{"$f":"VLOOKUP(E467,ValidationLists!$1:$1048576,2,)","v":{"$error":"#N/A"}},{"$f":"VLOOKUP(E467,ValidationLists!$1:$1048576,4,)","v":{"$error":"#N/A"}},{"$f":"VLOOKUP(E467,ValidationLists!$1:$1048576,3,)","v":{"$error":"#N/A"}}]
[null,null,null,0,null,{"$f":"VLOOKUP(E468,ValidationLists!$1:$1048576,2,)","v":{"$error":"#N/A"}},{"$f":"VLOOKUP(E468,ValidationLists!$1:$1048576,4,)","v":{"$error":"#N/A"}},{"$f":"VLOOKUP(E468,ValidationLists!$1:$1048576,3,)","v":{"$error":"#N/A"}}]
[null,null,null,0,null,{"$f":"VLOOKUP(E469,ValidationLists!$1:$1048576,2,)","v":{"$error":"#N/A"}},{"$f":"VLOOKUP(E469,ValidationLists!$1:$1048576,4,)","v":{"$error":"#N/A"}},{"$f":"VLOOKUP(E469,ValidationLists!$1:$1048576,3,)","v":{"$error":"#N/A"}}]
[null,null,null,0,null,{"$f":"VLOOKUP(E470,ValidationLists!$1:$1048576,2,)","v":{"$error":"#N/A"}},{"$f":"VLOOKUP(E470,ValidationLists!$1:$1048576,4,)","v":{"$error":"#N/A"}},{"$f":"VLOOKUP(E470,ValidationLists!$1:$1048576,3,)","v":{"$error":"#N/A"}}]
[null,null,null,0,null,{"$f":"VLOOKUP(E471,ValidationLists!$1:$1048576,2,)","v":{"$error":"#N/A"}},{"$f":"VLOOKUP(E471,ValidationLists!$1:$1048576,4,)","v":{"$error":"#N/A"}},{"$f":"VLOOKUP(E471,ValidationLists!$1:$1048576,3,)","v":{"$error":"#N/A"}}]
[null,null,null,0,null,{"$f":"VLOOKUP(E472,ValidationLists!$1:$1048576,2,)","v":{"$error":"#N/A"}},{"$f":"VLOOKUP(E472,ValidationLists!$1:$1048576,4,)","v":{"$error":"#N/A"}},{"$f":"VLOOKUP(E472,ValidationLists!$1:$1048576,3,)","v":{"$error":"#N/A"}}]
[null,null,null,0,null,{"$f":"VLOOKUP(E473,ValidationLists!$1:$1048576,2,)","v":{"$error":"#N/A"}},{"$f":"VLOOKUP(E473,ValidationLists!$1:$1048576,4,)","v":{"$error":"#N/A"}},{"$f":"VLOOKUP(E473,ValidationLists!$1:$1048576,3,)","v":{"$error":"#N/A"}}]
[null,null,null,0,null,{"$f":"VLOOKUP(E474,ValidationLists!$1:$1048576,2,)","v":{"$error":"#N/A"}},{"$f":"VLOOKUP(E474,ValidationLists!$1:$1048576,4,)","v":{"$error":"#N/A"}},{"$f":"VLOOKUP(E474,ValidationLists!$1:$1048576,3,)","v":{"$error":"#N/A"}}]
[null,null,null,0,null,{"$f":"VLOOKUP(E475,ValidationLists!$1:$1048576,2,)","v":{"$error":"#N/A"}},{"$f":"VLOOKUP(E475,ValidationLists!$1:$1048576,4,)","v":{"$error":"#N/A"}},{"$f":"VLOOKUP(E475,ValidationLists!$1:$1048576,3,)","v":{"$error":"#N/A"}}]
[null,null,null,0,null,{"$f":"VLOOKUP(E476,ValidationLists!$1:$1048576,2,)","v":{"$error":"#N/A"}},{"$f":"VLOOKUP(E476,ValidationLists!$1:$1048576,4,)","v":{"$error":"#N/A"}},{"$f":"VLOOKUP(E476,ValidationLists!$1:$1048576,3,)","v":{"$error":"#N/A"}}]
[null,null,null,0,null,{"$f":"VLOOKUP(E477,ValidationLists!$1:$1048576,2,)","v":{"$error":"#N/A"}},{"$f":"VLOOKUP(E477,ValidationLists!$1:$1048576,4,)","v":{"$error":"#N/A"}},{"$f":"VLOOKUP(E477,ValidationLists!$1:$1048576,3,)","v":{"$error":"#N/A"}}]
[null,null,null,0,null,{"$f":"VLOOKUP(E478,ValidationLists!$1:$1048576,2,)","v":{"$error":"#N/A"}},{"$f":"VLOOKUP(E478,ValidationLists!$1:$1048576,4,)","v":{"$error":"#N/A"}},{"$f":"VLOOKUP(E478,ValidationLists!$1:$1048576,3,)","v":{"$error":"#N/A"}}]
[null,null,null,0,null,{"$f":"VLOOKUP(E479,ValidationLists!$1:$1048576,2,)","v":{"$error":"#N/A"}},{"$f":"VLOOKUP(E479,ValidationLists!$1:$1048576,4,)","v":{"$error":"#N/A"}},{"$f":"VLOOKUP(E479,ValidationLists!$1:$1048576,3,)","v":{"$error":"#N/A"}}]
[null,null,null,0,null,{"$f":"VLOOKUP(E480,ValidationLists!$1:$1048576,2,)","v":{"$error":"#N/A"}},{"$f":"VLOOKUP(E480,ValidationLists!$1:$1048576,4,)","v":{"$error":"#N/A"}},{"$f":"VLOOKUP(E480,ValidationLists!$1:$1048576,3,)","v":{"$error":"#N/A"}}]
[null,null,null,0,null,{"$f":"VLOOKUP(E481,ValidationLists!$1:$1048576,2,)","v":{"$error":"#N/A"}},{"$f":"VLOOKUP(E481,ValidationLists!$1:$1048576,4,)","v":{"$error":"#N/A"}},{"$f":"VLOOKUP(E481,ValidationLists!$1:$1048576,3,)","v":{"$error":"#N/A"}}]
[null,null,null,0,null,{"$f":"VLOOKUP(E482,ValidationLists!$1:$1048576,2,)","v":{"$error":"#N/A"}},{"$f":"VLOOKUP(E482,ValidationLists!$1:$1048576,4,)","v":{"$error":"#N/A"}},{"$f":"VLOOKUP(E482,ValidationLists!$1:$1048576,3,)","v":{"$error":"#N/A"}}]
[null,null,null,0,null,{"$f":"VLOOKUP(E483,ValidationLists!$1:$1048576,2,)","v":{"$error":"#N/A"}},{"$f":"VLOOKUP(E483,ValidationLists!$1:$1048576,4,)","v":{"$error":"#N/A"}},{"$f":"VLOOKUP(E483,ValidationLists!$1:$1048576,3,)","v":{"$error":"#N/A"}}]
[null,null,null,0,null,{"$f":"VLOOKUP(E484,ValidationLists!$1:$1048576,2,)","v":{"$error":"#N/A"}},{"$f":"VLOOKUP(E484,ValidationLists!$1:$1048576,4,)","v":{"$error":"#N/A"}},{"$f":"VLOOKUP(E484,ValidationLists!$1:$1048576,3,)","v":{"$error":"#N/A"}}]
[null,null,null,0,null,{"$f":"VLOOKUP(E485,ValidationLists!$1:$1048576,2,)","v":{"$error":"#N/A"}},{"$f":"VLOOKUP(E485,ValidationLists!$1:$1048576,4,)","v":{"$error":"#N/A"}},{"$f":"VLOOKUP(E485,ValidationLists!$1:$1048576,3,)","v":{"$error":"#N/A"}}]
[null,null,null,0,null,{"$f":"VLOOKUP(E486,ValidationLists!$1:$1048576,2,)","v":{"$error":"#N/A"}},{"$f":"VLOOKUP(E486,ValidationLists!$1:$1048576,4,)","v":{"$error":"#N/A"}},{"$f":"VLOOKUP(E486,ValidationLists!$1:$1048576,3,)","v":{"$error":"#N/A"}}]
[null,null,null,0,null,{"$f":"VLOOKUP(E487,ValidationLists!$1:$1048576,2,)","v":{"$error":"#N/A"}},{"$f":"VLOOKUP(E487,ValidationLists!$1:$1048576,4,)","v":{"$error":"#N/A"}},{"$f":"VLOOKUP(E487,ValidationLists!$1:$1048576,3,)","v":{"$error":"#N/A"}}]
[null,null,null,0,null,{"$f":"VLOOKUP(E488,ValidationLists!$1:$1048576,2,)","v":{"$error":"#N/A"}},{"$f":"VLOOKUP(E488,ValidationLists!$1:$1048576,4,)","v":{"$error":"#N/A"}},{"$f":"VLOOKUP(E488,ValidationLists!$1:$1048576,3,)","v":{"$error":"#N/A"}}]
[null,null,null,0,null,{"$f":"VLOOKUP(E489,ValidationLists!$1:$1048576,2,)","v":{"$error":"#N/A"}},{"$f":"VLOOKUP(E489,ValidationLists!$1:$1048576,4,)","v":{"$error":"#N/A"}},{"$f":"VLOOKUP(E489,ValidationLists!$1:$1048576,3,)","v":{"$error":"#N/A"}}]
[null,null,null,0,null,{"$f":"VLOOKUP(E490,ValidationLists!$1:$1048576,2,)","v":{"$error":"#N/A"}},{"$f":"VLOOKUP(E490,ValidationLists!$1:$1048576,4,)","v":{"$error":"#N/A"}},{"$f":"VLOOKUP(E490,ValidationLists!$1:$1048576,3,)","v":{"$error":"#N/A"}}]
[null,null,null,0,null,{"$f":"VLOOKUP(E491,ValidationLists!$1:$1048576,2,)","v":{"$error":"#N/A"}},{"$f":"VLOOKUP(E491,ValidationLists!$1:$1048576,4,)","v":{"$error":"#N/A"}},{"$f":"VLOOKUP(E491,ValidationLists!$1:$1048576,3,)","v":{"$error":"#N/A"}}]
[null,null,null,0,null,{"$f":"VLOOKUP(E492,ValidationLists!$1:$1048576,2,)","v":{"$error":"#N/A"}},{"$f":"VLOOKUP(E492,ValidationLists!$1:$1048576,4,)","v":{"$error":"#N/A"}},{"$f":"VLOOKUP(E492,ValidationLists!$1:$1048576,3,)","v":{"$error":"#N/A"}}]
[null,null,null,0,null,{"$f":"VLOOKUP(E493,ValidationLists!$1:$1048576,2,)","v":{"$error":"#N/A"}},{"$f":"VLOOKUP(E493,ValidationLists!$1:$1048576,4,)","v":{"$error":"#N/A"}},{"$f":"VLOOKUP(E493,ValidationLists!$1:$1048576,3,)","v":{"$error":"#N/A"}}]
[null,null,null,0,null,{"$f":"VLOOKUP(E494,ValidationLists!$1:$1048576,2,)","v":{"$error":"#N/A"}},{"$f":"VLOOKUP(E494,ValidationLists!$1:$1048576,4,)","v":{"$error":"#N/A"}},{"$f":"VLOOKUP(E494,ValidationLists!$1:$1048576,3,)","v":{"$error":"#N/A"}}]
[null,null,null,0,null,{"$f":"VLOOKUP(E495,ValidationLists!$1:$1048576,2,)","v":{"$error":"#N/A"}},{"$f":"VLOOKUP(E495,ValidationLists!$1:$1048576,4,)","v":{"$error":"#N/A"}},{"$f":"VLOOKUP(E495,ValidationLists!$1:$1048576,3,)","v":{"$error":"#N/A"}}]
[null,null,null,0,null,{"$f":"VLOOKUP(E496,ValidationLists!$1:$1048576,2,)","v":{"$error":"#N/A"}},{"$f":"VLOOKUP(E496,ValidationLists!$1:$1048576,4,)","v":{"$error":"#N/A"}},{"$f":"VLOOKUP(E496,ValidationLists!$1:$1048576,3,)","v":{"$error":"#N/A"}}]
[null,null,null,0,null,{"$f":"VLOOKUP(E497,ValidationLists!$1:$1048576,2,)","v":{"$error":"#N/A"}},{"$f":"VLOOKUP(E497,ValidationLists!$1:$1048576,4,)","v":{"$error":"#N/A"}},{"$f":"VLOOKUP(E497,ValidationLists!$1:$1048576,3,)","v":{"$error":"#N/A"}}]
[null,null,null,0,null,{"$f":"VLOOKUP(E498,ValidationLists!$1:$1048576,2,)","v":{"$error":"#N/A"}},{"$f":"VLOOKUP(E498,ValidationLists!$1:$1048576,4,)","v":{"$error":"#N/A"}},{"$f":"VLOOKUP(E498,ValidationLists!$1:$1048576,3,)","v":{"$error":"#N/A"}}]
[null,null,null,0,null,{"$f":"VLOOKUP(E499,ValidationLists!$1:$1048576,2,)","v":{"$error":"#N/A"}},{"$f":"VLOOKUP(E499,ValidationLists!$1:$1048576,4,)","v":{"$error":"#N/A"}},{"$f":"VLOOKUP(E499,ValidationLists!$1:$1048576,3,)","v":{"$error":"#N/A"}}]
[null,null,null,0,null,{"$f":"VLOOKUP(E500,ValidationLists!$1:$1048576,2,)","v":{"$error":"#N/A"}},{"$f":"VLOOKUP(E500,ValidationLists!$1:$1048576,4,)","v":{"$error":"#N/A"}},{"$f":"VLOOKUP(E500,ValidationLists!$1:$1048576,3,)","v":{"$error":"#N/A"}}]
[null,null,null,0,null,{"$f":"VLOOKUP(E501,ValidationLists!$1:$1048576,2,)","v":{"$error":"#N/A"}},{"$f":"VLOOKUP(E501,ValidationLists!$1:$1048576,4,)","v":{"$error":"#N/A"}},{"$f":"VLOOKUP(E501,ValidationLists!$1:$1048576,3,)","v":{"$error":"#N/A"}}]
[null,null,null,{"$f":"SUM(B502*C502)","v":0},null,{"$f":"VLOOKUP(E502,ValidationLists!$1:$1048576,2,)","v":{"$error":"#N/A"}},{"$f":"VLOOKUP(E502,ValidationLists!$1:$1048576,4,)","v":{"$error":"#N/A"}},{"$f":"VLOOKUP(E502,ValidationLists!$1:$1048576,3,)","v":{"$error":"#N/A"}}]
[null,null,null,0,null,{"$f":"VLOOKUP(E503,ValidationLists!$1:$1048576,2,)","v":{"$error":"#N/A"}},{"$f":"VLOOKUP(E503,ValidationLists!$1:$1048576,4,)","v":{"$error":"#N/A"}},{"$f":"VLOOKUP(E503,ValidationLists!$1:$1048576,3,)","v":{"$error":"#N/A"}}]
[null,null,null,0,null,{"$f":"VLOOKUP(E504,ValidationLists!$1:$1048576,2,)","v":{"$error":"#N/A"}},{"$f":"VLOOKUP(E504,ValidationLists!$1:$1048576,4,)","v":{"$error":"#N/A"}},{"$f":"VLOOKUP(E504,ValidationLists!$1:$1048576,3,)","v":{"$error":"#N/A"}}]

{"sheet":"Distribution of Labour","index":1,"n_rows":32,"n_cols":9,"rows_kept":32,"cut":false,"hidden":false,"merged":[[0,0,0,8]]}
["Specialist Disability Support in Schools Program - Performance Measures\nSpecialised Equipment "]
["#","Position title\n(As per Attachment 1 of your Service Agreement)","Discipline","Total SDSS hours per annum excluding leave","Professional Support\n(Time spent on SDSS supports)\n%","SDSS Travel\n%","Administration of SDSS program\n%","Other work activities related to SDSS supports\n%","Total time allocation (calculation of Columns E to H must equal 100% in column I)"]
[1,null,null,null,null,null,null,null,{"$f":"SUM(E3:H3)","v":0}]
[2,null,null,null,null,null,null,null,{"$f":"SUM(E4:H4)","v":0}]
[3,null,null,null,null,null,null,null,0]
[4,null,null,null,null,null,null,null,0]
[5,null,null,null,null,null,null,null,0]
[6,null,null,null,null,null,null,null,0]
[7,null,null,null,null,null,null,null,0]
[8,null,null,null,null,null,null,null,0]
[9,null,null,null,null,null,null,null,0]
[10,null,null,null,null,null,null,null,0]
[11,null,null,null,null,null,null,null,0]
[12,null,null,null,null,null,null,null,0]
[13,null,null,null,null,null,null,null,0]
[14,null,null,null,null,null,null,null,0]
[15,null,null,null,null,null,null,null,0]
[16,null,null,null,null,null,null,null,0]
[17,null,null,null,null,null,null,null,0]
[18,null,null,null,null,null,null,null,0]
[19,null,null,null,null,null,null,null,0]
[20,null,null,null,null,null,null,null,0]
[21,null,null,null,null,null,null,null,0]
[22,null,null,null,null,null,null,null,0]
[23,null,null,null,null,null,null,null,0]
[24,null,null,null,null,null,null,null,0]
[25,null,null,null,null,null,null,null,0]
[26,null,null,null,null,null,null,null,0]
[27,null,null,null,null,null,null,null,0]
[28,null,null,null,null,null,null,null,0]
[29,null,null,null,null,null,null,null,0]
[30,null,null,null,null,null,null,null,0]

{"sheet":"ValidationLists","index":2,"n_rows":2052,"n_cols":12,"rows_kept":2052,"cut":false,"hidden":true,"merged":[]}
["Centre_Name","Centre_Code","Centre_Type","Geographical_Region_Code",null,"# of Services provided","Funding Category","No of Visits by Profession","No of eligible students","No of students using this item","Professional Type"]
[]
["Select School from the list",null,null,null,"Number of Unique Students","Autism Spectrum Disorder","Hearing Impairment","Intellectual Impairment","Physical Impairment","Speech-Launguage Impairment","Vision Impairment","Social Emotional Disorder*"]
[]
["A B Paterson College (Arundel)",5817,"Non-State School","SER","Select No of students from the list","Select No of students from the list","Select No of students from the list","Select No of students from the list","Select No of students from the list","Select No of students from the list","Select No of students from the list","Select No of students from the list"]
["Abercorn State School","0591","State School","CQR"]
["Abergowrie State School",1275,"State School","NQR",0,0,0,0,0,0,0,0]
["Aboriginal & Islander Independent Community School (Acacia Ridge)",5588,"Non-State School","MER",1,1,1,1,1,1,1,1]
["Acacia Ridge State School","0025","State School","MER",2,2,2,2,2,2,2,2]
["ACE Positive Learning Centre",5676,"Positive Learning Centre","NCR",3,3,3,3,3,3,3,3]
["Agnes Water State School",1983,"State School","NCR",4,4,4,4,4,4,4,4]
["Airville State School","0598","State School","NQR",5,5,5,5,5,5,5,5]
["Aitkenvale State School","0801","State School","NQR",6,6,6,6,6,6,6,6]
["Albany Creek State High School",2155,"State High School","MER",7,7,7,7,7,7,7,7]
["Albany Creek State School","0190","State School","MER",8,8,8,8,8,8,8,8]
["Albany Hills State School",1892,"State School","MER",9,9,9,9,9,9,9,9]
["Albert Park Flexible Learning Centre (Milton)",5636,"Non-State School","MER",10,10,10,10,10,10,10,10]
["Albert State School","0038","State School","NCR",11,11,11,11,11,11,11,11]
["Aldridge State High School",2017,"State High School","NCR",12,12,12,12,12,12,12,12]
["Alexandra Bay State School",1963,"State School","FNR",13,13,13,13,13,13,13,13]
["Alexandra Hills State High School",2175,"State High School","SER",14,14,14,14,14,14,14,14]
["Alexandra Hills State School","0405","State School","SER",15,15,15,15,15,15,15,15]
["Alexandra Hills TAFE Senior Studies Program","B058","Centre for Continuing Secondary Education","SER",16,16,16,16,16,16,16,16]
["Algester State School",1866,"State School","MER",17,17,17,17,17,17,17,17]
["All Hallows' School (Brisbane)",5369,"Non-State School","MER",18,18,18,18,18,18,18,18]
["All Saints Anglican School (Merrimac)",5452,"Non-State School","SER",19,19,19,19,19,19,19,19]
["All Saints Primary School (Albany Creek)",5600,"Non-State School","MER",20,20,20,20,20,20,20,20]
["All Saints' School (Boonah)",5111,"Non-State School","SER",21,21,21,21,21,21,21,21]
["All Souls St Gabriels School (Charters Towers)",5451,"Non-State School","NQR",22,22,22,22,22,22,22,22]
["Allenstown State School","0155","State School","CQR",23,23,23,23,23,23,23,23]
["Alligator Creek State School","0773","State School","CQR",24,24,24,24,24,24,24,24]
["Allora P-10 State School","0003","State School","DSR",25,25,25,25,25,25,25,25]
["Alloway State School","0430","State School","NCR",26,26,26,26,26,26,26,26]
["Aloomba State School","0870","State School","FNR",27,27,27,27,27,27,27,27]
["Alpha State School","0517","State School","CQR",28,28,28,28,28,28,28,28]
["Alta-1 College (King St - Caboolture)","A915","Associated Facility","NCR",29,29,29,29,29,29,29,29]
["Alta-1 College (Parish Rd - Caboolture)",9628,"Non-State School","NCR",30,30,30,30,30,30,30,30]
["Amamoor State School",1719,"State School","NCR",31,31,31,31,31,31,31,31]
["Amaroo Environmental Education Centre",3553,"Outdoor and Environmental Education Centre","DSR",32,32,32,32,32,32,32,32]
["Amberley District State School","0115","State School","MER",33,33,33,33,33,33,33,33]
["Ambrose State School",1415,"State School","CQR",34,34,34,34,34,34,34,34]
["Ambrose Treacy College (Indooroopilly)",5077,"Non-State School","MER",35,35,35,35,35,35,35,35]
["Amiens State School",1629,"State School","DSR",36,36,36,36,36,36,36,36]
["Anakie State School","0474","State School","CQR",37,37,37,37,37,37,37,37]
["Andergrove State School",1572,"State School","CQR",38,38,38,38,38,38,38,38]
["Angelorum College (Distance)","A086","Non State School Distance Education","MER",39,39,39,39,39,39,39,39]
["Angelorum College (Fortitude Valley)","A057","Non-State School","MER",40,40,40,40,40,40,40,40]
["Anglican Church Grammar School (East Brisbane)",5446,"Non-State School","MER",41,41,41,41,41,41,41,41]
["Annandale Christian College (Annandale)",5573,"Non-State School","NQR",42,42,42,42,42,42,42,42]
["Annandale State School","0440","State School","NQR",43,43,43,43,43,43,43,43]
["Applethorpe State School",1294,"State School","DSR",44,44,44,44,44,44,44,44]
["Aquinas College (Ashmore)",5316,"Non-State School","SER",45,45,45,45,45,45,45,45]
["Aramac State School","0312","State School","CQR",46,46,46,46,46,46,46,46]
["Aratula State School",1266,"State School","SER",47,47,47,47,47,47,47,47]
["Arcadia College (Robina)","A624","Non-State School","SER",48,48,48,48,48,48,48,48]
["Arcadia Valley State School","0813","State School","DSR",49,49,49,49,49,49,49,49]
["Arethusa College (Deception Bay)","A740","Non-State School","NCR",50,50,50,50,50,50,50,50]
["Arethusa College (Spring Hill)","A741","Associated Facility","MER",51,51,51,51,51,51,51,51]
["Arethusa College (Windsor)","A742","Associated Facility","MER",52,52,52,52,52,52,52,52]
["Arundel Early Intervention Centre",6604,"Support Unit (Other)","SER",53,53,53,53,53,53,53,53]
["Arundel State School",1997,"State School","SER",54,54,54,54,54,54,54,54]
["Ascot State School","0296","State School","MER",55,55,55,55,55,55,55,55]
["Ashgrove State School","0186","State School","MER",56,56,56,56,56,56,56,56]
["Ashmore State School",1871,"State School","SER",57,57,57,57,57,57,57,57]
["Ashwell State School","0512","State School","MER",58,58,58,58,58,58,58,58]
["Aspley East State School",1004,"State School","MER",59,59,59,59,59,59,59,59]
["Aspley Special School",3031,"Special School","MER",60,60,60,60,60,60,60,60]
["Aspley State High School",2076,"State High School","MER",61,61,61,61,61,61,61,61]
["Aspley State School","0610","State School","MER",62,62,62,62,62,62,62,62]
["Assisi Catholic College (Upper Coomera)",5313,"Non-State School","SER",63,63,63,63,63,63,63,63]
["Assumption College (Warwick)",5393,"Non-State School","DSR",64,64,64,64,64,64,64,64]
["Atherton State High School",2051,"State High School","FNR",65,65,65,65,65,65,65,65]
["Atherton State School","0789","State School","FNR",66,66,66,66,66,66,66,66]
["Augathella State School","0357","State School","DSR",67,67,67,67,67,67,67,67]
["Augusta State School",7120,"State School","MER",68,68,68,68,68,68,68,68]
["Aurukun State School","0274","State School","FNR",69,69,69,69,69,69,69,69]
["Australian Christian College - Moreton (Caboolture)",1677,"Non-State School","NCR",70,70,70,70,70,70,70,70]
["Australian Christian College Moreton (Distance)",6143,"Non State School Distance Education","NCR",71,71,71,71,71,71,71,71]
["Australian Industry Trade College - Ipswich (North Ipswich)","A818","Non-State School","MER",72,72,72,72,72,72,72,72]
["Australian Industry Trade College - Redlands (Cleveland)",9979,"Non-State School","SER",73,73,73,73,73,73,73,73]
["Australian Industry Trade College - Toowoomba (Toowoomba City)","A798","Non-State School","DSR",74,74,74,74,74,74,74,74]
["Australian Industry Trade College (Maroochydore)","A682","Associated Facility","NCR",75,75,75,75,75,75,75,75]
["Australian Industry Trade College (Robina)",5740,"Non-State School","SER",76,76,76,76,76,76,76,76]
["Australian Industry Trade College (Spring Hill)","B054","Non-State School","MER",77,77,77,77,77,77,77,77]
["Australian International Islamic College (Buranda)",2357,"Associated Facility","MER",78,78,78,78,78,78,78,78]
["Australian International Islamic College (Carrara)",6057,"Associated Facility","SER",79,79,79,79,79,79,79,79]
["Australian International Islamic College (Durack)",5396,"Non-State School","MER",80,80,80,80,80,80,80,80]
["Australian International Islamic College (Logan Reserve)","B064","Associated Facility","SER",81,81,81,81,81,81,81,81]
["Australian Technology and Agricultural College (North Maclean)",9977,"Non-State School","SER",82,82,82,82,82,82,82,82]
["Australian Trade College North Brisbane (Scarborough)",5690,"Non-State School","NCR",83,83,83,83,83,83,83,83]
["Autism Queensland Education & Therapy Centre (Brighton)",5894,"Associated Facility","MER",84,84,84,84,84,84,84,84]
["Autism Queensland Education & Therapy Centre (Edmonton)","A756","Associated Facility","FNR",85,85,85,85,85,85,85,85]
["Autism Queensland Education & Therapy Centre (Sunnybank Hills)",5893,"Non-State School","MER",86,86,86,86,86,86,86,86]
["Aviation High",2078,"State High School","MER",87,87,87,87,87,87,87,87]
["Avoca State School",1901,"State School","NCR",88,88,88,88,88,88,88,88]
["Avondale State School","0572","State School","NCR",89,89,89,89,89,89,89,89]
["Ayr State High School",2008,"State High School","NQR",90,90,90,90,90,90,90,90]
["Ayr State School","0451","State School","NQR",91,91,91,91,91,91,91,91]
["Babinda State School",1466,"State School","FNR",92,92,92,92,92,92,92,92]
["Back Plains State School","0317","State School","DSR",93,93,93,93,93,93,93,93]
["Bajool State School","0906","State School","CQR",94,94,94,94,94,94,94,94]
["Balaclava State School",1689,"State School","FNR",95,95,95,95,95,95,95,95]
["Bald Hills State School","0004","State School","MER",96,96,96,96,96,96,96,96]
["Ballandean State School",1164,"State School","DSR",97,97,97,97,97,97,97,97]
["Balmoral State High School",2043,"State High School","MER",98,98,98,98,98,98,98,98]
["Banana State School","0521","State School","CQR",99,99,99,99,99,99,99,99]
["Banksia Beach State School",1989,"State School","NCR",100,100,100,100,100,100,100,100]
["Baralaba State School",1605,"State School","CQR",101,101,101,101,101,101,101,101]
["Barambah Environmental Education Centre",3562,"Outdoor and Environmental Education Centre","NCR",102,102,102,102,102,102,102,102]
["Barcaldine Prep-12 State School","0531","State School","CQR",103,103,103,103,103,103,103,103]
["Bardon Road Behaviour Support Unit",3409,"Support Unit (Other)","SER",104,104,104,104,104,104,104,104]
["Bardon State School",1041,"State School","MER",105,105,105,105,105,105,105,105]
["Bargara State School","0702","State School","NCR",106,106,106,106,106,106,106,106]
["Baringa State Primary School","A109","State School","NCR",107,107,107,107,107,107,107,107]
["Baringa State Secondary College","A908","State High School","NCR",108,108,108,108,108,108,108,108]
["Barkly Highway State School","0777","State School","NQR",109,109,109,109,109,109,109,109]
["Barrett Adolescent Centre Special School",3056,"Specific Purpose School","MER",110,110,110,110,110,110,110,110]
["Bartle Frere State School",1730,"State School","FNR",111,111,111,111,111,111,111,111]
["Bauhinia State School","0387","State School","CQR",112,112,112,112,112,112,112,112]
["Bauple State School","0966","State School","NCR",113,113,113,113,113,113,113,113]
["Bay View State School",1798,"State School","SER",114,114,114,114,114,114,114,114]
["Bayside Christian College Hervey Bay (Urraween)",5579,"Non-State School","NCR",115,115,115,115,115,115,115,115]
["Beachmere State School",1961,"State School","NCR",116,116,116,116,116,116,116,116]
["Beaconsfield State School",1672,"State School","CQR",117,117,117,117,117,117,117,117]
["Beaudesert State High School",2083,"State High School","SER",118,118,118,118,118,118,118,118]
["Beaudesert State School","0158","State School","SER",119,119,119,119,119,119,119,119]
["Bedourie State School",1019,"State School","CQR",120,120,120,120,120,120,120,120]
["Beechmont State School","0681","State School","SER",121,121,121,121,121,121,121,121]
["Beenleigh Special School",3051,"Special School","SER",122,122,122,122,122,122,122,122]
["Beenleigh State High School",2084,"State High School","SER",123,123,123,123,123,123,123,123]
["Beenleigh State School","0006","State School","SER",124,124,124,124,124,124,124,124]
["Beerburrum State School",1598,"State School","NCR",125,125,125,125,125,125,125,125]
["Beerwah State High School",2109,"State High School","NCR",126,126,126,126,126,126,126,126]
["Beerwah State School","0569","State School","NCR",127,127,127,127,127,127,127,127]
["Begonia State School","0187","State School","DSR",128,128,128,128,128,128,128,128]
["Belgian Gardens State School","0509","State School","NQR",129,129,129,129,129,129,129,129]
["Bell State School","0781","State School","DSR",130,130,130,130,130,130,130,130]
["Bellbird Park State Secondary College",9322,"State High School","MER",131,131,131,131,131,131,131,131]
["Bellenden Ker State School",1768,"State School","FNR",132,132,132,132,132,132,132,132]
["Bellevue Park State School",1925,"State School","SER",133,133,133,133,133,133,133,133]
["Bellmere State School",9319,"State School","NCR",134,134,134,134,134,134,134,134]
["Belmont State School","0226","State School","MER",135,135,135,135,135,135,135,135]
["Benaraby State School","0393","State School","CQR",136,136,136,136,136,136,136,136]
["Benarkin State School",1631,"State School","DSR",137,137,137,137,137,137,137,137]
["Benowa State High School",2150,"State High School","SER",138,138,138,138,138,138,138,138]
["Benowa State School","0481","State School","SER",139,139,139,139,139,139,139,139]
["Bentley Park College","0452","State School","FNR",140,140,140,140,140,140,140,140]
["Berrinba East State School",1867,"State School","SER",141,141,141,141,141,141,141,141]
["Berserker Street State School",1546,"State School","CQR",142,142,142,142,142,142,142,142]
["Bethania Lutheran Primary School (Bethania)",5491,"Non-State School","SER",143,143,143,143,143,143,143,143]
["Bethany Lutheran Primary School (Raceview)",5761,"Non-State School","MER",144,144,144,144,144,144,144,144]
["Biboohra State School","0996","State School","FNR",145,145,145,145,145,145,145,145]
["Biddeston State School",1663,"State School","DSR",146,146,146,146,146,146,146,146]
["Biggenden State School","0666","State School","CQR",147,147,147,147,147,147,147,147]
["Biggera Waters State School","0065","State School","SER",148,148,148,148,148,148,148,148]
["Biloela State High School",2085,"State High School","CQR",149,149,149,149,149,149,149,149]
["Biloela State School",1822,"State School","CQR",150,150,150,150,150,150,150,150]
["Binjour Plateau State School",1397,"State School","CQR",151,151,151,151,151,151,151,151]
["Birali Steiner School (Beachmere)","A737","Non-State School","NCR",152,152,152,152,152,152,152,152]
["Birdsville State School",1679,"State School","CQR",153,153,153,153,153,153,153,153]
["Birkdale South State School",1915,"State School","SER",154,154,154,154,154,154,154,154]
["Birkdale State School",1545,"State School","SER",155,155,155,155,155,155,155,155]
["Blackall Range Independent School (Kureelpa)",5500,"Non-State School","NCR",156,156,156,156,156,156,156,156]
["Blackall State School","0299","State School","CQR",157,157,157,157,157,157,157,157]
["Blackbutt State School","0739","State School","DSR",158,158,158,158,158,158,158,158]
["Blackheath and Thornburgh College (Charters Towers)",5800,"Non-State School","NQR",159,159,159,159,159,159,159,159]
["Blackwater North State School",1891,"State School","CQR",160,160,160,160,160,160,160,160]
["Blackwater State High School",2134,"State High School","CQR",161,161,161,161,161,161,161,161]
["Blackwater State School","0396","State School","CQR",162,162,162,162,162,162,162,162]
["Blair State School",1565,"State School","MER",163,163,163,163,163,163,163,163]
["Blenheim State School","0316","State School","DSR",164,164,164,164,164,164,164,164]
["Bli Bli State School","0952","State School","NCR",165,165,165,165,165,165,165,165]
["Bloomfield River State School",1173,"State School","FNR",166,166,166,166,166,166,166,166]
["Bloomsbury State School","0981","State School","CQR",167,167,167,167,167,167,167,167]
["Bluewater State School","0612","State School","NQR",168,168,168,168,168,168,168,168]
["Bluff State School","0344","State School","CQR",169,169,169,169,169,169,169,169]
["Bohlevale State School",1299,"State School","NQR",170,170,170,170,170,170,170,170]
["Bollon State School","0425","State School","DSR",171,171,171,171,171,171,171,171]
["Boonah State High School",2105,"State High School","SER",172,172,172,172,172,172,172,172]
["Boonah State School","0333","State School","SER",173,173,173,173,173,173,173,173]
["Boondall State School",1603,"State School","MER",174,174,174,174,174,174,174,174]
["Booyal Central State School",1542,"State School","NCR",175,175,175,175,175,175,175,175]
["Border Rivers Christian College (Goondiwindi)","A015","Non-State School","DSR",176,176,176,176,176,176,176,176]
["Boronia Heights State School",1981,"State School","SER",177,177,177,177,177,177,177,177]
["Bororen State School","0899","State School","CQR",178,178,178,178,178,178,178,178]
["Bouldercombe State School","0057","State School","CQR",179,179,179,179,179,179,179,179]
["Boulia State School","0595","State School","NQR",180,180,180,180,180,180,180,180]
["Bounty Boulevard State School",6134,"State School","NCR",181,181,181,181,181,181,181,181]
["Bowen State High School",2065,"State High School","NQR",182,182,182,182,182,182,182,182]
["Bowen State School","0010","State School","NQR",183,183,183,183,183,183,183,183]
["Bowenville State School","0815","State School","DSR",184,184,184,184,184,184,184,184]
["Boyne Island Environmental Education Centre",3561,"Outdoor and Environmental Education Centre","CQR",185,185,185,185,185,185,185,185]
["Boyne Island State School",1191,"State School","CQR",186,186,186,186,186,186,186,186]
["Boynewood State School",1465,"State School","CQR",187,187,187,187,187,187,187,187]
["Bracken Ridge State High School",2118,"State High School","MER",188,188,188,188,188,188,188,188]
["Bracken Ridge State School","0772","State School","MER",189,189,189,189,189,189,189,189]
["Brandon State School","0466","State School","NQR",190,190,190,190,190,190,190,190]
["Branyan Road State School",1066,"State School","NCR",191,191,191,191,191,191,191,191]
["Brassall State School","0571","State School","MER",192,192,192,192,192,192,192,192]
["Bray Park State High School",2173,"State High School","NCR",193,193,193,193,193,193,193,193]
["Bray Park State School","0339","State School","NCR",194,194,194,194,194,194,194,194]
["Bremer State High School",2050,"State High School","MER",195,195,195,195,195,195,195,195]
["Bribie Island State High School",2181,"State High School","NCR",196,196,196,196,196,196,196,196]
["Bribie Island State School","0540","State School","NCR",197,197,197,197,197,197,197,197]
["Brigalow State School",1133,"State School","DSR",198,198,198,198,198,198,198,198]
["Brighton State School",1669,"State School","MER",199,199,199,199,199,199,199,199]
["Brightwater State School",7573,"State School","NCR",200,200,200,200,200,200,200,200]
["Brigidine College (Indooroopilly)",5345,"Non-State School","MER",201,201,201,201,201,201,201,201]
["Brisbane Adventist College (Mansfield)",2073,"Non-State School","MER",202,202,202,202,202,202,202,202]
["Brisbane Bayside State College",2104,"State High School","MER",203,203,203,203,203,203,203,203]
["Brisbane Boys' College (Toowong)",5465,"Non-State School","MER",204,204,204,204,204,204,204,204]
["Brisbane Central State School","0207","State School","MER",205,205,205,205,205,205,205,205]
["Brisbane Christian College (Fairlie Tce - Salisbury)",9949,"Associated Facility","MER",206,206,206,206,206,206,206,206]
["Brisbane Christian College (Golda Ave - Salisbury)",5883,"Non-State School","MER",207,207,207,207,207,207,207,207]
["Brisbane Girls Grammar School (Brisbane)",5510,"Non-State School","MER",208,208,208,208,208,208,208,208]
["Brisbane Grammar School (Brisbane)",5509,"Non-State School","MER",209,209,209,209,209,209,209,209]
["Brisbane Independent School (Pullenvale)",5503,"Non-State School","MER",210,210,210,210,210,210,210,210]
["Brisbane Montessori School (Fig Tree Pocket)",5791,"Non-State School","MER",211,211,211,211,211,211,211,211]
["Brisbane School of Distance Education",3605,"School of Distance Education","MER",212,212,212,212,212,212,212,212]
["Brisbane South State Secondary College","A792","State High School","MER",213,213,213,213,213,213,213,213]
["Brisbane State High School",2003,"State High School","MER",214,214,214,214,214,214,214,214]
["Brisbane Urban Environmental Education Centre",3554,"Outdoor and Environmental Education Centre","MER",215,215,215,215,215,215,215,215]
["Brisbane Valley Cluster -  Special Education Program",2319,"Special Education Program","DSR",216,216,216,216,216,216,216,216]
["Brisbane Youth Education and Training Centre",2294,"Educational Unit","MER",217,217,217,217,217,217,217,217]
["Brisbane Youth Education and Training Centre - Inner City","A807","Support Unit (Other)","MER",218,218,218,218,218,218,218,218]
["Broadbeach State School",1381,"State School","SER",219,219,219,219,219,219,219,219]
["Broadwater State School",1071,"State School","DSR",220,220,220,220,220,220,220,220]
["Brookfield State School","0016","State School","MER",221,221,221,221,221,221,221,221]
["Brookstead State School","0311","State School","DSR",222,222,222,222,222,222,222,222]
["Brooweena State School",1035,"State School","NCR",223,223,223,223,223,223,223,223]
["Browns Plains State High School",2164,"State High School","SER",224,224,224,224,224,224,224,224]
["Browns Plains State School",1922,"State School","SER",225,225,225,225,225,225,225,225]
["Bucasia State School",1939,"State School","CQR",226,226,226,226,226,226,226,226]
["Buddina State School",1888,"State School","NCR",227,227,227,227,227,227,227,227]
["Buderim Mountain State School","0223","State School","NCR",228,228,228,228,228,228,228,228]
["Builyan State School",1124,"State School","CQR",229,229,229,229,229,229,229,229]
["Bulimba State School","0017","State School","MER",230,230,230,230,230,230,230,230]
["Bullyard State School","0962","State School","NCR",231,231,231,231,231,231,231,231]
["Bundaberg Central State School","0018","State School","NCR",232,232,232,232,232,232,232,232]
["Bundaberg Christian College (Bundaberg)","0384","Non-State School","NCR",233,233,233,233,233,233,233,233]
["Bundaberg East State School","0497","State School","NCR",234,234,234,234,234,234,234,234]
["Bundaberg North State High School",2019,"State High School","NCR",235,235,235,235,235,235,235,235]
["Bundaberg North State School","0161","State School","NCR",236,236,236,236,236,236,236,236]
["Bundaberg Regional Trade Training Centre",8388,"Associated Unit (Other)","NCR",237,237,237,237,237,237,237,237]
["Bundaberg SHS - Ignite Program","A692","Support Unit (Other)","NCR",238,238,238,238,238,238,238,238]
["Bundaberg South State School","0637","State School","NCR",239,239,239,239,239,239,239,239]
["Bundaberg Special School",3029,"Special School","NCR",240,240,240,240,240,240,240,240]
["Bundaberg State High School",2004,"State High School","NCR",241,241,241,241,241,241,241,241]
["Bundaberg West State School",1836,"State School","NCR",242,242,242,242,242,242,242,242]
["Bundamba State School","0019","State School","MER",243,243,243,243,243,243,243,243]
["Bundamba State Secondary College",2130,"State High School","MER",244,244,244,244,244,244,244,244]
["Bungunya State School",1508,"State School","DSR",245,245,245,245,245,245,245,245]
["Bunker's Hill State School","0853","State School","DSR",246,246,246,246,246,246,246,246]
["Bunyaville Environmental Education Centre",3556,"Outdoor and Environmental Education Centre","MER",247,247,247,247,247,247,247,247]
["Buranda State School","0894","State School","MER",248,248,248,248,248,248,248,248]
["Burdekin Catholic High School (Ayr)",5422,"Non-State School","NQR",249,249,249,249,249,249,249,249]
["Burdekin Christian College (Melbourne St - Ayr)",5880,"Non-State School","NQR",250,250,250,250,250,250,250,250]
["Burdekin School",3003,"Special School","NQR"]
["Burketown State School","0530","State School","NQR"]
["Burleigh Heads State School",1568,"State School","SER"]
["Burnett Heads State School","0319","State School","NCR"]
["Burnett State College",2089,"State High School","CQR"]
["Burnett Youth Learning Centre (Elliott)",5680,"Non-State School","NCR"]
["Burnside State High School",2145,"State High School","NCR"]
["Burnside State School",1873,"State School","NCR"]
["Burpengary Meadows State School",5553,"State School","NCR"]
["Burpengary State School","0601","State School","NCR"]
["Burpengary State Secondary College",9676,"State High School","NCR"]
["Burra Burri State School",1129,"State School","DSR"]
["Burrowes State School",1966,"State School","SER"]
["Butchers Creek State School",1427,"State School","FNR"]
["Bwgcolman Community School","0379","Community School","NQR"]
["Byfield State School",1318,"State School","CQR"]
["Bymount East State School",1047,"State School","DSR"]
["Caboolture East State School",1903,"State School","NCR"]
["Caboolture Montessori School (Caboolture)",1693,"Non-State School","NCR"]
["Caboolture Special School",3045,"Special School","NCR"]
["Caboolture State High School",2066,"State High School","NCR"]
["Caboolture State School","0369","State School","NCR"]
["Cairns Adventist College (Gordonvale)",5486,"Non-State School","FNR"]
["Cairns Early Childhood Development Program",3378,"Special Education Program","FNR"]
["Cairns Flexible Learning Centre",2286,"Positive Learning Centre","FNR"]
["Cairns Hinterland Steiner School (Kuranda)",2419,"Non-State School","FNR"]
["Cairns Hospital Class","A803","Support Unit (Other)","FNR"]
["Cairns School of Distance Education",3601,"School of Distance Education","FNR"]
["Cairns Specialist HUB","A110","Support Unit (Other)","FNR"]
["Cairns State High School",2005,"State High School","FNR"]
["Cairns State Special School","A029","Special School","FNR"]
["Cairns West State School",1522,"State School","FNR"]
["Calamvale Community College",1699,"State School","MER"]
["Calamvale Special School",3055,"Special School","MER"]
["Calen District State College",1550,"State School","CQR"]
["Calliope State High School",9790,"State High School","CQR"]
["Calliope State School","0020","State School","CQR"]
["Caloundra Christian College (Caloundra)",5585,"Non-State School","NCR"]
["Caloundra City Private School (Pelican Waters)",5301,"Non-State School","NCR"]
["Caloundra State High School",2116,"State High School","NCR"]
["Caloundra State School","0859","State School","NCR"]
["Calvary Christian College (Carbrook)",2482,"Associated Facility","SER"]
["Calvary Christian College (Mount Louisa)",5884,"Non-State School","NQR"]
["Calvary Christian College (Springwood)",5540,"Non-State School","SER"]
["Cambooya State School","0196","State School","DSR"]
["Cameron Downs State School","0483","State School","NQR"]
["Camira State School","0352","State School","MER"]
["Camooweal State School","0714","State School","NQR"]
["Camp Fairbairn Outdoor Education Centre",3572,"Outdoor and Environmental Education Centre","CQR"]
["Camp Hill State Infants and Primary School",1854,"State School","MER"]
["Caningeraba State School",1967,"State School","SER"]
["Cannon Hill Anglican College (Cannon Hill)",5797,"Non-State School","MER"]
["Cannon Hill State School",1476,"State School","MER"]
["Cannonvale State School","0589","State School","NQR"]
["Canterbury College (Waterford)",5445,"Non-State School","SER"]
["Canungra State School","0566","State School","SER"]
["Capalaba State College",5534,"State School","SER"]
["Cape York Aboriginal Australian Academy",8009,"State School","FNR"]
["Capella State High School",2182,"State High School","CQR"]
["Capella State School","0410","State School","CQR"]
["Capricornia (Emerald Campus) School of Distance Education",3612,"School of Distance Education","CQR"]
["Capricornia (Rockhampton Campus) School of Dist Ed",3613,"Campus","CQR"]
["Caravonica State School","0927","State School","FNR"]
["Carbrook Animal Assisted Learning Centre (Carbrook)","A759","Non-State School","SER"]
["Carbrook State School","0278","State School","SER"]
["Cardwell State School","0136","State School","FNR"]
["Carina State School",1552,"State School","MER"]
["Carinity Education - Glendyne (Nikenbah)",2416,"Non-State School","NCR"]
["Carinity Education - Rockhampton (Glen Eden)","A719","Associated Facility","CQR"]
["Carinity Education - Rockhampton (Glenlee)",9964,"Non-State School","CQR"]
["Carinity Education - Shalom (Condon)","A683","Non-State School","NQR"]
["Carinity Education - Southside (Sunnybank)",2225,"Non-State School","MER"]
["Carlisle Adventist College (Beaconsfield)",5489,"Non-State School","CQR"]
["Carmel College (Thornlands)",5596,"Non-State School","SER"]
["Carmichael College (Morayfield)",5558,"Non-State School","NCR"]
["Carmila State School",1806,"State School","CQR"]
["Carole Park State School",1044,"State School","MER"]
["Catherine McAuley College (Mackay)","A834","Non-State School","CQR"]
["Cavendish Road State High School",2025,"State High School","MER"]
["Cawarral State School","0135","State School","CQR"]
["Cecil Plains State School","0734","State School","DSR"]
["Cedar Creek State School","0160","State School","SER"]
["Centenary Heights State High School",2121,"State High School","DSR"]
["Centenary State High School",1668,"State High School","MER"]
["Centre for Learning Management",5670,"Positive Learning Centre","NCR"]
["Chancellor State College",2282,"State School","NCR"]
["Chanel College (Gladstone)",5409,"Non-State School","CQR"]
["Chapel Hill State School",1872,"State School","MER"]
["Charleville School of Distance Education",3602,"School of Distance Education","DSR"]
["Charleville State High School",2068,"State High School","DSR"]
["Charleville State School","0185","State School","DSR"]
["Charlotte Mason College (Kallangur)","A114","Non-State School","NCR"]
["Charlotte Mason College Distance Education","A613","Non State School Distance Education","NCR"]
["Charters Towers Central State School","0215","State School","NQR"]
["Charters Towers School of Distance Education",3610,"School of Distance Education","NQR"]
["Charters Towers State High School",2006,"State High School","NQR"]
["Chatswood Hills State School",1924,"State School","SER"]
["Chatsworth State School","0915","State School","NCR"]
["Chelona State School","0677","State School","CQR"]
["Cherbourg State School","0989","State School","DSR"]
["Chevallum State School",1722,"State School","NCR"]
["Childers State School","0568","State School","NCR"]
["Chillagoe State School","0866","State School","FNR"]
["Chinchilla Christian College (Chinchilla)",5792,"Non-State School","DSR"]
["Chinchilla State High School",2087,"State High School","DSR"]
["Chinchilla State School","0244","State School","DSR"]
["Chisholm Catholic College (Cornubia)",5380,"Non-State School","SER"]
["Christ the King Catholic Primary School (Deception Bay)",5106,"Non-State School","NCR"]
["Christ the King School (Graceville)",5003,"Non-State School","MER"]
["Churchill State School",1789,"State School","MER"]
["Citipointe Christian College (Carindale)",5871,"Non-State School","MER"]
["City Alternative Program",7561,"Support Unit (Other)","MER"]
["Clairvaux Mackillop College (Upper Mount Gravatt)",5376,"Non-State School","MER"]
["Clare State School","0171","State School","NQR"]
["Claremont Special School",3066,"Special School","MER"]
["Clarendon State School",1732,"State School","MER"]
["Clarke Creek State School","0606","State School","CQR"]
["Clayfield College (Clayfield)",5466,"Non-State School","MER"]
["Clermont State High School",2185,"State High School","CQR"]
["Clermont State School","0021","State School","CQR"]
["Cleveland District State High School",2070,"State High School","SER"]
["Cleveland Education and Training Centre",3160,"Educational Unit","NQR"]
["Cleveland State School","0022","State School","SER"]
["Clifford Park Special School",3087,"Special School","DSR"]
["Clifton State High School",2111,"State High School","DSR"]
["Clifton State School","0687","State School","DSR"]
["Clinton State School","0172","State School","CQR"]
["Cloncurry State School P-12","0411","State School","NQR"]
["Clontarf Beach State High School",2091,"State High School","NCR"]
["Clontarf Beach State School","0162","State School","NCR"]
["Clover Hill State School",2345,"State School","SER"]
["Cloyna State School",1254,"State School","DSR"]
["Coalfields Training Excellence Centre",5747,"Support Unit (Other)","CQR"]
["Coalstoun Lakes State School",1225,"State School","CQR"]
["Coen Campus of CYAAA",1480,"Campus","FNR"]
["Collingwood Park State School",1956,"State School","MER"]
["Collinsville State High School",2171,"State High School","NQR"]
["Collinsville State School",1691,"State School","NQR"]
["Columba Catholic College (Hackett Tce - Charters Towers)",1653,"Non-State School","NQR"]
["Columba Catholic College (Mary St - Charters Towers)",2476,"Associated Facility","NQR"]
["Columboola Environmental Education Centre",3564,"Outdoor and Environmental Education Centre","DSR"]
["Comet State School","0173","State School","CQR"]
["Concordia Lutheran College (Hume St - Toowoomba)",5702,"Associated Facility","DSR"]
["Concordia Lutheran College (Stephen St - Toowoomba)",5498,"Non-State School","DSR"]
["Concordia Lutheran College (Warwick St - Toowoomba) ",5701,"Associated Facility","DSR"]
["Condamine State School","0024","State School","DSR"]
["Coningsby State School","0439","State School","CQR"]
["Conondale State School",1352,"State School","NCR"]
["Cooktown State School","0177","State School","FNR"]
["Coolabunia State School","0638","State School","DSR"]
["Coolangatta State School",1630,"State School","SER"]
["Coolnwynpin State School",1927,"State School","SER"]
["Cooloola Christian College (Gympie)",5855,"Non-State School","NCR"]
["Coolum Beach Christian College (Coolum Beach)",5414,"Non-State School","NCR"]
["Coolum State High School",2165,"State High School","NCR"]
["Coolum State School",1571,"State School","NCR"]
["Coombabah State High School",2166,"State High School","SER"]
["Coombabah State School",1909,"State School","SER"]
["Coomera Anglican College (Upper Coomera)","0594","Non-State School","SER"]
["Coomera Rivers State School",7122,"State School","SER"]
["Coomera Springs State School",5730,"State School","SER"]
["Coomera State School","0124","State School","SER"]
["Coomera State Special School","B016","Special School","SER"]
["Coominya State School",1359,"State School","MER"]
["Coopers Plains State School",1247,"State School","MER"]
["Cooran State School","0602","State School","NCR"]
["Cooroy Hub Special Education Program",2245,"Special Education Program","NCR"]
["Cooroy State School",1165,"State School","NCR"]
["Coorparoo Centre for Continuing Secondary Education",3701,"Centre for Continuing Secondary Education","MER"]
["Coorparoo Secondary College",2077,"State High School","MER"]
["Coorparoo State School","0219","State School","MER"]
["Coowonga State School","0032","State School","CQR"]
["Cooyar State School",1084,"State School","DSR"]
["Coppabella State School",1898,"State School","CQR"]
["Cordalba State School","0117","State School","NCR"]
["Corinda State High School",2055,"State High School","MER"]
["Corinda State School",1025,"State School","MER"]
["Craigslea Sensitivity Unit",7308,"Support Unit (Other)","MER"]
["Craigslea State High School",2023,"State High School","MER"]
["Craigslea State School","0060","State School","MER"]
["Cranbrook State School",1907,"State School","NQR"]
["Crawford State School","0399","State School","DSR"]
["Crescent Lagoon State School","0762","State School","CQR"]
["Crestmead State School",1928,"State School","SER"]
["Crow's Nest State School","0293","State School","DSR"]
["Croydon State School","0165","State School","FNR"]
["Cunnamulla P-12 State School","0289","State School","DSR"]
["Currajong State School","0355","State School","NQR"]
["Currimundi Special School",3054,"Special School","NCR"]
["Currimundi State School",1868,"State School","NCR"]
["Currumbin Community Farm Campus",6588,"Support Unit (Other)","SER"]
["Currumbin Community Special School",3043,"Special School","SER"]
["Currumbin State School",1168,"State School","SER"]
["Currumbin Valley State School","0775","State School","SER"]
["Dagun State School","0892","State School","NCR"]
["Daintree State School",1022,"State School","FNR"]
["Daisy Hill State School","0099","State School","SER"]
["Dajarra State School",1670,"State School","NQR"]
["Dakabin State High School",2142,"State High School","NCR"]
["Dakabin State School",1988,"State School","NCR"]
["Dalby Christian College (Dalby)",5583,"Non-State School","DSR"]
["Dalby South State School","0671","State School","DSR"]
["Dalby State High School",2033,"State High School","DSR"]
["Dalby State High School - Bunya Campus",7362,"Campus","DSR"]
["Dalby State High School - Student Residential",7596,"Student Residential","DSR"]
["Dalby State School","0028","State School","DSR"]
["Dallarnil State School","0950","State School","CQR"]
["Dalrymple Trade Training Centre",9679,"Associated Unit (Other)","NQR"]
["Dalveen State School","0318","State School","DSR"]
["Daradgee Environmental Education Centre",3581,"Outdoor and Environmental Education Centre","FNR"]
["Darling Downs Christian School (Toowoomba)",5482,"Non-State School","DSR"]
["Darling Heights State School",1900,"State School","DSR"]
["Darling Point Special School",3025,"Special School","MER"]
["Darlingia Forest School (East Innisfail)","A974","Non-State School","FNR"]
["Darlington State School","0520","State School","SER"]
["Darra State School",1520,"State School","MER"]
["Dayboro State School","0191","State School","NCR"]
["Deception Bay Flexible Learning Centre (Grosvenor Tce - Deception Bay)","A784","Associated Facility","NCR"]
["Deception Bay Flexible Learning Centre (Grosvenor Tce & Silver St - Deception Bay)",5637,"Non-State School","NCR"]
["Deception Bay North State School",1884,"State School","NCR"]
["Deception Bay State High School",2107,"State High School","NCR"]
["Deception Bay State High School - Futures Program","A785","Support Unit (Other)","NCR"]
["Deception Bay State School","0237","State School","NCR"]
["Deebing Heights State School",9916,"State School","MER"]
["Delaneys Creek State School","0683","State School","NCR"]
["Denise Kable Support Unit",3295,"Support Unit (Other)","DSR"]
["Denison State School","0392","State School","CQR"]
["Depot Hill State School","0837","State School","CQR"]
["Desert Mob Silver Lining School (Barcaldine)","B030","Non-State School","CQR"]
["Dimbulah State School",1226,"State School","FNR"]
["Dingo State School","0266","State School","CQR"]
["Dirranbandi P-10 State School",1001,"State School","DSR"]
["Discovery Christian College (Agnes Water)",9729,"Non-State School","NCR"]
["Djarragun College (Gordonvale)","B094","Non-State School","FNR"]
["Djarragun College (Wangetti Beach)","B095","Associated Facility - Special Assistance School","FNR"]
["Doomadgee State School","0330","State School","NQR"]
["Downlands College (Toowoomba)",5395,"Non-State School","DSR"]
["Drayton State School","0031","State School","DSR"]
["Drillham State School","0889","State School","DSR"]
["Duaringa State School","0342","State School","CQR"]
["Dulacca State School",1170,"State School","DSR"]
["Dundula State School",1779,"State School","CQR"]
["Dunkeld State School","0934","State School","DSR"]
["Dunwich State School","0784","State School","SER"]
["Durack State School","0959","State School","MER"]
["Durong South State School",1667,"State School","DSR"]
["Dutton Park State School","0506","State School","MER"]
["Dysart State High School",2156,"State High School","CQR"]
["Dysart State School","0097","State School","CQR"]
["Eagle Junction State School","0726","State School","MER"]
["Eagleby Learning Centre - Centre for Continuing Secondary Education",3711,"Centre for Continuing Secondary Education","SER"]
["Eagleby South State School",1876,"State School","SER"]
["Eagleby State School",1974,"State School","SER"]
["Earnshaw State College",5180,"State School","MER"]
["East Ayr State School","0908","State School","NQR"]
["East Brisbane State School","0877","State School","MER"]
["Eatons Hill State School","0593","State School","MER"]
["Edens Landing State School","0301","State School","SER"]
["Edge Hill State School","0235","State School","FNR"]
["Eidsvold State School","0581","State School","CQR"]
["Eight Mile Plains State School","0034","State School","MER"]
["Eimeo Road State School","0545","State School","CQR"]
["El Arish State School",1758,"State School","FNR"]
["Elanora State High School",2183,"State High School","SER"]
["Elanora State School",1923,"State School","SER"]
["Elimbah State School","0953","State School","NCR"]
["Elliott Heads State School",1347,"State School","NCR"]
["Emerald Christian College (Emerald)",2288,"Non-State School","CQR"]
["Emerald North State School",1904,"State School","CQR"]
["Emerald State High School",2122,"State High School","CQR"]
["Emerald State School","0354","State School","CQR"]
["Emmanuel Catholic Primary School (Mount Pleasant)","0367","Non-State School","CQR"]
["Emmanuel College (Carrara)",5814,"Non-State School","SER"]
["Emmaus College (Jimboomba)",2358,"Non-State School","SER"]
["Emmaus College (North Rockhampton)",2469,"Associated Facility","CQR"]
["Emmaus College (Park Avenue)",5408,"Non-State School","CQR"]
["Emu Creek State School","0154","State School","DSR"]
["Emu Park State School","0473","State School","CQR"]
["Endeavour Christian College (Cooktown)",7107,"Non-State School","FNR"]
["Enkindle Village School (Douglas)","A736","Non-State School","NQR"]
["Enoggera State School","0035","State School","MER"]
["EQIP Technical College - Gladstone Region",6126,"Associated Unit (Other)","CQR"]
["Eromanga State School",1179,"State School","DSR"]
["Esk State School","0199","State School","DSR"]
["Eton State School","0310","State School","CQR"]
["Eudlo State School","0682","State School","NCR"]
["Eulo State School","0222","State School","DSR"]
["Eumundi State School","0698","State School","NCR"]
["Eungella State School",1353,"State School","CQR"]
["Everleigh State School","B017","State School","SER"]
["Everton Park State High School",2061,"State High School","MER"]
["Everton Park State School",1185,"State School","MER"]
["Fairholme College (Toowoomba)",5473,"Non-State School","DSR"]
["Fairview Heights State School",1751,"State School","DSR"]
["Faith Baptist Christian School (Burua)","0736","Non-State School","CQR"]
["Faith Christian School of Distance Education (Underwood)","B034","Non-State School","MER"]
["Faith Christian School of Distance Education (Woodridge)","A776","Associated Facility - Special Assistance School","SER"]
["Faith Lutheran College - Plainland (Plainland)",2222,"Non-State School","DSR"]
["Faith Lutheran College - Redlands (Thornlands)",5312,"Associated Facility","SER"]
["Faith Lutheran College - Redlands (Victoria Point)",5763,"Non-State School","SER"]
["Farleigh State School",1172,"State School","CQR"]
["Farnborough State School",1027,"State School","CQR"]
["Federal State School",1205,"State School","NCR"]
["Feluga State School","0810","State School","FNR"]
["Fernbrooke State School",9969,"State School","MER"]
["Fernvale State School","0170","State School","MER"]
["Ferny Grove State High School",2148,"State High School","MER"]
["Ferny Grove State School","0227","State School","MER"]
["Ferny Hills State School","0250","State School","MER"]
["Fig Tree Pocket State School","0036","State School","MER"]
["Finch Hatton State School",1175,"State School","CQR"]
["Fitzgerald State School",1883,"State School","CQR"]
["Flagstone Creek State School","0489","State School","DSR"]
["Flagstone State Community College",2323,"State High School","SER"]
["Flagstone State School","0471","State School","SER"]
["Flying Fish Point State School","0845","State School","FNR"]
["Forest Hill State School","0697","State School","DSR"]
["Forest Lake State High School",1726,"State High School","MER"]
["Forest Lake State School",1998,"State School","MER"]
["Forrest Beach State School",1897,"State School","NQR"]
["Forsayth State School","0523","State School","FNR"]
["Fortitude Valley State Secondary College","A722","State High School","MER"]
["Foxwell State Secondary College","A788","State High School","SER"]
["Fraser Coast Anglican College (Wondunna)","0005","Non-State School","NCR"]
["Freestone State School","0040","State School","DSR"]
["Frenchville State School","0940","State School","CQR"]
["Freshwater Christian College (Brinsmead)",5887,"Non-State School","FNR"]
["Freshwater State School",1812,"State School","FNR"]
["Gabbinbar State School","0084","State School","DSR"]
["Gainsborough State School",9334,"State School","SER"]
["Garbutt State School",1434,"State School","NQR"]
["Gargett State School",1460,"State School","CQR"]
["Gatton State School","0041","State School","DSR"]
["Gaven State School",1752,"State School","SER"]
["Gayndah State School","0042","State School","CQR"]
["Geebung Special School",3077,"Special School","MER"]
["Geebung State School",1257,"State School","MER"]
["Geham State School","0054","State School","DSR"]
["Genesis Christian College (Bray Park)",5592,"Non-State School","NCR"]
["Georgetown State School","0178","State School","FNR"]
["Gilroy Santa Maria College (Ingham)",5328,"Non-State School","NQR"]
["Gilston State School","0050","State School","SER"]
["Gin Gin State High School",2131,"State High School","NCR"]
["Gin Gin State School","0298","State School","NCR"]
["Gindie State School","0709","State School","CQR"]
["Giru State School",1258,"State School","NQR"]
["Givelda Alternative Program Support Unit (Other)","A917","Support Unit (Other)","NCR"]
["Givelda State School","0749","State School","NCR"]
["Gladstone Area Small Schools - SEP Special Education Program","A892","Special Education Program","CQR"]
["Gladstone Central State School","0044","State School","CQR"]
["Gladstone Schools Engineering Skills Centre",5654,"Support Unit (Other)","CQR"]
["Gladstone South State School","0825","State School","CQR"]
["Gladstone State High School",2030,"State High School","CQR"]
["Gladstone West State School","0740","State School","CQR"]
["Glamorgan Vale State School","0149","State School","MER"]
["Glass House Mountains State School",1242,"State School","NCR"]
["Glasshouse Christian College (Beerwah)",2257,"Non-State School","NCR"]
["Glen Aplin State School","0544","State School","DSR"]
["Glenala State High School",1592,"State High School","MER"]
["Glenden State School",1918,"State School","CQR"]
["Gleneagle State School",1006,"State School","SER"]
["Glenella State School","0313","State School","CQR"]
["Glenmore State High School",2028,"State High School","CQR"]
["Glenmore State School","0574","State School","CQR"]
["Glenmorgan State School","0917","State School","DSR"]
["Glennie Heights State School","0770","State School","DSR"]
["Glenore Grove State School",1089,"State School","DSR"]
["Glenvale Christian School (Glenvale)","0741","Non-State School","DSR"]
["Glenvale State School","0126","State School","DSR"]
["Glenview State School","0337","State School","NCR"]
["Glenwood State School",1617,"State School","NCR"]
["Gogango State School","0552","State School","CQR"]
["Gold Coast Christian College (Reedy Creek)",5477,"Non-State School","SER"]
["Gold Coast University Hospital Class",6327,"Support Unit (Other)","SER"]
["Golden Beach State School",1920,"State School","NCR"]
["Gooburrum State School","0407","State School","NCR"]
["Good Counsel College (Innisfail)",5437,"Non-State School","FNR"]
["Good Counsel Primary School (Innisfail)",5263,"Non-State School","FNR"]
["Good News Lutheran School (Middle Park)",5768,"Non-State School","MER"]
["Good Samaritan Catholic College (Bli Bli)","A106","Non-State School","NCR"]
["Good Samaritan College (Toowoomba)",2367,"Non-State School","DSR"]
["Good Shepherd Catholic College (Mount Isa)",5421,"Non-State School","NQR"]
["Good Shepherd Catholic Primary School (Springfield Lakes)",7612,"Non-State School","MER"]
["Good Shepherd Catholic School (Rasmussen)","0308","Non-State School","NQR"]
["Good Shepherd Christian School (Albany Creek)",5161,"Non-State School","MER"]
["Good Shepherd Lutheran College (Noosaville)",5520,"Non-State School","NCR"]
["Goodna Special School",3034,"Special School","MER"]
["Goodna State School","0045","State School","MER"]
["Goodwood State School","0939","State School","NCR"]
["Goombungee State School","0111","State School","DSR"]
["Goomeri State School",1310,"State School","DSR"]
["Goondi State School","0807","State School","FNR"]
["Goondiwindi State High School",2092,"State High School","DSR"]
["Goondiwindi State School","0046","State School","DSR"]
["Goora Gan Steiner School (Agnes Water)","A659","Non-State School","NCR"]
["Goovigen State School",1839,"State School","CQR"]
["Gordonvale State High School",2106,"State High School","FNR"]
["Gordonvale State School","0790","State School","FNR"]
["Gowrie State School","0297","State School","DSR"]
["Grace Lutheran College (Caboolture)",5652,"Associated Facility","NCR"]
["Grace Lutheran College (Rothwell)",5780,"Non-State School","NCR"]
["Grace Lutheran Primary School (Clontarf)",5760,"Non-State School","NCR"]
["Gracemere State School","0047","State School","CQR"]
["Graceville State School",1515,"State School","MER"]
["Grand Avenue State School",1674,"State School","MER"]
["Grandchester State School","0145","State School","MER"]
["Grantham State School",1051,"State School","DSR"]
["Granville State School","0193","State School","NCR"]
["Great Alternate Programme",6145,"Support Unit (Other)","NCR"]
["Great Barrier Reef International Marine College",7583,"Support Unit (Other)","FNR"]
["Greenbank State School","0695","State School","SER"]
["Greenlands State School","0925","State School","DSR"]
["Greenmount State School","0976","State School","DSR"]
["Greenslopes State School","0614","State School","MER"]
["Greenvale State School","0334","State School","NQR"]
["Griffin State School",9339,"State School","NCR"]
["Grosmont State School",1056,"State School","DSR"]
["Grovely State School",1136,"State School","MER"]
["Groves Christian College (Distance)",5695,"Non State School Distance Education","SER"]
["Groves Christian College (Laughlin St - Kingston)",1860,"Non-State School","SER"]
["Groves Christian College (Velorum Dr - Kingston)",5552,"Associated Facility","SER"]
["Guardian Angels' Catholic Primary School (Ashmore)",5113,"Non-State School","SER"]
["Guardian Angels' Primary School (Wynnum)",5006,"Non-State School","MER"]
["Gulf Christian College (Brown St, Normanton)",5895,"Non-State School","NQR"]
["Gulf Christian College (Thompson St - Normanton)","A014","Associated Facility","NQR"]
["Guluguba State School",1549,"State School","DSR"]
["Gumdale State School",1608,"State School","MER"]
["Gumlu State School",1391,"State School","NQR"]
["Gunalda State School","0058","State School","NCR"]
["Gundiah State School","0821","State School","NCR"]
["Gympie Central State School","0049","State School","NCR"]
["Gympie East State School","0482","State School","NCR"]
["Gympie Flexible Learning Centre (Gympie)",7611,"Non-State School","NCR"]
["Gympie Schools Trade Training Centre",9915,"Associated Unit (Other)","NCR"]
["Gympie South State School",1221,"State School","NCR"]
["Gympie Special School",3007,"Special School","NCR"]
["Gympie State High School",2007,"State High School","NCR"]
["Gympie West State School","0560","State School","NCR"]
["Haden State School",1329,"State School","DSR"]
["Haigslea State School","0114","State School","MER"]
["Halifax State School","0213","State School","NQR"]
["Hambledon State School","0538","State School","FNR"]
["Hamilton Island State School",1962,"State School","NQR"]
["Hamilton State School",1130,"State School","MER"]
["Hampden State School","0529","State School","CQR"]
["Hannaford State School",1849,"State School","DSR"]
["Happy Valley State School","0843","State School","NQR"]
["Harlaxton State School","0978","State School","DSR"]
["Harlin State School","0902","State School","DSR"]
["Harris Fields State School","0359","State School","SER"]
["Harristown State High School",2038,"State High School","DSR"]
["Harristown State School",1292,"State School","DSR"]
["Harrisville State School","0621","State School","SER"]
["Hatton Vale State School","0390","State School","DSR"]
["Hayman Island State School",1060,"State School","NQR"]
["Healy State School","0232","State School","NQR"]
["Heatley Secondary College",2120,"State High School","NQR"]
["Heatley State School","0305","State School","NQR"]
["Hebel State School","0954","State School","DSR"]
["Heights College (North Rockhampton)",5899,"Non-State School","CQR"]
["Helensvale Learning Centre","A691","Support Unit (Other)","SER"]
["Helensvale State High School",2184,"State High School","SER"]
["Helensvale State School",1929,"State School","SER"]
["Helidon State School","0052","State School","DSR"]
["Hemmant Flexible Learning Centre (Hemmant)",8192,"Non-State School","MER"]
["Hendra State School","0033","State School","MER"]
["Herberton State School","0254","State School","FNR"]
["Herberton State School - Primary Campus",6140,"Campus","FNR"]
["Herberton State School - Secondary Campus",6141,"Campus","FNR"]
["Hercules Road State School",1858,"State School","NCR"]
["Hermit Park State School","0873","State School","NQR"]
["Hervey Bay Positive Learning Centre",5719,"Positive Learning Centre","NCR"]
["Hervey Bay Special School",3057,"Special School","NCR"]
["Hervey Bay State High School",2093,"State High School","NCR"]
["Highfields State School","0053","State School","DSR"]
["Highfields State Secondary College",9340,"State High School","DSR"]
["Highland Reserve State School",6135,"State School","SER"]
["Highlands Christian College (Toowoomba)",5862,"Non-State School","DSR"]
["Hilder Road State School",1887,"State School","MER"]
["Hillbrook Anglican School (Enoggera)",5441,"Non-State School","MER"]
["Hillcrest Christian College (Reedy Creek)",5571,"Non-State School","SER"]
["Hilliard State School",1986,"State School","SER"]
["Hills International College (Jimboomba)",5798,"Non-State School","SER"]
["Hillview State School","0541","State School","SER"]
["Hinchinbrook Christian School (Distance)",5698,"Non State School Distance Education","NQR"]
["Hinchinbrook Christian School (Ingham)",5589,"Non-State School","NQR"]
["Holland Park State High School",2125,"State High School","MER"]
["Holland Park State School",1593,"State School","MER"]
["Holloways Beach Environmental Education Centre",3582,"Outdoor and Environmental Education Centre","FNR"]
["Holy Cross School (Trinity Park)",5891,"Non-State School","FNR"]
["Holy Cross School (Wooloowin)",5009,"Non-State School","MER"]
["Holy Family Primary School (Indooroopilly)",5010,"Non-State School","MER"]
["Holy Name Primary School (Toowoomba)",5146,"Non-State School","DSR"]
["Holy Spirit Catholic School (Cranbrook)",5233,"Non-State School","NQR"]
["Holy Spirit College (Cooktown)",8742,"Non-State School","FNR"]
["Holy Spirit College (Edmonton)","A976","Associated Facility","FNR"]
["Holy Spirit College (Fitzgibbon)","A835","Non-State School","MER"]
["Holy Spirit College (Manoora)",8739,"Associated Facility","FNR"]
["Holy Spirit College (Mount Pleasant)","0374","Non-State School","CQR"]
["Holy Spirit School (Bray Park)",5013,"Non-State School","NCR"]
["Holy Spirit School (New Farm)",5012,"Non-State School","MER"]
["Home Hill State High School",2094,"State High School","NQR"]
["Home Hill State School",1380,"State School","NQR"]
["Homebush State School","0470","State School","CQR"]
["Homestead State School","0241","State School","NQR"]
["Hope Adventist School (North Bundaberg)",5483,"Non-State School","NCR"]
["Hopevale Campus of CYAAA","0243","Campus","FNR"]
["Horizons College of Learning and Enrichment (Caboolture)",9714,"Non-State School","NCR"]
["Howard State School","0345","State School","NCR"]
["Hubbard's School (Milton)",2373,"Non-State School","MER"]
["Hughenden State School","0388","State School","NQR"]
["Humanitas High School (Fortitude Valley)","B014","Non-State School","MER"]
["Humpybong State School","0164","State School","NCR"]
["Hymba Yumba Independent School (Springfield)",6309,"Non-State School","MER"]
["IES College (Spring Hill)","A760","Non-State School","MER"]
["Ignatius Park College (Cranbrook)",5424,"Non-State School","NQR"]
["Ilfracombe State School","0713","State School","CQR"]
["Immaculate Heart School (Leichhardt)",5016,"Non-State School","MER"]
["Immanuel Lutheran College (Buderim)",5499,"Non-State School","NCR"]
["IMPACT Centre","A735","Support Unit (Other)","MER"]
["Inala Flexible Learning Centre (Inala)",8578,"Non-State School","MER"]
["Inala State School",1116,"State School","MER"]
["Indie School, Logan (Browns Plains)","B103","Non-State School","SER"]
["Indooroopilly Special Education Unit (ESL)",5667,"Intensive English Centre","MER"]
["Indooroopilly State High School",2034,"State High School","MER"]
["Indooroopilly State School","0585","State School","MER"]
["Ingham State High School",2027,"State High School","NQR"]
["Ingham State School","0450","State School","NQR"]
["Ingleside State School","0661","State School","SER"]
["Inglewood State School","0055","State School","DSR"]
["Injune P-10 State School",1723,"State School","DSR"]
["Innisfail East State School",1660,"State School","FNR"]
["Innisfail State College",6463,"State High School","FNR"]
["Innisfail State School","0527","State School","FNR"]
["Iona College (Lindum)",5295,"Non-State School","MER"]
["Ipswich Adventist School (Brassall)",5479,"Non-State School","MER"]
["Ipswich Central State School","0059","State School","MER"]
["Ipswich East State School","0575","State School","MER"]
["Ipswich Flexible Learning Centre (Ipswich)",7922,"Non-State School","MER"]
["Ipswich Girls' Grammar School including Ipswich Junior Grammar School (East Ipswich)",5513,"Non-State School","MER"]
["Ipswich Grammar School (Ipswich)",5514,"Non-State School","MER"]
["Ipswich Hospital Class","A804","Support Unit (Other)","MER"]
["Ipswich North State School","0061","State School","MER"]
["Ipswich Positive Learning Centre",2284,"Positive Learning Centre","MER"]
["Ipswich Special School",3018,"Special School","MER"]
["Ipswich State High School",2069,"State High School","MER"]
["Ipswich West Special School",3015,"Special School","MER"]
["Ipswich West State School","0366","State School","MER"]
["Ironside State School","0108","State School","MER"]
["Irvinebank State School","0519","State School","FNR"]
["Isabella State School",1721,"State School","FNR"]
["Isis District State High School",2063,"State High School","NCR"]
["Isisford State School","0063","State School","CQR"]
["Islamic College of Brisbane (Karawatha)","0091","Non-State School","MER"]
["Ithaca Creek State School","0455","State School","MER"]
["Jabiru Community College (Zillmere)","A731","Non-State School","MER"]
["Jacobs Well Environmental Education Centre",3552,"Outdoor and Environmental Education Centre","SER"]
["Jambin State School",1659,"State School","CQR"]
["Jamboree Heights State School","0276","State School","MER"]
["James Nash State High School",2137,"State High School","NCR"]
["Jandowae Prep-10 State School","0537","State School","DSR"]
["Jarvisfield State School","0798","State School","NQR"]
["Jericho State School","0206","State School","CQR"]
["Jimboomba State School","0604","State School","SER"]
["Jimbour State School",1558,"State School","DSR"]
["Jindalee State School","0402","State School","MER"]
["Jinibara State School","0180","State School","NCR"]
["John Paul College (Daisy Hill)",5590,"Non-State School","SER"]
["Jondaryan State School","0064","State School","DSR"]
["Jones Hill State School","0649","State School","NCR"]
["Josiah College (Carrara)","A623","Non-State School","SER"]
["Jubilee Christian College (Atherton)",5882,"Non-State School","FNR"]
["Jubilee Christian College (Atherton)(Distance)",5697,"Non State School Distance Education","FNR"]
["Jubilee Primary School (Pacific Pines)",2263,"Non-State School","SER"]
["Julatten State School",1809,"State School","FNR"]
["Julia Creek State School",1289,"State School","NQR"]
["Junction Park State School","0514","State School","MER"]
["Jundah State School","0910","State School","CQR"]
["Kaimkillenbun State School",1187,"State School","DSR"]
["Kairi State School",1279,"State School","FNR"]
["Kairos Community College (Caloundra)","A795","Associated Facility","NCR"]
["Kairos Community College (Deception Bay)",9630,"Non-State School","NCR"]
["Kalamia State School",1494,"State School","NQR"]
["Kalbar State School","0343","State School","SER"]
["Kalkie State School","0277","State School","NCR"]
["Kallangur State School","0605","State School","NCR"]
["Kandanga State School",1478,"State School","NCR"]
["Karalee State School",1938,"State School","MER"]
["Karara State School",1145,"State School","DSR"]
["Karumba State School","0449","State School","NQR"]
["Kawana Waters State College",5653,"State School","NCR"]
["Kawungan State School",1987,"State School","NCR"]
["Kay Hass Memorial Cycle Track (Maryborough)",3599,"Support Unit (Other)","NCR"]
["Kedron State High School",2039,"State High School","MER"]
["Kedron State School","0371","State School","MER"]
["Keebra Park Alternate Pathways Centre",6605,"Support Unit (Other)","SER"]
["Keebra Park Special Education Unit (ESL)",3256,"Intensive English Centre","SER"]
["Keebra Park State High School",2046,"State High School","SER"]
["Kelso State School",1960,"State School","NQR"]
["Kelvin Grove State College",2409,"State School","MER"]
["Kenilworth State Community College",1309,"State School","NCR"]
["Kenmore South State School",1143,"State School","MER"]
["Kenmore State High School",2132,"State High School","MER"]
["Kenmore State School","0923","State School","MER"]
["Kennedy State School","0868","State School","FNR"]
["Kentville State School","0710","State School","DSR"]
["Kepnock State High School",2095,"State High School","NCR"]
["Keppel Sands State School","0670","State School","CQR"]
["Kia-Ora State School",1707,"State School","NCR"]
["Kilcoy State High School",2133,"State High School","NCR"]
["Kilcoy State School","0679","State School","NCR"]
["Kilcummin State School","0787","State School","CQR"]
["Kilkivan State School","0168","State School","NCR"]
["Killarney P-10 State School","0163","State School","DSR"]
["Kimberley College (Carbrook)",2226,"Non-State School","SER"]
["Kimberley Park State School",1937,"State School","SER"]
["Kin Kin State School",1534,"State School","NCR"]
["Kin Kora State School",1912,"State School","CQR"]
["Kinchant Dam Outdoor Education Centre",3579,"Outdoor and Environmental Education Centre","CQR"]
["Kindon State School","0753","State School","DSR"]
["Kingaroy State High School",2044,"State High School","DSR"]
["Kingaroy State School","0995","State School","DSR"]
["King's Christian College (Chambers Flat)","A713","Associated Facility","SER"]
["King's Christian College (Pimpama)",9675,"Associated Facility","SER"]
["King's Christian College (Reedy Creek)",5582,"Non-State School","SER"]
["Kingsley College (Distance)",9975,"Non State School Distance Education","CQR"]
["Kingsley College (North Rockhampton)",5595,"Non-State School","CQR"]
["Kingsthorpe State School",1274,"State School","DSR"]
["Kingston Centre for Continuing Secondary Education",3705,"Centre for Continuing Secondary Education","SER"]
["Kingston State College",2139,"State High School","SER"]
["Kingston State School",1348,"State School","SER"]
["Kioma State School","0415","State School","DSR"]
["Kippa-Ring State School","0616","State School","NCR"]
["Kirwan State High School",2146,"State High School","NQR"]
["Kirwan State School",1862,"State School","NQR"]
["Kogan State School",1078,"State School","DSR"]
["Kolan South State School","0279","State School","NCR"]
["Konomie Island Environmental Education Centre",3571,"Outdoor and Environmental Education Centre","CQR"]
["Koumala State School",1780,"State School","CQR"]
["Kowanyama State School","0460","State School","FNR"]
["Kruger State School",1878,"State School","MER"]
["Kulpi State School",1472,"State School","DSR"]
["Kuluin State School",1968,"State School","NCR"]
["Kumbia State School",1423,"State School","DSR"]
["Kuraby Special School",3040,"Special School","MER"]
["Kuraby State School",1462,"State School","MER"]
["Kuranda District State College",5689,"State School","FNR"]
["Kurwongbah State School",1958,"State School","NCR"]
["Kutta Mulla Gorinna Special Assistance School (Mackay)","A793","Non-State School","CQR"]
["Labrador State School","0443","State School","SER"]
["Laidley District State School",1676,"State School","DSR"]
["Laidley State High School",2163,"State High School","DSR"]
["Lake Clarendon State School",1009,"State School","DSR"]
["Lakeland State School","0202","State School","FNR"]
["Lakes Creek State School","0067","State School","CQR"]
["Landsborough State School","0349","State School","NCR"]
["Laser 3 Retrieval Unit",7563,"Support Unit (Other)","MER"]
["Laura State School","0583","State School","FNR"]
["Lawnton State School","0329","State School","NCR"]
["Lee Street State Special School","A791","Special School","NCR"]
["Leichhardt State School",1148,"State School","MER"]
["Leyburn State School","0068","State School","DSR"]
["Lighthouse Christian School (Norman Gardens)","0001","Non-State School","CQR"]
["Linville State School","0980","State School","DSR"]
["Living Faith Lutheran Primary School (Murrumba Downs)",2331,"Non-State School","NCR"]
["Livingstone Christian College (Ormeau)",2417,"Non-State School","SER"]
["Lochington State School",1119,"State School","CQR"]
["Lockhart State School","0505","State School","FNR"]
["Lockrose State School",1061,"State School","DSR"]
["Lockyer District State High School",2062,"State High School","DSR"]
["Logan City Special School",3001,"Special School","SER"]
["Logan Hospital AMHU Class",8085,"Support Unit (Other)","SER"]
["Logan Reserve State School","0069","State School","SER"]
["Logan Village State School","0123","State School","SER"]
["Loganholme State School","0070","State School","SER"]
["Loganlea State High School",2153,"State High School","SER"]
["Longreach School of Distance Education",3611,"School of Distance Education","CQR"]
["Longreach State High School",2112,"State High School","CQR"]
["Longreach State School","0711","State School","CQR"]
["Loreto College Coorparoo (Coorparoo)",5349,"Non-State School","MER"]
["Lota State School","0882","State School","MER"]
["Lourdes Hill College (Hawthorne)",5350,"Non-State School","MER"]
["Lower Tully State School",1010,"State School","FNR"]
["Lowmead State School",1140,"State School","NCR"]
["Lowood State High School",2160,"State High School","MER"]
["Lowood State School","0242","State School","MER"]
["Lundavra State School","0418","State School","DSR"]
["Lutheran Ormeau Rivers District School (Pimpama)",5529,"Non-State School","SER"]
["Ma Ma Creek State School","0383","State School","DSR"]
["Mabel Park State High School",2161,"State High School","SER"]
["Mabel Park State School","0356","State School","SER"]
["MacGregor Special Education Unit (ESL)",3248,"Intensive English Centre","MER"]
["MacGregor State High School",2124,"State High School","MER"]
["MacGregor State School","0192","State School","MER"]
["Machans Beach State School","0758","State School","FNR"]
["Mackay Central State School","0071","State School","CQR"]
["Mackay Christian College (Ambrose Way - North Mackay)",5699,"Associated Facility","CQR"]
["Mackay Christian College (Quarry St - North Mackay)",5888,"Non-State School","CQR"]
["Mackay District Special School",3082,"Special School","CQR"]
["Mackay Engineering College",7225,"Support Unit (Other)","CQR"]
["Mackay North State High School",2096,"State High School","CQR"]
["Mackay North State School","0746","State School","CQR"]
["Mackay Northern Beaches State High School",7873,"State High School","CQR"]
["Mackay Positive Learning Centre",5672,"Positive Learning Centre","CQR"]
["Mackay State High School",2009,"State High School","CQR"]
["Mackay West State School","0501","State School","CQR"]
["Mackenzie State Primary School","0608","State School","MER"]
["Mackenzie State Special School",3012,"Special School","MER"]
["MacKillop Catholic College (Mount Peter)",8148,"Non-State School","FNR"]
["MacKillop Catholic Primary School (Andergrove)","0098","Non-State School","CQR"]
["Macknade State School","0324","State School","NQR"]
["MacLeay Island State School",1959,"State School","SER"]
["Magnetic Island State School",1219,"State School","NQR"]
["Maidavale State School",1214,"State School","NQR"]
["Malanda State High School",2067,"State High School","FNR"]
["Malanda State School",1396,"State School","FNR"]
["Maleny SHS - Flexi School Campus","A916","Support Unit (Other)","NCR"]
["Maleny State High School",2177,"State High School","NCR"]
["Maleny State School",1390,"State School","NCR"]
["Mancel College (Fig Tree Pocket)",5859,"Non-State School","MER"]
["Mango Hill State School",7575,"State School","NCR"]
["Mango Hill State Secondary College","A787","State High School","NCR"]
["Manly State School",1222,"State School","MER"]
["Manly West State School","0264","State School","MER"]
["Mansfield State High School",2059,"State High School","MER"]
["Mansfield State School","0143","State School","MER"]
["Mapleton State School","0878","State School","NCR"]
["Marburg State School","0320","State School","MER"]
["Mareeba State High School",2058,"State High School","FNR"]
["Mareeba State School","0653","State School","FNR"]
["Marian Catholic School (Currajong)",5139,"Non-State School","NQR"]
["Marian State School","0518","State School","CQR"]
["Maridahdi Brisbane Primary School (Wynnum) ","A896","Non-State School","MER"]
["Maridahdi Early Childhood Community School (Toowoomba)",5524,"Non-State School","DSR"]
["Marist College (Emerald)","0204","Non-State School","CQR"]
["Marist College Ashgrove (Ashgrove)",5307,"Non-State School","MER"]
["Marlborough State School",1584,"State School","CQR"]
["Marmor State School",1122,"State School","CQR"]
["Maroochydore State High School",2097,"State High School","NCR"]
["Maroochydore State School",1711,"State School","NCR"]
["Maroon Outdoor Education Centre",3550,"Outdoor and Environmental Education Centre","SER"]
["Maroon State School","0640","State School","SER"]
["Maroondan State School",1251,"State School","NCR"]
["Marsden State High School",2176,"State High School","SER"]
["Marsden State School",1875,"State School","SER"]
["Marshall Road State School","0708","State School","MER"]
["Mary Immaculate Primary School (Annerley)",5020,"Non-State School","MER"]
["Mary MacKillop Catholic College (Highfields)",2493,"Non-State School","DSR"]
["Mary MacKillop College (Nundah)",5347,"Non-State School","MER"]
["Mary Valley State College","0465","State School","NCR"]
["Maryborough Central State School","0072","State School","NCR"]
["Maryborough Special School",3017,"Special School","NCR"]
["Maryborough State High School",2020,"State High School","NCR"]
["Maryborough West State School","0485","State School","NCR"]
["Marymount College (Burleigh Waters)",5381,"Non-State School","SER"]
["Marymount Primary School (Burleigh Heads)",5115,"Non-State School","SER"]
["Maryvale State School",1389,"State School","DSR"]
["Mastery Schools Australia (Varsity Lakes)","A970","Non-State School","SER"]
["Mater Dei Catholic Primary School (Ashgrove West)",5021,"Non-State School","MER"]
["Mater Dei Primary School (Toowoomba)",5150,"Non-State School","DSR"]
["Matthew Flinders Anglican College (Buderim)",5455,"Non-State School","NCR"]
["Mawarra Independent School (Kybong) ","A900","Non-State School","NCR"]
["Mayfield State School",1090,"State School","MER"]
["McAuley College (Beaudesert)",9961,"Non-State School","SER"]
["McDonnell Creek State School",1400,"State School","FNR"]
["McDowall State School","0378","State School","MER"]
["McIlwraith State School",1394,"State School","NCR"]
["Meandarra State School",1473,"State School","DSR"]
["Men of Business Academy (Southport)","A847","Non-State School","SER"]
["Mena Creek State School",1673,"State School","FNR"]
["Mercy College (Mackay)",5412,"Non-State School","CQR"]
["Meridan State College",1733,"State School","NCR"]
["Merinda State School","0806","State School","NQR"]
["Meringandan State School","0179","State School","DSR"]
["Merrimac State High School",2147,"State High School","SER"]
["Merrimac State School",1586,"State School","SER"]
["Miallo State School",1291,"State School","FNR"]
["Miami State High School",2086,"State High School","SER"]
["Miami State School",1890,"State School","SER"]
["Middle Park State School",1969,"State School","MER"]
["Middle Ridge State School","0414","State School","DSR"]
["Middlemount Community School",1905,"State School","CQR"]
["Miles State High School",2144,"State High School","DSR"]
["Miles State School","0341","State School","DSR"]
["Millaa Millaa State School","0771","State School","FNR"]
["Millaroo State School","0867","State School","NQR"]
["Millchester State School","0157","State School","NQR"]
["Millmerran State School","0176","State School","DSR"]
["Milman State School",1120,"State School","CQR"]
["Milpera State High School",2024,"State High School","MER"]
["Milton State School","0551","State School","MER"]
["Minden State School","0294","State School","MER"]
["Ming-De International School Toowoomba (Westbrook)","B027","Non-State School","DSR"]
["Minimbah State School","0265","State School","NCR"]
["Mirani State High School",2117,"State High School","CQR"]
["Mirani State School","0658","State School","CQR"]
["Miriam Vale State School","0792","State School","CQR"]
["Mirriwinni State School",1382,"State School","FNR"]
["Mission Beach State School",1324,"State School","FNR"]
["Mistake Creek State School",1919,"State School","CQR"]
["Mitchell State School","0027","State School","DSR"]
["Mitchelton Early Childhood Development Program","0516","Special Education Program","MER"]
["Mitchelton SHS Positive Learning Centre",5671,"Positive Learning Centre","MER"]
["Mitchelton Special School",3005,"Special School","MER"]
["Mitchelton State High School",2040,"State High School","MER"]
["Mitchelton State School",1538,"State School","MER"]
["Moffatdale State School","0701","State School","DSR"]
["Moggill State School","0073","State School","MER"]
["Monkland State School","0417","State School","NCR"]
["Monogorilby State School",1513,"State School","DSR"]
["Montessori International College (Forest Glen)",5533,"Non-State School","NCR"]
["Montessori Noosa (Sunshine Beach)","A055","Non-State School","NCR"]
["Monto State High School",2098,"State High School","CQR"]
["Monto State School",1831,"State School","CQR"]
["Montville State School","0776","State School","NCR"]
["Mooloolaba State School",1818,"State School","NCR"]
["Mooloolah State School","0309","State School","NCR"]
["Moonie State School","0511","State School","DSR"]
["Moore Park Beach State School",1739,"State School","NCR"]
["Moorooka State School",1637,"State School","MER"]
["Moranbah East State School",1908,"State School","CQR"]
["Moranbah State High School",2135,"State High School","CQR"]
["Moranbah State School","0896","State School","CQR"]
["Morayfield East State School",1985,"State School","NCR"]
["Morayfield State High School",2154,"State High School","NCR"]
["Morayfield State School","0125","State School","NCR"]
["Moreton Bay Boys' College (Manly West) ",2478,"Non-State School","MER"]
["Moreton Bay College (Manly West)",5551,"Non-State School","MER"]
["Moreton Bay Environmental Education Centre",3567,"Outdoor and Environmental Education Centre","MER"]
["Moreton Downs State School",1753,"State School","NCR"]
["Morningside State School",1803,"State School","MER"]
["Mornington Island State School","0291","State School","NQR"]
["Morven State School","0525","State School","DSR"]
["Mossman State High School",2002,"State High School","FNR"]
["Mossman State School","0167","State School","FNR"]
["Mother of Good Counsel School (Cairns North)",5265,"Non-State School","FNR"]
["Mother Teresa Primary School (Ormeau)",6142,"Non-State School","SER"]
["Mount Alford State School","0381","State School","SER"]
["Mount Alvernia College (Kedron)",5353,"Non-State School","MER"]
["Mount Archer State School",1914,"State School","CQR"]
["Mount Cotton State School","0284","State School","SER"]
["Mount Crosby State School","0267","State School","MER"]
["Mount Fox State School",1975,"State School","NQR"]
["Mount Garnet State School","0944","State School","FNR"]
["Mount Gravatt East State School","0660","State School","MER"]
["Mount Gravatt State High School",2056,"State High School","MER"]
["Mount Gravatt State School","0198","State School","MER"]
["Mount Isa Central State School",1067,"State School","NQR"]
["Mount Isa Flexible Learning Centre (Sunset)",6606,"Non-State School","NQR"]
["Mount Isa School of the Air",3604,"School of Distance Education","NQR"]
["Mount Isa Special School",3004,"Special School","NQR"]
["Mount Kilcoy State School",1166,"State School","NCR"]
["Mount Larcom State School","0300","State School","CQR"]
["Mount Marrow State School",1189,"State School","MER"]
["Mount Mee State School","0690","State School","NCR"]
["Mount Molloy State School",1109,"State School","FNR"]
["Mount Morgan Central State School","0526","State School","CQR"]
["Mount Morgan State High School",2010,"State High School","CQR"]
["Mount Murchison State School",1511,"State School","CQR"]
["Mount Nebo State School","0737","State School","MER"]
["Mount Ommaney Special School",3088,"Special School","MER"]
["Mount Perry State School","0075","State School","CQR"]
["Mount Samson State School","0377","State School","NCR"]
["Mount St Bernard College (Broadway St - Herberton)",5438,"Non-State School","FNR"]
["Mount Surprise State School",1531,"State School","FNR"]
["Mount Sylvia State School","0464","State School","DSR"]
["Mount Tarampa State School",1111,"State School","MER"]
["Mount Tyson State School",1037,"State School","DSR"]
["Mount Warren Park State School",1906,"State School","SER"]
["Mount Whitestone State School","0495","State School","DSR"]
["Mountain Creek State High School",2190,"State High School","NCR"]
["Mountain Creek State School",1999,"State School","NCR"]
["Moura State High School",2136,"State High School","CQR"]
["Moura State School","0932","State School","CQR"]
["Mourilyan State School","0957","State School","FNR"]
["Mt Maria College - Petrie (Petrie)",5001,"Non-State School","NCR"]
["Mt Maria College (Mitchelton)",5651,"Non-State School","MER"]
["Mt St Michael's College (Ashgrove)",5355,"Non-State School","MER"]
["Mudgeeraba Creek State School","0159","State School","SER"]
["Mudgeeraba Special School",3049,"Special School","SER"]
["Mudgeeraba State School","0663","State School","SER"]
["Mueller College (Rothwell)",5591,"Non-State School","NCR"]
["Mulgildie State School",1418,"State School","CQR"]
["Mundingburra State School","0436","State School","NQR"]
["Mundoo State School","0722","State School","FNR"]
["Mundubbera State School",1420,"State School","CQR"]
["Mungalla Silver Lining School (Mutarnee)","A684","Non-State School","NQR"]
["Mungallala State School","0507","State School","DSR"]
["Mungar State School","0217","State School","NCR"]
["Murarrie State School",1469,"State School","MER"]
["Murgon State High School",2052,"State High School","DSR"]
["Murgon State School","0871","State School","DSR"]
["Murphy's Creek State School","0076","State School","DSR"]
["Murray River Upper State School",1030,"State School","FNR"]
["Murray's Bridge State School",1177,"State School","DSR"]
["Murrumba State Secondary College",7574,"State High School","NCR"]
["Musgrave Hill State School",1678,"State School","SER"]
["Music Industry College (Fortitude Valley)",6137,"Non-State School","MER"]
["Mutarnee State School",1317,"State School","NQR"]
["Mutchilba State School","0993","State School","FNR"]
["Mutdapilly State School","0152","State School","SER"]
["Muttaburra State School","0304","State School","CQR"]
["My Independent School (Beerwah)","B006","Non-State School","NCR"]
["Nagoorin State School",1481,"State School","CQR"]
["Nambour Christian College (Woombye)",5886,"Non-State School","NCR"]
["Nambour Special School",3039,"Special School","NCR"]
["Nambour State College",2031,"State School","NCR"]
["Nanango State High School",2157,"State High School","DSR"]
["Nanango State School","0077","State School","DSR"]
["Narangba State School",1200,"State School","NCR"]
["Narangba Valley State High School","0444","State High School","NCR"]
["Narangba Valley State School",1725,"State School","NCR"]
["Narbethong State Special School",3140,"Special School","MER"]
["Nashville State School","0479","State School","MER"]
["Nebo State School","0184","State School","CQR"]
["Nerang State High School",2169,"State High School","SER"]
["Nerang State School","0218","State School","SER"]
["New Farm State School","0943","State School","MER"]
["Newman Catholic College (Smithfield) ","A822","Non-State School","FNR"]
["Newmarket State School","0228","State School","MER"]
["Newtown State School",1227,"State School","DSR"]
["Nirimba State Primary School","B018","State School","NCR"]
["Nobby State School",1735,"State School","DSR"]
["Noosa Christian College (Cooroy)",5303,"Non-State School","NCR"]
["Noosa District State High School",2088,"State High School","NCR"]
["Noosa District State High School - Belli Park Campus","A661","Support Unit (Other)","NCR"]
["Noosa District State High School - Pomona Campus",2292,"Campus","NCR"]
["Noosa Flexible Learning Centre (Sunshine Beach)",5638,"Non-State School","NCR"]
["Noosa Pengari Steiner School (Doonan)","0270","Non-State School","NCR"]
["Noosaville State School","0175","State School","NCR"]
["Norfolk Island Central School","B059","State School","DSR"]
["Norfolk Village State School",1741,"State School","SER"]
["Norman Park State School","0926","State School","MER"]
["Normanton State School","0360","State School","NQR"]
["Norris Road State School",1863,"State School","MER"]
["North Arm State School","0469","State School","NCR"]
["North Coast Intensive English Centre",3207,"Intensive English Centre","NCR"]
["North Eton State School","0731","State School","CQR"]
["North Lakes State College",2324,"State School","NCR"]
["North Rockhampton State High School",2041,"State High School","CQR"]
["North Shore State School","A069","State School","NQR"]
["Northern Beaches State High School","0211","State High School","NQR"]
["Northern Peninsula Area College - Bamaga Junior Campus",5703,"Campus","FNR"]
["Northern Peninsula Area College - Injinoo Junior",5704,"Campus","FNR"]
["Northern Peninsula Area State College",1243,"State School","FNR"]
["Northern Peninsula Area State College - Senior Campus",5971,"Campus","FNR"]
["Northgate State School","0281","State School","MER"]
["Northpine Christian College (Dakabin)",5476,"Non-State School","NCR"]
["Northside Christian College (Everton Park)",5578,"Non-State School","MER"]
["Northview State School",1957,"State School","CQR"]
["Norville State School","0445","State School","NCR"]
["Nudgee Beach Environmental Education Centre",3590,"Outdoor and Environmental Education Centre","MER"]
["Numinbah Valley Environmental Education Centre",3558,"Outdoor and Environmental Education Centre","SER"]
["Numinbah Valley State School","0785","State School","SER"]
["Nundah State School","0043","State School","MER"]
["Nursery Road State Special School",3084,"Special School","MER"]
["Oakenden State School",1238,"State School","CQR"]
["Oakey State High School",2099,"State High School","DSR"]
["Oakey State School","0166","State School","DSR"]
["Oakleigh State School","0331","State School","MER"]
["Oakwood State School","0620","State School","NCR"]
["Ohana College (Parkinson)","A016","Non-State School","MER"]
["One Mile State School","0051","State School","NCR"]
["OneSchool Global QLD (Maryborough)",2423,"Associated Facility","NCR"]
["OneSchool Global QLD (Nambour)",2424,"Associated Facility","NCR"]
["OneSchool Global QLD (Toowoomba)",2425,"Associated Facility","DSR"]
["OneSchool Global QLD (Wakerley) ",2421,"Non-State School","MER"]
["Ontrack College Emerald (41 Capricorn Hwy - Emerald) ","A929","Non-State School","CQR"]
["Oonoonba State School","0556","State School","NQR"]
["Orion State School",1271,"State School","CQR"]
["Ormeau State School","0336","State School","SER"]
["Ormeau Woods State High School",6136,"State High School","SER"]
["Ormiston College (Ormiston)",5796,"Non-State School","SER"]
["Ormiston State School","0023","State School","SER"]
["Osborne State School","0074","State School","NQR"]
["Our Lady Help of Christians School (Earlville)",5267,"Non-State School","FNR"]
["Our Lady Help of Christians School (Hendra)",5024,"Non-State School","MER"]
["Our Lady of Dolours School (Mitchelton)",5026,"Non-State School","MER"]
["Our Lady of Fatima Primary School (Acacia Ridge)",5027,"Non-State School","MER"]
["Our Lady of Good Counsel School (Gatton)",5117,"Non-State School","DSR"]
["Our Lady of Lourdes Catholic School (Ingham)",5236,"Non-State School","NQR"]
["Our Lady of Lourdes Primary School (Sunnybank)",5028,"Non-State School","MER"]
["Our Lady of Lourdes Primary School (Toowoomba)",5153,"Non-State School","DSR"]
["Our Lady of Mount Carmel School (Coorparoo)",5030,"Non-State School","MER"]
["Our Lady of the Angels' School (Wavell Heights)",5031,"Non-State School","MER"]
["Our Lady of the Assumption School (Enoggera)",5032,"Non-State School","MER"]
["Our Lady of the Rosary School (Caloundra)",5137,"Non-State School","NCR"]
["Our Lady of the Rosary School (Kenmore)",5033,"Non-State School","MER"]
["Our Lady of the Sacred Heart Catholic Primary School (Darra)",5034,"Non-State School","MER"]
["Our Lady of the Sacred Heart Catholic Primary School (Springsure)",5192,"Non-State School","CQR"]
["Our Lady of the Sacred Heart School (Hammond Island)",2463,"Associated Facility","FNR"]
["Our Lady of the Sacred Heart School Waiben (Thursday Island)",5268,"Non-State School","FNR"]
["Our Lady of the Southern Cross College (Dalby)",5189,"Non-State School","DSR"]
["Our Lady of the Way School (Petrie)",5035,"Non-State School","NCR"]
["Our Lady's Catholic Primary School (Longreach)",5413,"Non-State School","CQR"]
["Our Lady's College (Annerley)",5356,"Non-State School","MER"]
["Oxenford State School",1970,"State School","SER"]
["Oxley State School","0079","State School","MER"]
["Pacific Lutheran College (Meridan Plains)",2330,"Non-State School","NCR"]
["Pacific Paradise State School",1991,"State School","NCR"]
["Pacific Pines State High School",1745,"State High School","SER"]
["Pacific Pines State School",1744,"State School","SER"]
["Padua College (Kedron)",5300,"Non-State School","MER"]
["Pallara State School","0831","State School","MER"]
["Palm Beach State School","0240","State School","SER"]
["Palm Beach-Currumbin State High School",2129,"State High School","SER"]
["Palmview State Primary School","A907","State School","NCR"]
["Palmview State Special School","A905","Special School","NCR"]
["Palmwoods State School","0592","State School","NCR"]
["Paluma Environmental Education Centre",3568,"Outdoor and Environmental Education Centre","NQR"]
["Park Avenue State School","0983","State School","CQR"]
["Park Lake State School",5700,"State School","SER"]
["Park Ridge State High School",2187,"State High School","SER"]
["Park Ridge State School","0515","State School","SER"]
["Parke State School",1467,"State School","NCR"]
["Parkhurst State School","0922","State School","CQR"]
["Parklands Christian College (Park Ridge)",2327,"Non-State School","SER"]
["Parramatta State School","0639","State School","FNR"]
["Patrick Estate State School",1486,"State School","MER"]
["Patricks Road State School",1864,"State School","MER"]
["Payne Road State School","0286","State School","MER"]
["Peace Lutheran College (Kamerunga)",5772,"Non-State School","FNR"]
["Peace Lutheran Primary School (Gatton)",5762,"Non-State School","DSR"]
["Peachester State School","0672","State School","NCR"]
["Peak Crossing State School","0086","State School","SER"]
["Peninsula Positive Learning Centre - Kippa Ring","B061","Positive Learning Centre","NCR"]
["Pentland State School","0467","State School","NQR"]
["Peregian Beach College (Peregian Beach)",2415,"Non-State School","NCR"]
["Peregian Springs State School",1712,"State School","NCR"]
["Petrie State School","0183","State School","NCR"]
["Petrie Terrace State School","0080","State School","MER"]
["Pialba State School","0419","State School","NCR"]
["Picnic Creek State School",9315,"State School","SER"]
["Pilton State School","0422","State School","DSR"]
["Pimlico State High School",2049,"State High School","NQR"]
["Pimpama State Primary College",9331,"State School","SER"]
["Pimpama State School","0081","State School","SER"]
["Pimpama State Secondary College",8044,"State High School","SER"]
["Pindi Pindi State School",1408,"State School","CQR"]
["Pine Community School (Arana Hills)",5793,"Non-State School","MER"]
["Pine Rivers Special School",3011,"Special School","NCR"]
["Pine Rivers State High School",2102,"State High School","NCR"]
["Pinnacle Academic College (Distance)","A922","Non State School Distance Education","NCR"]
["Pinnacle Academic College (Kallangur)","A909","Non-State School","NCR"]
["Pinnacle State School",1141,"State School","CQR"]
["Pioneer State High School",2168,"State High School","CQR"]
["Pioneer Valley Cluster Special Education Program",5714,"Special Education Program","CQR"]
["Pittsworth State High School",2119,"State High School","DSR"]
["Pittsworth State School","0373","State School","DSR"]
["PLACE",2283,"Positive Learning Centre","SER"]
["Pomona State School","0720","State School","NCR"]
["Pormpuraaw State School","0457","State School","FNR"]
["Port Curtis Road State School","0208","State School","CQR"]
["Port Douglas State School",1979,"State School","FNR"]
["POWER Positive Learning Centre",2285,"Positive Learning Centre","NCR"]
["Pozieres State School",1704,"State School","DSR"]
["Prairie State School","0488","State School","NQR"]
["Prenzlau State School","0238","State School","MER"]
["Prince of Peace Lutheran College (Henderson Rd - Everton Hills)",5757,"Associated Facility","MER"]
["Prince of Peace Lutheran College (Rogers Pde West - Everton Hills)",5767,"Non-State School","MER"]
["Proserpine State High School",2090,"State High School","NQR"]
["Proserpine State School","0779","State School","NQR"]
["Prospect Creek State School",1655,"State School","CQR"]
["Proston State School",1155,"State School","DSR"]
["Pullenvale Environmental Education Centre",3565,"Outdoor and Environmental Education Centre","MER"]
["Pullenvale State School","0140","State School","MER"]
["Pumicestone State School",9324,"State School","NCR"]
["QCHS - Adolescent Extended Treatment Centre","A829","Support Unit (Other)","MER"]
["QCHS - Royal Brisbane and ACT for Kids Campus",3100,"Campus","MER"]
["Queen of Apostles Primary School (Chuter St - Stafford)",2483,"Associated Facility","MER"]
["Queen of Apostles Primary School (Thuruna St - Stafford)",5038,"Non-State School","MER"]
["Queens Beach State School",1194,"State School","NQR"]
["Queensland Academy for Creative Industries",5685,"State High School","MER"]
["Queensland Academy for Health Sciences",5727,"State High School","SER"]
["Queensland Academy for Science Mathematics and Technology",5684,"State High School","MER"]
["Queensland Children's Hospital School",3102,"Specific Purpose School","MER"]
["Queensland College of Wine Tourism",5641,"Support Unit (Other)","DSR"]
["Queensland Pathways State College",3036,"State High School","MER"]
["Queensland Pathways State College - Bracken Ridge Campus","A085","Campus","MER"]
["Queensland Pathways State College - Bundamba Campus","A070","Campus","MER"]
["Queensland Pathways State College - Goodna Campus",9956,"Campus","MER"]
["Queensland Pathways State College - Inner City Campus","A653","Campus","MER"]
["Queensland Pathways State College - Mt Gravatt Campus",9199,"Campus","MER"]
["Queensland Pathways State College - Townsville Campus","A104","Campus","NQR"]
["Quilpie State College",1594,"State School","DSR"]
["Quinalow Prep-10 State School","0958","State School","DSR"]
["Raceview State School","0975","State School","MER"]
["Radiant Life College (East Innisfail)",5970,"Non-State School","FNR"]
["Railway Estate State School",1530,"State School","NQR"]
["Rainbow Beach State School",1955,"State School","NCR"]
["Rainworth State School",1491,"State School","MER"]
["Ramsay State School","0029","State School","DSR"]
["Rangeville State School",1174,"State School","DSR"]
["Rasmussen State School",1870,"State School","NQR"]
["Rathdowney State School",1332,"State School","SER"]
["Ravenshoe Cluster Special Education Program",5548,"Special Education Program","FNR"]
["Ravenshoe State School",1315,"State School","FNR"]
["Ravenshoe State School - Junior Campus",6147,"Campus","FNR"]
["Ravenshoe State School - Senior Campus",6148,"Campus","FNR"]
["Ravenswood State School","0141","State School","NQR"]
["Red Hill Special School",3085,"Special School","MER"]
["Redbank Plains State High School",2174,"State High School","MER"]
["Redbank Plains State School","0088","State School","MER"]
["Redbank State School","0719","State School","MER"]
["Redcliffe Special School",3009,"Special School","NCR"]
["Redcliffe State High School",2045,"State High School","NCR"]
["Redeemer Lutheran College (Rochedale)",5781,"Non-State School","MER"]
["Redeemer Lutheran College, Biloela (Biloela)",5765,"Non-State School","CQR"]
["Redland Bay State School","0229","State School","SER"]
["Redland District Special School",3033,"Special School","SER"]
["Redlands College (Wellington Point)",5801,"Non-State School","SER"]
["Redlynch State College",1336,"State School","FNR"]
["Redwood College (Burpengary)",9948,"Non-State School","NCR"]
["Redwood College (Distance)","A663","Non State School Distance Education","NCR"]
["Regents Park State School",1996,"State School","SER"]
["Remote Area Teaching Education Program (RATEP)","A808","Support Unit (Other)","DSR"]
["Richlands East State School","0721","State School","MER"]
["Richmond Hill State School","0733","State School","NQR"]
["Richmond State School","0576","State School","NQR"]
["Ridgelands State School",1489,"State School","CQR"]
["Ripley Valley State School","A790","State School","MER"]
["Ripley Valley State Secondary College","A797","State High School","MER"]
["Rivermount College (Yatala)",5593,"Non-State School","SER"]
["Rivers Youth Versatile Education and Training Centre","B053","Support Unit (Other)","NCR"]
["Riverside Adventist School (Aitkenvale)",5487,"Non-State School","NQR"]
["Riverside Christian College (Distance)",5696,"Non State School Distance Education","NCR"]
["Riverside Christian College (Maryborough)",5860,"Non-State School","NCR"]
["Riverside Christian College (Maryborough-Royle St) ","B019","Non State School Distance Education","NCR"]
["Riverview State School",1865,"State School","MER"]
["Roadvale State School","0582","State School","SER"]
["Robertson State School",1899,"State School","MER"]
["Robina Hospital Day Program Class","A830","Support Unit (Other)","SER"]
["Robina Hospital Inpatient Unit Class",8084,"Support Unit (Other)","SER"]
["Robina State High School","0195","State High School","SER"]
["Robina State School",1982,"State School","SER"]
["Rochedale South State School",1886,"State School","SER"]
["Rochedale State High School",2158,"State High School","MER"]
["Rochedale State School",1638,"State School","MER"]
["Rockhampton Flexible Learning Centre (Rockhampton)",9803,"Non-State School","CQR"]
["Rockhampton Girls Grammar School (Rockhampton)",5505,"Non-State School","CQR"]
["Rockhampton Hospital Class","A801","Support Unit (Other)","CQR"]
["Rockhampton Intensive English Centre",9713,"Intensive English Centre","CQR"]
["Rockhampton North Special School",3038,"Special School","CQR"]
["Rockhampton Positive Learning Centre",5721,"Positive Learning Centre","CQR"]
["Rockhampton Special School",3010,"Special School","CQR"]
["Rockhampton State High School",2011,"State High School","CQR"]
["Rocklea State School","0454","State School","MER"]
["Rockville State School",1786,"State School","DSR"]
["Rolleston State School","0092","State School","CQR"]
["Rollingstone State School",1325,"State School","NQR"]
["Roma State College",5666,"State School","DSR"]
["Roma State College - Junior Campus","0144","Campus","DSR"]
["Roma State College - Middle Campus",1973,"Campus","DSR"]
["Roma State College - Senior Campus",5668,"Campus","DSR"]
["Ropeley State School","0613","State School","DSR"]
["Rosedale State School","0759","State School","NCR"]
["Rosella Park School",3002,"Special School","CQR"]
["Rosewood State High School",2151,"State High School","MER"]
["Rosewood State School","0131","State School","MER"]
["Rossville State School",1977,"State School","FNR"]
["Runaway Bay Sport and Leadership Excellence Centre",7192,"Sport Education Centre","SER"]
["Runcorn Heights State School","0472","State School","MER"]
["Runcorn State High School",2167,"State High School","MER"]
["Runcorn State School","0968","State School","MER"]
["Russell Island State School",1488,"State School","SER"]
["Ryan Catholic College (Kirwan)",5331,"Non-State School","NQR"]
["Sacred Heart Catholic Primary School (Yeppoon)",5196,"Non-State School","CQR"]
["Sacred Heart Primary School (Cunnamulla)",5158,"Non-State School","DSR"]
["Sacred Heart Primary School (Sandgate)",5044,"Non-State School","MER"]
["Sacred Heart Primary School (Toowoomba)",5159,"Non-State School","DSR"]
["Sacred Heart School (Booval)",5042,"Non-State School","MER"]
["Saint Stephen's College (Coomera)","0268","Non-State School","SER"]
["Salisbury State School",1690,"State School","MER"]
["Samford State School","0094","State School","MER"]
["Samford Valley Steiner School (Wights Mountain)",5816,"Non-State School","MER"]
["San Damiano College (Yarrabilba)","A780","Non-State School","SER"]
["San Sisto College (Carina)",5359,"Non-State School","MER"]
["Sandgate District State High School",2047,"State High School","MER"]
["Sandgate State School","0153","State School","MER"]
["Sandy Strait State School",1754,"State School","NCR"]
["Sarina State High School",2101,"State High School","CQR"]
["Sarina State School","0546","State School","CQR"]
["Scarborough State School",1560,"State School","NCR"]
["School and Family Support Team",1632,"Support Unit (Other)","MER"]
["Scottville State School","0475","State School","NQR"]
["Seaforth State School",1479,"State School","CQR"]
["Serviceton South State School","0590","State School","MER"]
["Seton College (Mount Gravatt East)",5360,"Non-State School","MER"]
["Seven Hills State School",1026,"State School","MER"]
["Severnlea State School",1007,"State School","DSR"]
["Seville Road State School",1131,"State School","MER"]
["Shailer Park State High School",2149,"State High School","SER"]
["Shailer Park State School",1916,"State School","SER"]
["Shalom College (Bundaberg)",5406,"Non-State School","NCR"]
["Sharon State School","0400","State School","NCR"]
["Sheldon College (Sheldon)","0597","Non-State School","SER"]
["Sherwood State School","0078","State School","MER"]
["Shorncliffe State School",1623,"State School","MER"]
["Siena Catholic College (Sippy Downs)","0480","Non-State School","NCR"]
["Siena Catholic Primary School (Sippy Downs)",2359,"Non-State School","NCR"]
["Silkstone State School","0247","State School","MER"]
["Silkwood School (Mount Nathan)","0738","Non-State School","SER"]
["Silkwood School (Robina)","B057","Associated Facility","SER"]
["Silkwood State School",1528,"State School","FNR"]
["Silver Lining School (Ficks Crossing) ","B029","Non-State School","DSR"]
["Sinai College (Burbank)",5587,"Non-State School","MER"]
["Slade Point State School",1853,"State School","CQR"]
["Somerset College (Mudgeeraba)",5811,"Non-State School","SER"]
["Somerset Hills State School","0692","State School","MER"]
["Somerville House (South Brisbane)",5469,"Non-State School","MER"]
["Sophia College (Plainland) ","A758","Non-State School","DSR"]
["South East Brisbane Steiner School","B104","Non-State School","SER"]
["South Johnstone State School",1518,"State School","FNR"]
["Southbrook Central State School",1241,"State School","DSR"]
["Southern Cross Catholic College (Kippa Ring)",2487,"Associated Facility","NCR"]
["Southern Cross Catholic College (Scarborough)","0014","Non-State School","NCR"]
["Southern Cross Catholic College (Townsville)",1591,"Non-State School","NQR"]
["Southern Cross Catholic College (Woody Point)",2488,"Associated Facility","NCR"]
["Southport Flexible Learning Centre (Southport)",9757,"Non-State School","SER"]
["Southport Special School",3026,"Special School","SER"]
["Southport State High School",2037,"State High School","SER"]
["Southport State School","0368","State School","SER"]
["Spinifex State College - Mount Isa - Junior Campus",5149,"Campus","NQR"]
["Spinifex State College - Mount Isa - Senior Campus",5148,"Campus","NQR"]
["Spinifex State College - Mount Isa - Student Residential",5151,"Student Residential","NQR"]
["Spinifex State College - Mount Isa Education and Training Precinct",5147,"State High School","NQR"]
["Spring Mountain State School","A657","State School","MER"]
["Springbrook State School",1931,"State School","SER"]
["Springfield Central State High School",7131,"State High School","MER"]
["Springfield Central State School",7123,"State School","MER"]
["Springfield Lakes State School",5556,"State School","MER"]
["Springsure State School","0102","State School","CQR"]
["Springwood Central State School",1869,"State School","SER"]
["Springwood Road State School","0358","State School","SER"]
["Springwood State High School",2140,"State High School","SER"]
["St Agatha's Primary School (Clayfield)",5045,"Non-State School","MER"]
["St Agnes School (Mount Gravatt)",5046,"Non-State School","MER"]
["St Aidan's Anglican Girls School (Corinda)",5448,"Non-State School","MER"]
["St Ambrose's Primary School (Newmarket)",5047,"Non-State School","MER"]
["St Andrew's Anglican College (Peregian Springs)",2480,"Non-State School","NCR"]
["St Andrew's Catholic College Redlynch Valley (Redlynch)",2266,"Non-State School","FNR"]
["St Andrew's Catholic School (Ferny Grove)",5110,"Non-State School","MER"]
["St Andrews Lutheran College (Tallebudgera)",5771,"Non-State School","SER"]
["St Anne's Catholic Primary School (Sarina)",5198,"Non-State School","CQR"]
["St Ann's School (Redbank Plains)","A680","Non-State School","MER"]
["St Anthony's Catholic College (Veales Rd - Deeragun)",5222,"Associated Facility","NQR"]
["St Anthony's Catholic College (Veales Rd and Joanne St - Deeragun)",5373,"Non-State School","NQR"]
["St Anthony's Catholic Primary School (North Rockhampton)",5199,"Non-State School","CQR"]
["St Anthony's School (Alexandra Hills)",5107,"Non-State School","SER"]
["St Anthony's School (Dimbulah)",5270,"Non-State School","FNR"]
["St Anthony's School (Kedron)",5048,"Non-State School","MER"]
["St Anthony's School (Toowoomba)",5160,"Non-State School","DSR"]
["St Augustine's College (Augustine Heights)",2501,"Non-State School","MER"]
["St Augustine's College (Cairns)",5337,"Non-State School","FNR"]
["St Augustine's Parish Primary School (Currumbin Waters)",5119,"Non-State School","SER"]
["St Augustine's School (Mossman)",5271,"Non-State School","FNR"]
["St Benedict's Catholic Primary School (Yeppoon)",5759,"Non-State School","CQR"]
["St Benedict's Catholic School (Shaw)","A034","Non-State School","NQR"]
["St Benedict's College (Mango Hill)",7595,"Non-State School","NCR"]
["St Benedict's Primary School (Mango Hill)",5683,"Non-State School","NCR"]
["St Bernard State School",1425,"State School","SER"]
["St Bernardine's School (Regents Park)",5056,"Non-State School","SER"]
["St Bernard's School (Upper Mount Gravatt)",5050,"Non-State School","MER"]
["St Brendan's Catholic Primary School (Mackay)",9621,"Non-State School","CQR"]
["St Brendan's College (Yeppoon)",5415,"Non-State School","CQR"]
["St Brendan's Primary School (Moorooka)",5051,"Non-State School","MER"]
["St Brigid's Catholic Primary School (Emerald)",8613,"Non-State School","CQR"]
["St Brigid's Catholic Primary School (Nerang)",5522,"Non-State School","SER"]
["St Brigid's Primary School (Rosewood)",5120,"Non-State School","MER"]
["St Catherine's Catholic College The Whitsundays (Proserpine)",7578,"Non-State School","NQR"]
["St Catherines Catholic Primary School (Wishart)",5053,"Non-State School","MER"]
["St Clare's Catholic School (Burdell)",6138,"Non-State School","NQR"]
["St Clare's Primary School (Yarrabilba)",9962,"Non-State School","SER"]
["St Clare's School (Tully)",5273,"Non-State School","FNR"]
["St Colman's Catholic School (Home Hill)",5239,"Non-State School","NQR"]
["St Columban's College (Caboolture)",5302,"Non-State School","NCR"]
["St Columba's Primary School (Wilston)",5055,"Non-State School","MER"]
["St Dympna's Parish School (Aspley)",5057,"Non-State School","MER"]
["St Edmund's College (Woodend)",5364,"Non-State School","MER"]
["St Edward the Confessor School (Daisy Hill)",5004,"Non-State School","SER"]
["St Elizabeth's School (Tarragindi)",5059,"Non-State School","MER"]
["St Eugene College (Burpengary)",5431,"Non-State School","NCR"]
["St Finbarr's School (Ashgrove)",5062,"Non-State School","MER"]
["St Finbarr's School (Quilpie)",5165,"Non-State School","DSR"]
["St Flannan's School (Zillmere)",5063,"Non-State School","MER"]
["St Francis Catholic Primary School (Tannum Sands)",5400,"Non-State School","CQR"]
["St Francis Catholic School (Ayr)",5243,"Non-State School","NQR"]
["St Francis Catholic School (Hughenden)",5242,"Non-State School","NQR"]
["St Francis College (Crestmead) ",5164,"Non-State School","SER"]
["St Francis De Sales School (Clifton)",5166,"Non-State School","DSR"]
["St Francis Xavier Catholic Primary School (Mackay West)",5200,"Non-State School","CQR"]
["St Francis Xavier School (Goodna)",5064,"Non-State School","MER"]
["St Francis Xavier School (Runaway Bay)",5121,"Non-State School","SER"]
["St Francis Xavier's School (Manunda)",5275,"Non-State School","FNR"]
["St George State High School",2143,"State High School","DSR"]
["St George State School","0134","State School","DSR"]
["St Gerard Majella Primary School (Woree)",5065,"Non-State School","FNR"]
["St Helens State School","0236","State School","NCR"]
["St Hilda's School (Southport)",5457,"Non-State School","SER"]
["St Ignatius School (Toowong)",5066,"Non-State School","MER"]
["St Ita's Regional Primary School (Dutton Park)",5067,"Non-State School","MER"]
["St James College (Brisbane)",5304,"Non-State School","MER"]
["St James Lutheran College (Urraween)",5311,"Non-State School","NCR"]
["St James Primary School (Coorparoo)",5069,"Non-State School","MER"]
["St Joachim's School (Holland Park)",5070,"Non-State School","MER"]
["St John Bosco Catholic School (Collinsville)",5245,"Non-State School","NQR"]
["St John Fisher College (Bracken Ridge)",5346,"Non-State School","MER"]
["St John the Baptist Catholic Primary School (Gladstone)",5202,"Non-State School","CQR"]
["St John Vianney's Primary School (Manly)",5072,"Non-State School","MER"]
["St John's Anglican College (Alpine Pl - Forest Lake)",2490,"Associated Facility","MER"]
["St John's Anglican College (College Ave - Forest Lake)",5459,"Non-State School","MER"]
["St John's Catholic Primary School (Walkerston)",5201,"Non-State School","CQR"]
["St John's College (Nambour)",5125,"Non-State School","NCR"]
["St John's Lutheran Primary School (Bundaberg)",5766,"Non-State School","NCR"]
["St John's Lutheran School (Kingaroy)",5770,"Non-State School","DSR"]
["St John's School (Roma)",5324,"Non-State School","DSR"]
["St John's School (Silkwood)",5277,"Non-State School","FNR"]
["St Joseph's Catholic Primary School (Barcaldine)",5204,"Non-State School","CQR"]
["St Joseph's Catholic Primary School (Biloela)",5205,"Non-State School","CQR"]
["St Joseph's Catholic Primary School (Blackall)",5206,"Non-State School","CQR"]
["St Joseph's Catholic Primary School (Bracken Ridge)",5080,"Non-State School","MER"]
["St Joseph's Catholic Primary School (Bundaberg)",5207,"Non-State School","NCR"]
["St Joseph's Catholic Primary School (Clermont)",5208,"Non-State School","CQR"]
["St Joseph's Catholic Primary School (North Mackay)",5210,"Non-State School","CQR"]
["St Joseph's Catholic Primary School (Park Avenue)",5211,"Non-State School","CQR"]
["St Joseph's Catholic Primary School (Wandal)",5212,"Non-State School","CQR"]
["St Joseph's Catholic School (Cloncurry)",5247,"Non-State School","NQR"]
["St Joseph's Catholic School (Mount Isa)",5250,"Non-State School","NQR"]
["St Joseph's Catholic School, The Strand (North Ward)",5251,"Non-State School","NQR"]
["St Joseph's College (Brisbane)",5305,"Non-State School","MER"]
["St Joseph's College (Coomera)","A107","Non-State School","SER"]
["St Joseph's College (Spring Hill)",6154,"Associated Facility","MER"]
["St Joseph's College (Toowoomba)",5323,"Non-State School","DSR"]
["St Joseph's Nudgee College (Boondall)",5366,"Non-State School","MER"]
["St Joseph's Parish School (Weipa)",9627,"Non-State School","FNR"]
["St Joseph's Primary School (Corinda)",5074,"Non-State School","MER"]
["St Joseph's Primary School (Kangaroo Point)",5075,"Non-State School","MER"]
["St Joseph's Primary School (Nambour)",5384,"Non-State School","NCR"]
["St Joseph's School (Atherton)",5278,"Non-State School","FNR"]
["St Joseph's School (Bardon)",5073,"Non-State School","MER"]
["St Joseph's School (Cairns)",5279,"Non-State School","FNR"]
["St Joseph's School (Childers)",5122,"Non-State School","NCR"]
["St Joseph's School (Chinchilla)",5168,"Non-State School","DSR"]
["St Joseph's School (Gayndah)",5123,"Non-State School","CQR"]
["St Joseph's School (Millmerran)",5170,"Non-State School","DSR"]
["St Joseph's School (Mundingburra)",5248,"Non-State School","NQR"]
["St Joseph's School (Murgon)",5124,"Non-State School","DSR"]
["St Joseph's School (North Ipswich)",5076,"Non-State School","MER"]
["St Joseph's School (Nundah)",5078,"Non-State School","MER"]
["St Joseph's School (Stanthorpe) ",5398,"Non-State School","DSR"]
["St Joseph's School (Tara)",5172,"Non-State School","DSR"]
["St Joseph's Tobruk Memorial School (Beenleigh)",5079,"Non-State School","SER"]
["St Kevin's School (Benowa)",5136,"Non-State School","SER"]
["St Kevin's School (Geebung)",5081,"Non-State School","MER"]
["St Kieran's Catholic School (Mount Isa)",5226,"Non-State School","NQR"]
["St Kieran's School (Brighton)",5082,"Non-State School","MER"]
["St Laurence's College (South Brisbane)",5306,"Non-State School","MER"]
["St Lawrence State School","0103","State School","CQR"]
["St Luke's Anglican School (Bundaberg)",5458,"Non-State School","NCR"]
["St Luke's Catholic Parish School (Capalaba)",5601,"Non-State School","SER"]
["St Margaret Mary's College (Hyde Park)",5429,"Non-State School","NQR"]
["St Margaret's Anglican Girls School (Ascot)",5450,"Non-State School","MER"]
["St Maria Goretti School (Inglewood)",5176,"Non-State School","DSR"]
["St Mark's School (Inala)",5086,"Non-State School","MER"]
["St Martin's School (Carina)",5087,"Non-State School","MER"]
["St Mary MacKillop Primary School (Birkdale)","0596","Non-State School","SER"]
["St Mary of the Cross School (Windsor)",5011,"Non-State School","MER"]
["St Mary's Catholic College (Kingaroy)",5387,"Non-State School","DSR"]
["St Mary's Catholic College (Woree)",5439,"Non-State School","FNR"]
["St Mary's Catholic Primary School (Bundaberg)",5213,"Non-State School","NCR"]
["St Mary's Catholic Primary School (Mackay South)",5215,"Non-State School","CQR"]
["St Mary's Catholic Primary School (North Rockhampton)",5214,"Non-State School","CQR"]
["St Mary's Catholic School (Bowen)",5255,"Non-State School","NQR"]
["St Mary's College (Ipswich)",5368,"Non-State School","MER"]
["St Mary's College (Maryborough)",5386,"Non-State School","NCR"]
["St Mary's College (Toowoomba)",5327,"Non-State School","DSR"]
["St Mary's Primary School (Ipswich)",5088,"Non-State School","MER"]
["St Mary's Primary School (Maryborough)",5130,"Non-State School","NCR"]
["St Mary's School (175 Palmerin St - Warwick)",2484,"Non-State School","DSR"]
["St Mary's School (25-27 Brisbane St - Goondiwindi)","A626","Associated Facility","DSR"]
["St Mary's School (26 Brisbane St - Goondiwindi)",5177,"Non-State School","DSR"]
["St Mary's School (Beaudesert)",5127,"Non-State School","SER"]
["St Mary's School (Charleville)",5182,"Non-State School","DSR"]
["St Mary's School (Laidley)",5129,"Non-State School","DSR"]
["St Matthew's School (Cornubia)",5104,"Non-State School","SER"]
["St Michael's Catholic School (Palm Island)",5260,"Non-State School","NQR"]
["St Michael's College (Caboolture)",5574,"Non-State School","NCR"]
["St Michael's College (Merrimac)",5378,"Non-State School","SER"]
["St Michael's School (Gordonvale)",5281,"Non-State School","FNR"]
["St Monica's College (Cairns)",5440,"Non-State School","FNR"]
["St Monica's School (Oakey)",5181,"Non-State School","DSR"]
["St Oliver Plunkett School (Cannon Hill)",5000,"Non-State School","MER"]
["St Patrick's Catholic Primary School (Bundaberg)",5218,"Non-State School","NCR"]
["St Patrick's Catholic Primary School (Emerald)",5216,"Non-State School","CQR"]
["St Patrick's Catholic School (Winton)",5258,"Non-State School","CQR"]
["St Patrick's College (Gympie)",5389,"Non-State School","NCR"]
["St Patrick's College (Mackay)",5343,"Non-State School","CQR"]
["St Patrick's College (Shorncliffe)",5308,"Non-State School","MER"]
["St Patrick's College Townsville (Townsville)",5432,"Non-State School","NQR"]
["St Patrick's Primary School (Gympie)",5132,"Non-State School","NCR"]
["St Patrick's Primary School (Mitchell)",5185,"Non-State School","DSR"]
["St Patrick's Primary School (Nanango)",5133,"Non-State School","DSR"]
["St Patrick's School (Allora)",5183,"Non-State School","DSR"]
["St Patrick's School (St George)",5184,"Non-State School","DSR"]
["St Paul's Catholic Primary School (Gracemere)",5435,"Non-State School","CQR"]
["St Paul's Lutheran Primary School (Caboolture)",5769,"Non-State School","NCR"]
["St Paul's School (Bald Hills)",5449,"Non-State School","MER"]
["St Paul's School (Woodridge)",5091,"Non-State School","SER"]
["St Peter Chanel Primary School (The Gap)",5094,"Non-State School","MER"]
["St Peter Claver College (Riverview)",5370,"Non-State School","MER"]
["St Peter's Catholic Primary School (Caboolture)",5095,"Non-State School","NCR"]
["St Peter's Catholic Primary School (Rockhampton)",5219,"Non-State School","CQR"]
["St Peter's Catholic School (Halifax)",5259,"Non-State School","NQR"]
["St Peters Lutheran College (Indooroopilly)",5496,"Non-State School","MER"]
["St Peters Lutheran College Springfield (Springfield Central)",5738,"Non-State School","MER"]
["St Peter's Primary School (Rochedale)",5097,"Non-State School","MER"]
["St Philomena School (Park Ridge)",2224,"Non-State School","SER"]
["St Pius' Primary School (Banyo)",5098,"Non-State School","MER"]
["St Pius X School (Salisbury)",5099,"Non-State School","MER"]
["St Rita's College (Clayfield)",5372,"Non-State School","MER"]
["St Rita's Primary School (Victoria Point)",5594,"Non-State School","SER"]
["St Rita's School (Babinda)",5283,"Non-State School","FNR"]
["St Rita's School (South Johnstone)",5284,"Non-State School","FNR"]
["St Saviour's College (Toowoomba)",5402,"Non-State School","DSR"]
["St Saviour's Primary School (Toowoomba)",5186,"Non-State School","DSR"]
["St Sebastian's Primary School (Yeronga)",5101,"Non-State School","MER"]
["St Stephen's Catholic College (Mareeba)",5143,"Non-State School","FNR"]
["St Stephen's School (Algester)",2495,"Non-State School","MER"]
["St Stephen's School (Pittsworth)",5187,"Non-State School","DSR"]
["St Teresa's Catholic College (Noosaville)",2494,"Non-State School","NCR"]
["St Teresa's College (Abergowrie)",5434,"Non-State School","NQR"]
["St Teresa's School (Ravenshoe)",5286,"Non-State School","FNR"]
["St Therese's Catholic Primary School (Monto)",5220,"Non-State School","CQR"]
["St Therese's School (Bentley Park)",5287,"Non-State School","FNR"]
["St Thomas More College (Sunnybank)",5374,"Non-State School","MER"]
["St Thomas More Primary School (Sunshine Beach)",5428,"Non-State School","NCR"]
["St Thomas More's Primary School (Toowoomba)",5188,"Non-State School","DSR"]
["St Thomas' School  (Mareeba)",5288,"Non-State School","FNR"]
["St Thomas' School (Camp Hill)",5103,"Non-State School","MER"]
["St Ursula's College (Toowoomba)",5404,"Non-State School","DSR"]
["St Ursula's College (Yeppoon)",5419,"Non-State School","CQR"]
["St Vincent's Primary School (Surfers Paradise)",5135,"Non-State School","SER"]
["St William's Primary School (Grovely)",5105,"Non-State School","MER"]
["Stafford Heights State School",1016,"State School","MER"]
["Stafford State School","0487","State School","MER"]
["Staines Memorial College (Redbank Plains)",5423,"Non-State School","MER"]
["Stanley River Environmental Education Centre",3551,"Outdoor and Environmental Education Centre","NCR"]
["Stanthorpe State High School",2064,"State High School","DSR"]
["Stanthorpe State School","0132","State School","DSR"]
["Stanton Lodge Support Unit",1861,"Support Unit (Other)","NQR"]
["Stanwell State School","0129","State School","CQR"]
["Star of the Sea Catholic Primary School (Gladstone)",5197,"Non-State School","CQR"]
["Star of the Sea Catholic School (Torquay)",5134,"Non-State School","NCR"]
["Star of the Sea Primary School (Cleveland)",5735,"Non-State School","SER"]
["Star of the Sea School (Merrimac)","A928","Non-State School","SER"]
["Statewide Vision Impairment Services","B115","Support Unit (Other)","MER"]
["Stella Maris School (Maroochydore)",5138,"Non-State School","NCR"]
["STEPS Positive Learning Centre",6325,"Positive Learning Centre","SER"]
["Stonehenge State School","0933","State School","CQR"]
["Strathpine State School",1245,"State School","NCR"]
["Strathpine West State School",1910,"State School","NCR"]
["Stretton State College",5554,"State School","MER"]
["Sts Peter and Paul's School (Bulimba)",5096,"Non-State School","MER"]
["Stuartholme School (Toowong)",5362,"Non-State School","MER"]
["Students With A Goal Program","A103","Support Unit (Other)","NCR"]
["Sunbury State School","0622","State School","NCR"]
["Suncoast Christian College (Woombye)",5864,"Non-State School","NCR"]
["Sunnybank Hills State School",1889,"State School","MER"]
["Sunnybank Special School",3078,"Special School","MER"]
["Sunnybank State High School",2080,"State High School","MER"]
["Sunnybank State School","0062","State School","MER"]
["Sunset State School","0965","State School","NQR"]
["Sunshine Beach State High School",2108,"State High School","NCR"]
["Sunshine Beach State School",1917,"State School","NCR"]
["Sunshine Coast Environmental Education Centre",3580,"Outdoor and Environmental Education Centre","NCR"]
["Sunshine Coast Environmental Education Centre - Sunday Creek Campsite",3559,"Support Unit (Other)","NCR"]
["Sunshine Coast Grammar School (Forest Glen)","0599","Non-State School","NCR"]
["Sunshine Coast University Hospital AMHU Class","A799","Support Unit (Other)","NCR"]
["Sunshine Coast University Hospital Paediatric Class","A608","Support Unit (Other)","NCR"]
["Surat State School","0142","State School","DSR"]
["Surfers Paradise Special Education Unit (ESL)",3544,"Intensive English Centre","SER"]
["Surfers Paradise State School",1295,"State School","SER"]
["Swayneville State School",1595,"State School","CQR"]
["Taabinga State School",1096,"State School","DSR"]
["Tagai State College",5726,"State School","FNR"]
["Tagai State College - Badu Island Campus",1940,"Campus","FNR"]
["Tagai State College - Darnley Island Campus",1944,"Campus","FNR"]
["Tagai State College - Dauan Island Campus",1950,"Campus","FNR"]
["Tagai State College - Horn Island Campus",1995,"Campus","FNR"]
["Tagai State College - Kubin Campus",1949,"Campus","FNR"]
["Tagai State College - Mabuiag Island Campus",1942,"Campus","FNR"]
["Tagai State College - Malu Kiwai Campus",1941,"Campus","FNR"]
["Tagai State College - Mer Campus",1943,"Campus","FNR"]
["Tagai State College - Poruma Campus",1951,"Campus","FNR"]
["Tagai State College - Saibai Island Campus",1946,"Campus","FNR"]
["Tagai State College - St Pauls Campus",1953,"Campus","FNR"]
["Tagai State College - Stephen Island Campus",1952,"Campus","FNR"]
["Tagai State College - Thursday Island Primary Campus","0463","Campus","FNR"]
["Tagai State College - Thursday Island Secondary",2114,"Campus","FNR"]
["Tagai State College - Warraber Island Campus",1948,"Campus","FNR"]
["Tagai State College - Yam Island Campus",1947,"Campus","FNR"]
["Tagai State College - Yorke Island Campus",1945,"Campus","FNR"]
["Taigum State School",1112,"State School","MER"]
["Talara Primary College","0462","State School","NCR"]
["Tallebudgera Outdoor and Environmental Education Centre",3555,"Outdoor and Environmental Education Centre","SER"]
["Tallebudgera State School","0201","State School","SER"]
["Talwood State School",1615,"State School","DSR"]
["Tambo State School","0150","State School","DSR"]
["Tamborine Mountain College (North Tamborine)","0009","Non-State School","SER"]
["Tamborine Mountain State High School",2265,"State High School","SER"]
["Tamborine Mountain State School","0913","State School","SER"]
["Tamrookum State School",1252,"State School","SER"]
["Tanduringie State School",1446,"State School","DSR"]
["Tannum Sands SHS Business and Information Technology Skills Centre",6324,"Support Unit (Other)","CQR"]
["Tannum Sands State High School","0231","State High School","CQR"]
["Tannum Sands State School",1921,"State School","CQR"]
["Tara Shire State College",1357,"State School","DSR"]
["Tarampa State School","0271","State School","MER"]
["Taranganba State School",1992,"State School","CQR"]
["Taroom State School","0105","State School","DSR"]
["Tec-NQ (Douglas)",5687,"Non-State School","NQR"]
["Tec-NQ (North Ward)","A796","Associated Facility","NQR"]
["Tec-NQ (Rosslea) ","A045","Associated Facility","NQR"]
["Teelba State School","0494","State School","DSR"]
["Tent Hill Lower State School","0106","State School","DSR"]
["Tewantin State School","0181","State School","NCR"]
["Texas P-10 State School","0437","State School","DSR"]
["Thabeban State School",1573,"State School","NCR"]
["Thallon State School",1278,"State School","DSR"]
["Thangool State School",1840,"State School","CQR"]
["Thargomindah State School","0409","State School","DSR"]
["The BUSY School (Cairns) ","A898","Non-State School","FNR"]
["The BUSY School (Coolangatta)","B108","Associated Facility","SER"]
["The BUSY School (Salisbury)","B020","Associated Facility","MER"]
["The BUSY school (Shailer Park)","A972","Associated Facility","SER"]
["The Cathedral College (Rockhampton)",5436,"Non-State School","CQR"]
["The Cathedral School of St Anne and St James (Mundingburra)",5454,"Non-State School","NQR"]
["The Caves State School",1018,"State School","CQR"]
["The Centre Education Programme (Kingston)",1665,"Non-State School","SER"]
["The Gap State High School",2053,"State High School","MER"]
["The Gap State School",1302,"State School","MER"]
["The Glennie School (Toowoomba)",5461,"Non-State School","DSR"]
["The Gums State School",1360,"State School","DSR"]
["The Hall State School",1195,"State School","CQR"]
["The Kooralbyn International School (Kooralbyn)",5468,"Non-State School","SER"]
["The Lakes College (North Lakes)",5403,"Non-State School","NCR"]
["The Rainforest School (Maria Creeks)","A662","Non-State School","FNR"]
["The River School (Maleny)","0096","Non-State School","NCR"]
["The Rockhampton Grammar School (Agnes St, Rockhampton)",5517,"Non-State School","CQR"]
["The Rockhampton Grammar School (Quarry St - Rockhampton)",9736,"Associated Facility","CQR"]
["The School of Total Education (Warwick)",5502,"Non-State School","DSR"]
["The SCOTS PGC College (Locke St - Warwick)",2477,"Associated Facility","DSR"]
["The SCOTS PGC College (Oxenham St - Warwick)",5560,"Non-State School","DSR"]
["The Southport School (Southport)",5453,"Non-State School","SER"]
["The Springfield Anglican College (Springfield College Dr - Springfield)",1850,"Associated Facility","MER"]
["The Springfield Anglican College (Springfield Greenbank Arterial - Springfield)",5686,"Non-State School","MER"]
["The Summit State School",1714,"State School","DSR"]
["The Sycamore School (Alexandra Hills)","A038","Non-State School","SER"]
["The Village School Gold Coast (Coolangatta)","B028","Non-State School","SER"]
["The Willows State School","0287","State School","NQR"]
["Theebine State School","0579","State School","NCR"]
["Theodore State School","0676","State School","CQR"]
["Thornlands State School",1240,"State School","SER"]
["Thornton State School","0245","State School","DSR"]
["Thulimbah State School","0803","State School","DSR"]
["Thuringowa State High School",2172,"State High School","NQR"]
["Tiaro State School","0107","State School","NCR"]
["Tieri State School",1926,"State School","CQR"]
["Tin Can Bay State School","0577","State School","NCR"]
["Tinana State School","0216","State School","NCR"]
["Tinaroo Environmental Education Centre",3583,"Outdoor and Environmental Education Centre","FNR"]
["Tinaroo Environmental Education Centre - Barron River Site","A720","Support Unit (Other)","FNR"]
["Tingalpa State School","0127","State School","MER"]
["Tingoora State School","0864","State School","DSR"]
["Tivoli State School","0224","State School","MER"]
["Tolga State School","0629","State School","FNR"]
["Tom Quinn Community Centre Alternative School (Bundaberg)","A026","Non-State School","NCR"]
["Toobanna State School",1777,"State School","NQR"]
["Toogoolawa School (Ormeau)",1802,"Non-State School","SER"]
["Toogoolawah State High School",2179,"State High School","DSR"]
["Toogoolawah State School",1069,"State School","DSR"]
["Toohey Forest Environmental Education Centre",2260,"Outdoor and Environmental Education Centre","MER"]
["Toolooa SHS - Flexible Learning Centre",6155,"Support Unit (Other)","CQR"]
["Toolooa State High School",2152,"State High School","CQR"]
["Toowong State School","0013","State School","MER"]
["Toowoomba Anglican School (Toowoomba)",5444,"Non-State School","DSR"]
["Toowoomba Christian College (Highfields)",5581,"Non-State School","DSR"]
["Toowoomba Early Childhood Development Program",3366,"Special Education Program","DSR"]
["Toowoomba East State School","0499","State School","DSR"]
["Toowoomba Grammar School (East Toowoomba)",5516,"Non-State School","DSR"]
["Toowoomba Hospital Class","A805","Support Unit (Other)","DSR"]
["Toowoomba North State School","0110","State School","DSR"]
["Toowoomba Positive Learning Centre",5722,"Positive Learning Centre","DSR"]
["Toowoomba State High School",2013,"State High School","DSR"]
["Toowoomba West Special School",3032,"Special School","DSR"]
["Torbanlea State School","0522","State School","NCR"]
["Torquay State School","0945","State School","NCR"]
["Townsville AIUDS Class",7576,"Support Unit (Other)","NQR"]
["Townsville Central State School","0113","State School","NQR"]
["Townsville Christian College (Vincent)",9973,"Non-State School","NQR"]
["Townsville Community Learning Centre - A State Special School",2376,"Special School","NQR"]
["Townsville Flexible Learning Centre (Cunningham St - Ayr)","B044","Associated Facility","NQR"]
["Townsville Flexible Learning Centre (West End, Townsville)",5639,"Non-State School","NQR"]
["Townsville Grammar School (Annandale)",2481,"Associated Facility","NQR"]
["Townsville Grammar School (Burdell)",9293,"Associated Facility","NQR"]
["Townsville Grammar School (North Ward)",5506,"Non-State School","NQR"]
["Townsville Hospital Class","A802","Support Unit (Other)","NQR"]
["Townsville Positive Learning Centre",5669,"Positive Learning Centre","NQR"]
["Townsville SHS Intensive English Centre",9663,"Intensive English Centre","NQR"]
["Townsville South State School","0303","State School","NQR"]
["Townsville State High School",2100,"State High School","NQR"]
["Townsville West State School","0498","State School","NQR"]
["Townsville-Thuringowa Centre for Continuing Secondary Education",3704,"Centre for Continuing Secondary Education","NQR"]
["Townview State School",1203,"State School","NQR"]
["Trebonne State School",1118,"State School","NQR"]
["Tresswell State School","0420","State School","CQR"]
["Trinity Anglican School (Kewarra Beach)",2485,"Associated Facility","FNR"]
["Trinity Anglican School (White Rock)",5447,"Non-State School","FNR"]
["Trinity Bay State High School",2057,"State High School","FNR"]
["Trinity College (Beenleigh)",5367,"Non-State School","SER"]
["Trinity College (Gladstone)",5577,"Non-State School","CQR"]
["Trinity Lutheran College (Ashmore Rd - Ashmore)",2442,"Non-State School","SER"]
["Trinity Lutheran College (Cotlew St - Ashmore)",2443,"Associated Facility","SER"]
["Tropical North Learning Academy - Smithfield State High School",2159,"State High School","FNR"]
["Tropical North Learning Academy - Trinity Beach State School",1893,"State School","FNR"]
["Tullawong State High School",2188,"State High School","NCR"]
["Tullawong State School",1994,"State School","NCR"]
["Tully State High School",2103,"State High School","FNR"]
["Tully State School",1008,"State School","FNR"]
["Turning Point Positive Learning Centre",2287,"Positive Learning Centre","SER"]
["Two Mile State School","0361","State School","NCR"]
["Ubobo State School","0879","State School","CQR"]
["Undurba State School",1877,"State School","NCR"]
["Unity College (Caloundra West)",5475,"Non-State School","NCR"]
["Upper Brookfield State School",1501,"State School","MER"]
["Upper Coomera State College",2340,"State School","SER"]
["Upper Mount Gravatt State School","0128","State School","MER"]
["Urandangi State School",1755,"State School","NQR"]
["Urangan Point State School",1536,"State School","NCR"]
["Urangan State High School",2110,"State High School","NCR"]
["Vale View State School","0844","State School","DSR"]
["Valkyrie State School","0403","State School","CQR"]
["Varsity College",1759,"State School","SER"]
["Varsity Learning Centre","A012","Support Unit (Other)","SER"]
["Veresdale Scrub State School","0869","State School","SER"]
["Victoria Park State School",1855,"State School","CQR"]
["Victoria Plantation State School","0628","State School","NQR"]
["Victoria Point State High School","0234","State High School","SER"]
["Victoria Point State School",1512,"State School","SER"]
["Victory College (Gympie)",5869,"Non-State School","NCR"]
["Vienna Woods State School",1936,"State School","SER"]
["Villanova College (Coorparoo)",5310,"Non-State School","MER"]
["Vincent State School","0948","State School","NQR"]
["Virginia State School",1675,"State School","MER"]
["Vocational Training Queensland","A817","Support Unit (Other)","MER"]
["Wadja Wadja High School (Woorabinda)",5521,"Non-State School","CQR"]
["Walkamin State School","0760","State School","FNR"]
["Walkerston State School","0353","State School","CQR"]
["Walkervale State School","0536","State School","NCR"]
["Wallangarra State School","0458","State School","DSR"]
["Wallaville State School",1192,"State School","NCR"]
["Walloon State School","0285","State School","MER"]
["Wallumbilla State School","0182","State School","DSR"]
["Wamuran State School",1724,"State School","NCR"]
["Wandoan State School P-10",1296,"State School","DSR"]
["Waraburra State School",1971,"State School","CQR"]
["Warra State School","0386","State School","DSR"]
["Warrigal Road State School",1885,"State School","MER"]
["Warrill View State School",1230,"State School","SER"]
["Wartburg State School",1159,"State School","NCR"]
["Warwick Central State School","0116","State School","DSR"]
["Warwick Christian College (Canningvale Rd - Warwick)",5681,"Associated Facility - Special Assistance School","DSR"]
["Warwick Christian College (Glengallan Rd - Warwick)","A757","Associated Facility - Special Assistance School","DSR"]
["Warwick Christian College (Horsman Rd - Warwick)",8387,"Non-State School","DSR"]
["Warwick East State School","0225","State School","DSR"]
["Warwick State High School",2015,"State High School","DSR"]
["Warwick West State School",1152,"State School","DSR"]
["Waterford State School","0130","State School","SER"]
["Waterford West State School",1856,"State School","SER"]
["Watson Road State School","0584","State School","MER"]
["Wavell Heights State School",1149,"State School","MER"]
["Wavell State High School",2048,"State High School","MER"]
["Weir State School","0395","State School","NQR"]
["Wellcamp State School","0855","State School","DSR"]
["Wellers Hill State School",1844,"State School","MER"]
["Wellington Point State High School",2178,"State High School","SER"]
["Wellington Point State School","0273","State School","SER"]
["West End State School","0212","State School","MER"]
["West Moreton Anglican College (Karrabin)",5456,"Non-State School","MER"]
["West Moreton Education and Training Centre ","A966","Campus","MER"]
["Western Cape College",5399,"State School","FNR"]
["Western Cape College - Mapoon","0082","Campus","FNR"]
["Western Cape College - Weipa",1407,"Campus","FNR"]
["Western Cape College Enrichment Centre","A054","Support Unit (Other)","FNR"]
["Western Cape College Residential Centre",8014,"Student Residential","FNR"]
["Western Suburbs State Special School",3014,"Special School","MER"]
["Westmar State School",1244,"State School","DSR"]
["Westside Christian College (110 Stuart St - Goodna)",2474,"Associated Facility","MER"]
["Westside Christian College (65 Stuart St - Goodna)",5580,"Non-State School","MER"]
["Westwood State School","0119","State School","CQR"]
["Wheatlands State School",1405,"State School","DSR"]
["Wheatvale State School",1147,"State School","DSR"]
["White Rock State School",1978,"State School","FNR"]
["Whites Hill State College",2410,"State School","MER"]
["Whitfield State School",1980,"State School","FNR"]
["Whitsunday Anglican School (Beaconsfield)",5890,"Non-State School","CQR"]
["Whitsunday Christian College (Cannonvale)","0587","Non-State School","NQR"]
["Widgee State School","0669","State School","NCR"]
["William Duncan Positive Learning Centre",5673,"Positive Learning Centre","SER"]
["William Duncan State School",1972,"State School","SER"]
["William Ross State High School",2186,"State High School","NQR"]
["Wilsonton Agricultural Environmental Education Centre",3569,"Outdoor and Environmental Education Centre","DSR"]
["Wilsonton State High School","0468","State High School","DSR"]
["Wilsonton State School","0394","State School","DSR"]
["Wilston State School",1485,"State School","MER"]
["Windaroo State School",1990,"State School","SER"]
["Windaroo Valley State High School",2189,"State High School","SER"]
["Windera State School","0292","State School","DSR"]
["Windorah State School","0461","State School","CQR"]
["Windsor State School","0011","State School","MER"]
["Winfield State School","0603","State School","NCR"]
["Winton State School","0478","State School","CQR"]
["Wisdom College (Calamvale)",6157,"Non-State School","MER"]
["Wishart State School","0633","State School","MER"]
["Withcott State School",1930,"State School","DSR"]
["Wolvi State School","0881","State School","NCR"]
["Wondai State School",1065,"State School","DSR"]
["Wondall Heights State School","0416","State School","MER"]
["Wonga Beach State School",1614,"State School","FNR"]
["Woodcrest State College","0456","State School","MER"]
["Woodford State School","0370","State School","NCR"]
["Woodhill State School","0122","State School","SER"]
["WoodLinks State School",7121,"State School","MER"]
["Woodridge North State School","0647","State School","SER"]
["Woodridge State High School",2128,"State High School","SER"]
["Woodridge State School","0704","State School","SER"]
["Woodridge State School Special Education Unit (ESL)",6483,"Intensive English Centre","SER"]
["Woodstock State School","0615","State School","NQR"]
["Woody Point Special School",3042,"Special School","NCR"]
["Woolooga State School",1378,"State School","NCR"]
["Wooloowin State School",1463,"State School","MER"]
["Woombye State School","0476","State School","NCR"]
["Woongarra State School","0350","State School","NCR"]
["Woongoolba State School","0039","State School","SER"]
["Woorabinda State School","0617","State School","CQR"]
["Wooroolin State School","0947","State School","DSR"]
["Woree SHS - SchoolTech Campus",7383,"Campus","FNR"]
["Woree State High School",2162,"State High School","FNR"]
["Woree State School",1902,"State School","FNR"]
["Worongary State School",1993,"State School","SER"]
["Wowan State School","0919","State School","CQR"]
["Wulguru State School","0547","State School","NQR"]
["Wyandra State School","0802","State School","DSR"]
["Wynnum State High School",2021,"State High School","MER"]
["Wynnum State School",6981,"State School","MER"]
["Wynnum West State School",1765,"State School","MER"]
["Wyreema State School","0524","State School","DSR"]
["Xavier - Early Childhood Development Program",5262,"Special Education Program","MER"]
["Xavier Catholic College (Hervey Bay)",2489,"Non-State School","NCR"]
["Yandaran State School",1634,"State School","NCR"]
["Yandina State School","0491","State School","NCR"]
["Yangan State School","0151","State School","DSR"]
["Yannanda - Toowoomba AMHU Class",7677,"Support Unit (Other)","DSR"]
["Yarrabah State School",1303,"State School","FNR"]
["Yarrabah State School - Primary Campus",6127,"Campus","FNR"]
["Yarrabah State School - Secondary Campus",6128,"Campus","FNR"]
["Yarrabilba State School","A068","State School","SER"]
["Yarrabilba State Secondary College","A789","State High School","SER"]
["Yarraman State School","0967","State School","DSR"]
["Yarranlea Primary School (Mount Gravatt)",9817,"Non-State School","MER"]
["Yarrilee State School",1746,"State School","NCR"]
["Yarwun State School",1098,"State School","CQR"]
["Yeerongpilly SS - Early Childhood Development Program",3304,"Special Education Program","MER"]
["Yelarbon State School",1346,"State School","DSR"]
["Yeppoon State High School",2123,"State High School","CQR"]
["Yeppoon State School","0442","State School","CQR"]
["Yeronga Special Education Unit (ESL)",3242,"Intensive English Centre","MER"]
["Yeronga State High School",2054,"State High School","MER"]
["Yeronga State School","0008","State School","MER"]
["YES Program","A992","Support Unit (Other)","NCR"]
["YMCA Vocational School - Brisbane South (Acacia Ridge)","A855","Non-State School","MER"]
["YMCA Vocational School - Ipswich (Bundamba)","A853","Non-State School","MER"]
["YMCA Vocational School - Ipswich (Ipswich)","A854","Associated Facility","MER"]
["YMCA Vocational School - Logan (41-45 Mary St - Kingston)","B008","Non-State School","SER"]
["YMCA Vocational School - Logan (53 Mary St - Kingston)","B009","Associated Facility","SER"]
["YMCA Vocational School - Moreton Bay (Mango Hill) ","A852","Associated Facility","NCR"]
["YMCA Vocational School - Moreton Bay (North Lakes)","A851","Non-State School","MER"]
["YMCA Vocational School - Redlands (Victoria Point)","B007","Non-State School","MER"]
["Yorkeys Knob State School","0757","State School","FNR"]
["YOS Lawnton (Lawnton)",9922,"Non-State School","NCR"]
["YOS Lawnton (Riverview)","A975","Associated Facility","NCR"]
["Yugumbir State School",1954,"State School","SER"]
["Yuleba State School","0372","State School","DSR"]
["Yungaburra State School",1002,"State School","FNR"]
["Zillmere State School","0275","State School","MER"]